Workbook

Sheet Enlig
B2: Kontanthjælp, uddannelseshjælp og integrationsydelse/SHOY | H2: Mellemregninger
H3: Fra - til / § | I3: =DATE(D4,I4,MAX(C5,1)) -> 2019-11-01 | J3: =DATE(D4,I4,MIN(D5,I5)) -> 2019-11-30 | K3: =IF(D4<2020,2,3) -> 2 | O3: Input til KY
B4: Måned /år | C4: November | D4: 2019 | H4: måned/år/kolonne | I4: =VLOOKUP(C4,Måneder,2,FALSE) -> 11 | J4: =VLOOKUP(I4,måned_år,VLOOKUP(D4,Tabel14[],2,FALSE),FALSE) -> 2019 | K4: =VLOOKUP(J4,Tabel26[[Kolonne1]:[kolonne]],2,FALSE) -> 12
B5: Dag - fra-til | H5: måned/periode/-afbrydelse | I5: =VLOOKUP(C4,Tabel211[],D4-2012,FALSE) -> 30 | J5: =J3-I3+1 -> 30 | K5: =J5-C6 -> 30 | P5: Resultat fra KMD Aktiv | Q5: Resultat fra Ny beregning | R5: Indberetning til KY
B6: Midlertidig afbrydelse | C6: 0 | H6: Satsvalg | I6: =(I7&J14&J18&J17&J15&J16)+0 -> 0 | J6: =VLOOKUP(I6,Satsmap_1,2,FALSE) -> 0 | K6: =VLOOKUP(J6,Satsmap,2,FALSE) -> 0
A7: Person | H7: Bevilling | I7: =VLOOKUP(C8,Bevilling,2,FALSE) -> 0 | J7: Grundsats | K7: =VLOOKUP(K6,Alle_sats,K4,FALSE) -> 0
B8: Bevilling | C8: Vælg | H8: Tillæg / reduktion dansktil | I8: =VLOOKUP(C9,Tillæg,2,FALSE) -> 0 | J8: =IF(OR(I8=0,AND(I7=3,I8=1),AND(I7<3,I8=2)),0,VLOOKUP(J6,Satsmap,3,FALSE)) -> 0 | K8: =VLOOKUP(J8,Alle_sats,K4,FALSE) -> 0 | L8: =MAX(IF(K8>0,IF(I7=3,MAX(K7+K8-K19-J10-L10,0),0),0),0) -> 0 | O8: Bruttoydelse | Q8: =F57 -> 0 | R8: =Q8-P8 -> 0
B9: Tillæg | C9: Nej | H9: Fiktivt niveau | I9: =VLOOKUP(C10,Fiktivt_niveau,2,FALSE) -> 0 | J9: =VLOOKUP(C10,Fiktivt_niveau,3,FALSE) -> 0 | K9: =IF(I9>0,(I9&K14&K18&K17&K15&K16)+0,0) -> 0 | L9: =VLOOKUP(K9,Satsmap_1,2,FALSE) -> 0 | O9: ATP egen andel | Q9: =F60 -> 0 | R9: =Q9-P9 -> 0
B10: - Fiktivt niveau integrationsydelse | C10: Vælg | H10: Fiktiv grund/akt.tllæg | I10: =VLOOKUP(L9,Satsmap,2,FALSE) -> 0 | J10: =VLOOKUP(I10,Alle_sats,K4,FALSE) -> 0 | K10: =IF(J9>0,VLOOKUP(L9,Satsmap,3,FALSE),0) -> 0 | L10: =VLOOKUP(K10,Alle_sats,K4,FALSE) -> 0 | O10: ATP kommuneandel | Q10: =F61 -> 0 | R10: =Q10-P10 -> 0
H11: Samlet månedlig sats | I11: =K7+K8-L8+K21 -> 0 | O11: Periode fra | Q11: =I3 -> 2019-11-01 | R11: =I3 -> 2019-11-01
B12: Alder | C12: Vælg | O12: Periode til | Q12: =J3 -> 2019-11-30 | R12: =J3 -> 2019-11-30
B13: Bosted person | C13: Vælg | J13: justerede koder | K13: Fiktive koder | O13: Tilbagebetaling sanktion | Q13: =F58 ->  | R13: =IF(Q13=" "," ",Q13-P13) -> 
B14: Gravid / psykisk lidelse | C14: Nej | H14: Alder | I14: =VLOOKUP(C12,Tabel8[],2,FALSE) -> 0 | J14: =IF(AND(I7=3,J18=2),3,IF(AND(I7=3,I14<3),2,IF(AND(I14<3,J18=2),2,IF(AND(I14<3,I16=1),2,IF(AND(I14<3,I16=2,I15=2),2,I14))))) -> 0 | K14: =IF(AND(I14<3,J18=2),2,IF(J16=1,2,IF(AND(I16=2,I15=2),2,I14))) -> 0 | O14: Tilbagebetalingsparagraf | Q14: =IF(I42>0,K42," ") ->  | R14: =Q14 -> 
B15: Enlig/samlevende | C15: Vælg | H15: bosted | I15: =IFERROR(VLOOKUP(C13,Tabel12[],2,FALSE),0) -> 0 | J15: =IF(OR(I14=3,J16=1,J18=2),0,I15) -> 0 | K15: =IF(OR(I14=3,I16=1,I18=2),0,I15) -> 0 | O15: Tilbagebetalingspligt
A16: Børn | H16: unge opl. | I16: =VLOOKUP(C14,Ungekode,2,FALSE) -> 0 | J16: =IF(OR(I14=3,I7=3),0,IF(AND(I16=1,J18=2,I17=1),0,IF(AND(I8=1,J18=2),0,I16))) -> 0 | K16: =IF(I14=3,0,IF(AND(I16=1,J18=2,I17=1),0,I16)) -> 0 | O16: Tilbagebetalingsparagraf
B17: Antal hjemmeboende | C17: 0 | H17: Samliv | I17: =VLOOKUP(C15,Samliv,2,FALSE) -> 0 | J17: =IF(J18=0,0,IF(AND(I7=1,I14=3),0,IF(AND(I7<3,I16=2),0,IF(I17>1,0,I17)))) -> 0 | K17: =IF(J18=0,0,IF(AND(J9=1,I14=3),0,J17)) -> 0
B18: Antal udeboende børn med bidrag | C18: 0 | H18: Forsørger | I18: =IF(C17>0,2,IF(C18+C19>0,1,0)) -> 0 | J18: =IF(I18=2,2,IF(AND(I7=3,I18<2),0,IF(AND(I14=3,I18>0),2,IF(AND(I16=2,I18>0),2,0)))) -> 0 | K18: =IF(I18=2,2,IF(AND(I14=3,I18>0),2,IF(AND(I16=2,I18>0),2,0))) -> 0 | O18: Kontanthjælpsloft | Q18: =C64 ->  | R18: =F64 -> 0
B19: Antal udeboende børn uden bidrag | C19: 0 | H19: Fiktivt bidrag | I19: =IF(AND(J15>0,C18>0),1,0) -> 0 | K19: =J20*C18*I19 -> 0 | O19: Hjælpsbeløb | R19: =F49-R20 -> 0
A20: Indtægt | H20: bidrag | I20: =IF(I7=3,0,IF(AND(J15>0,C18>0),1,0)) -> 0 | J20: =VLOOKUP(12,Alle_sats,K4,FALSE) -> 1387 | K20: =J20*C18*I20 -> 0 | O20: Dansktillæg/-bonus | R20: =IF(I7=3,K8-L8,0) -> 0
B21: Arbejdsindtægt i måneden | C21: 0 | H21: nedsat bidrag | I21: =IF(I7=1,12,IF(I7=2,60,0)) -> 0 | J21: =VLOOKUP(1,Alle_sats,K4,FALSE) -> 15180 | K21: =MAX(MIN(K20,J21-K8-K7),0) -> 0 | O21: fradragsfri indtægt | R21: =E47 -> 0
B22: - Arbejdstimer i måneden | C22: 0 | O22: 225-timers sanktion jf. § 13 g | R22: =E50 -> 0
B23: Arbejdsindtægt ukendt arbejdstid | C23: 0 | H23: Timer i alt | I23: =ROUND(C22+C24,2) -> 0 | O23: Øvrige sanktioner | R23: =E56-E50 -> 0
B24: - Beregnet timetal | C24: =C23/J24 -> 0 | H24: Sats timefradrag | I24: =VLOOKUP(121,Alle_sats,K4,FALSE) -> 27.32 | J24: =VLOOKUP(122,HTFsats,K4,FALSE) -> 241.73 | O24: Særlig støtte
B25: Anden bruttoydelse | C25: 0 | O25: Særlig støtte | R25: ='SÆS - enlig'!E71 -> 0
B26: Anden skattepligtig indtægt | C26: 0 | H26: 225-timer | I26: =VLOOKUP(IF(I18>0,134,133),Alle_sats,K4,FALSE) -> 11423 | J26: =IF(C29="ja",IF((K7+K8+K21)>=I26,131,IF(OR(I7=1,I8=1,J6="23.2.3"),132,0)),0) -> 0 | K26: =VLOOKUP(J26,Alle_sats,K4,FALSE) -> 0 | O26: Særlig støtte - terminshjælp | R26: ='SÆS - enlig'!E72 -> 0
B27: Ikke skattepligtig indtægt | C27: 0
A28: Sanktioner | H28: Sanktioner | I28: fradragspct. | J28: =IF(K4<13,ROUND(F49/MAX((E41+E42+E43),1),4),0) -> 0 | K28: =IF(J28>0,J28," ") -> 
B29: 225-timers regel | C29: Nej | H29: Periodesanktion | I29: grundsats | J29: =VLOOKUP(J6,Satsmap,4,FALSE) -> 0 | K29: =VLOOKUP(J29,Alle_sats,K4,FALSE) -> 0 | N29: Noter
B30: Periode sanktion (§§ 36-38) antal dage | C30: 0 | I30: tillæg | J30: =IF(I8>0,VLOOKUP(J6,Satsmap,5,FALSE),0) -> 0 | K30: =VLOOKUP(J30,Alle_sats,K4,FALSE) -> 0
B31: Punktsanktion (§§ 39-40) | C31: Nej
B32: 40a - dage uden hjælp | C32: 0 | H32: Punktsanktion | I32: grundsats | J32: =VLOOKUP(J6,Satsmap,6,FALSE) -> 0 | K32: =VLOOKUP(J32,Alle_sats,K4,FALSE) -> 0
B33: Sanktion uberettiget hjælp §§ 42-43 | C33: Vælg | I33: tillæg | J33: =IF(I8>0,VLOOKUP(J6,Satsmap,7,FALSE),0) -> 0 | K33: =VLOOKUP(J33,Alle_sats,K4,FALSE) -> 0
B34: §§ 42-43 antal dage | C34: 0
B35: Manuel sanktion | C35: 0 | H35: Sanktion 2020 | I35: =E41+E42+E43 -> 0 | J35: =IF(K4>11,IF(I35>I38,J38,IF(I35>I39,J39,IF(I35>I40,J40,J41))),0) -> 0 | K35: =3*J35 -> 0
A36: ATP
B37: Antal måneder med hjælp | C37: 0
I38: =VLOOKUP(301,HTFsats,K4,FALSE) -> 0 | J38: =VLOOKUP(305,HTFsats,K4,FALSE) -> 0
B39: ="Beregning af "&C8 -> Beregning af Vælg | D39: =I3 -> 2019-11-01 | E39: =J3 -> 2019-11-30 | F39: =K5&" af "&I5&" dage" -> 30 af 30 dage | I39: =VLOOKUP(302,HTFsats,K4,FALSE) -> 0 | J39: =VLOOKUP(306,HTFsats,K4,FALSE) -> 0
I40: =VLOOKUP(303,HTFsats,K4,FALSE) -> 0 | J40: =VLOOKUP(307,HTFsats,K4,FALSE) -> 0
B41: =C8 -> Vælg | C41: =VLOOKUP(K6,HTFsats,3,FALSE) -> - | E41: =K7 -> 0 | I41: 0 | J41: =VLOOKUP(308,HTFsats,K4,FALSE) -> 0
B42: =IF(J8>0,C9," - ") -> - | C42: =VLOOKUP(J8,HTFsats,3,FALSE) -> - | E42: =K8 -> 0 | H42: 1/3 sanktion | I42: =IF(C34>0,IF(I43>=J43,42,43),0) -> 0 | J42: =VLOOKUP(C33,pgf42_43,2,FALSE) -> 0 | K42: ="§ "&I42 -> § 0
B43: =IF(L8>0," Reduktion dansktillæg"," ") ->  | D43: =IF(L13>0,-(J10+L10+K21)," ") ->  | E43: =-L8 -> 0 | H43: Ydelse/grænsebeløb/periode ydelse/nedsættelse | I43: =K7+K8-L8 -> 0 | J43: =VLOOKUP(47,HTFsats,K4,FALSE) -> 11423 | K43: =F45*C34/K5 -> 0 | L43: =IF(I42=42,K43/3,IF(AND(I42=43,J42=4),K35,0)) -> 0
B44: =IF(K21>0,"Bidragstillæg"," ") ->  | C44: =IF(K21>0,VLOOKUP(I21,HTFsats,3,FALSE)," ") ->  | D44: =IF(K31>0,K31," ") ->  | E44: =K21 -> 0 | H44: Tilbagebetaling (1+2/3/4+5) | I44: =IF(AND(J42<3,I42=43),K43/3,0) -> 0 | J44: =IF(J42=3,K43-L43,0) -> 0 | K44: =IF(J42>3,K43-L43,0) -> 0 | L44: =MAX(I44,J44,K44) -> 0
B45: =C8&" inkl. tillæg" -> Vælg inkl. tillæg | D45: =K5&" / "&I5&" af " -> 30 / 30 af | E45: =SUM(E41:E44) -> 0 | F45: =E45*K5/I5 -> 0
B46: Indtægt i alt | E46: =C21+C23+C25+C26+C27 -> 0 | H46: ATP grænse forsørger/ ikke-forsørger | I46: =VLOOKUP(144,HTFsats,K4,FALSE) -> 15180 | J46: =VLOOKUP(145,HTFsats,K4,FALSE) -> 11423 | K46: =IF(I18>0,I46,J46) -> 11423
B47: Timefradrag | C47: =IF(I23>0,I23&" timer á", " ") ->  | D47: =IF(I23>0,I24," ") ->  | E47: =-I23*I24 -> 0 | H47: ATP-sats egen / kommune | I47: =VLOOKUP(141,HTFsats,K4,FALSE) -> 95 | J47: =VLOOKUP(142,HTFsats,K4,FALSE) -> 189
B48: Indtægtsfradrag | E48: =SUM(E46:E47) -> 0 | F48: =-MIN(MAX(E48,0),F45) -> 0 | H48: OP-bidrag | I48: =VLOOKUP(143,HTFsats,K4,FALSE) -> 0
B49: ="Hjælpsbeløb "&IF(AND(I7=3,K8>0),"+ dansktillæg/-bonus"," ") -> Hjælpsbeløb | F49: =MAX(SUM(F45:F48),0) -> 0
B50: =IF(K4>6," Nedsættelse 225-timer"," ") -> Nedsættelse 225-timer | C50: =IF(K26>0,VLOOKUP(J26,Alle_sats,3,FALSE)," ") ->  | E50: =K26 -> 0 | H50: Kontanthjælpsloft
B51: Periodesanktioner §§ 36-38 | C51: =IF(C30>0,IF(K4<13,("("&K29&" + "&K30&") * "&C30&" * "),J35&" * "&C30)," ") ->  | D51: =IF(C30> 0,K28," ") ->  | E51: =IF(C30>0,IF(K4<13,ROUND((K29+K30)*C30*K28,2),C30*J35),0) -> 0 | H51: Grænsebeløb stk.1 | I51: =VLOOKUP(1,HTFsats,K4,FALSE) -> 15180 | J51: =VLOOKUP(2,HTFsats,K4,FALSE) -> 11423 | K51: =IF(OR(AND(F45>=I51,I18>0),AND(I11>=J51,I18=0)),1,0) -> 0
B52: Punktsanktion §§ 39-40 | C52: =IF(K4<13,IF(C31="Ja","("&K32&" + "&K33&") * "," ")," ") ->  | D52: =IF(C31="Ja",K28," ") ->  | E52: =IF(C31="Ja",IF(K4<13,ROUND((K32+K33)*K28,2),K35),0) -> 0 | H52: Stk. 2,3,4/valgt stk. | I52: =IF(AND(K51=0,I7=1),2,0) -> 0 | J52: =IF(AND(K51=0,I7=2),3,0) -> 0 | K52: =IF(AND(K51=0,I7=3),IF(K4>9,4,3),0) -> 0 | L52: =IF(K4>6,MAX(K51,I52,J52,K52),0) -> 0
B53: § 40 a - udeblivelser | C53: =IF(C32>0,C32&"/"&I5&" af "," ") ->  | D53: =IF(C32>0,F45," ") ->  | E53: =F45*C32/I5 -> 0 | H53: Samliv/ antal børn | I53: =VLOOKUP(C15,Samliv,3,FALSE) -> 0 | J53: =IF(AND(C17+C18+C19>1,L52=1,I53=2),1,IF(C17+C18+C19>=2,2,C17+C18+C19)) -> 0 | K53: =IF(AND(L52>0,I53>0),L52&I53&J53,0)-0 -> 0
B54: =IF(I42>0," Sanktion uberettiget hjælp § "&I42," Sanktion uberettiget hjælp §§ 42-43 ") -> Sanktion uberettiget hjælp §§ 42-43 | C54: =IF(I42=42,C34&"/"&K5&" * 1/3 *"," ") ->  | D54: =IF(I42=42,F49," ") ->  | E54: =L43 -> 0 | H54: Loft sats | I54: =VLOOKUP(K53,Loftmap,2,FALSE) -> 0 | J54: =VLOOKUP(I54,HTFsats,3,FALSE) -> -
B55: Manuel sanktion | E55: =C35 -> 0
B56: Sanktioner i alt | E56: =SUM(E50:E55) -> 0 | F56: =-MIN(E56,F49) -> 0
B57: Bruttoydelse | F57: =SUM(F49:F56) -> 0
B58: =IF(I42>0,"Tilbagebetalingspligtig sanktion jf. § "&I42," ") ->  | C58: =IF(L44>0,C34&"/"&K5&" af"," ") ->  | D58: =IF(L44>0,F49-E54," ") ->  | F58: =IF(I42>0,MIN(L44,F57)," ") -> 
H59: Fejl | I59: =IF(AND(I7=2,I14=3),1,IF(AND(I7<3,I8=2),2,IF(AND(I7=3,I8=1),3,IF(AND(I7=3,I4<9,D4=2015),4,)))) -> 0
B60: ATP egen andel | F60: =IF(AND(F57>=K46,C37>=12),I47*K5/I5,0) -> 0
B61: ATP kommuneandel | F61: =IF(AND(F57>=K46,C37>=12),J47*K5/I5,0) -> 0
B62: OP-bidrag | F62: =IF(I7<3,ROUND((F57-F60)*I48,0),0) -> 0
I63: =TEXT(K26,"%") -> %
B64: Kontanthjælpsloft | C64: =IF(I54>0,VLOOKUP(I54,HTFsats,3,FALSE)," ") ->  | F64: =VLOOKUP(I54,HTFsats,K4,FALSE) -> 0

Sheet SÆS - enlig
B2: Særlig støtte
B4: Måned /år | C4: =Enlig!C4 -> November | D4: =Enlig!D4 -> 2019 | I4: =Enlig!K4 -> 12
A6: Boligudgifter | C6: beløb | D6: frekvens | H6: Boligudgifter pr. måned
B7: Husleje | C7: 0 | G7: =VLOOKUP(D7,Frekvens,2,FALSE) -> 1 | H7: =C7/MAX(G7,1) -> 0
B8: Boligstøtte | C8: 0 | G8: 1 | H8: =-C8/MAX(G8,1) -> 0
B9: Varme | C9: 0 | G9: 1 | H9: =C9/MAX(G9,1) -> 0
B10: El | C10: 0 | G10: 1 | H10: 0
B11: Gas | C11: 0 | G11: 1 | H11: 0
B12: Vand | C12: 0 | G12: 1 | H12: 0
B13: Ejendomsskat | C13: 0 | G13: 1 | H13: 0
B14: Ejendomsværdiskat | C14: 0 | G14: 1 | H14: 0
B15: Husforsikring | C15: 0 | G15: 1 | H15: 0
B16: Andre boligudgifter | C16: 0 | G16: 1 | H16: 0
B17: Indtægt fra lejer | C17: 0 | G17: 1 | H17: =-C17/MAX(G17,1) -> 0
G18: I alt | H18: =SUM(H7:H17) -> 0
A19: Boliglån | C19: Ydelse | D19: Rente + bidrag | E19: Frekvens
B20: Lån 1 | C20: 0 | D20: 0 | G20: =VLOOKUP(E20,Frekvens,2,FALSE) -> 1 | H20: =C20/MAX(G20,1) -> 0 | I20: =D20/MAX(G20,1) -> 0
B21: Lån 2 | C21: 0 | D21: 0 | G21: =VLOOKUP(E21,Frekvens,2,FALSE) -> 1 | H21: =C21/MAX(G21,1) -> 0 | I21: =D21/MAX(G21,1) -> 0
G22: lån i alt | H22: =SUM(H20:H21) -> 0 | I22: =SUM(I20:I21) -> 0
A23: Udgifter til erhvervelse af indtægter | G23: I alt | H23: =H18+H22-I23 -> 0 | I23: =C31*(I22-MAX(C30-H35,0)) -> 0
B24: Transport | C24: 0
B25: Arbejdsredskaber m.v. | C25: 0 | G25: H. børn | H25: =Enlig!C17 -> 0 | I25: =IF(H25>0,VLOOKUP(152,HTFsats,I4,FALSE),0) -> 0 | J25: =MAX(VLOOKUP(154,HTFsats,I4,FALSE)*(H25-1),0) -> 0
G26: U. børn | H26: =Enlig!C18+Enlig!C19 -> 0 | I26: =IF(AND(H25=0,H26>0),VLOOKUP(153,HTFsats,I4,FALSE),IF(AND(H26=0,H25=0),VLOOKUP(151,HTFsats,I4,FALSE),0)) -> 3050 | J26: =MAX(VLOOKUP(155,HTFsats,I4,FALSE)*IF(I26=0,H26,(H26-1)),0) -> 0
A27: Feriepenge | C27: 0 | G27: Grænsebeløb | I27: =MAX((I25+I26)-(J25+J26),0) -> 3050
A29: Skattekort | G29: ATP | H29: =IF(Enlig!F60>0,1,0) -> 0
B30: Skattekort fradrag | C30: 0 | D30: pr. måned | G30: Indtægter | H30: =Enlig!C21+Enlig!C23+Enlig!C25+Enlig!C26 -> 0
B31: Trækprocent | C31: 0 | G31: Bruttoydelse | H31: =Enlig!F49 -> 0
G32: ATP | H32: =IF(OR(AND(H25>0,H31>=H49,H29=1),AND(H25=0,H31>=I49,H29=1)),-J49,0) -> 0
A33: Loft for særlig støtte | G33: Bruttoindtægt | H33: =SUM(H30:H32) -> 0
B34: Hidtidig nettoindtægt | C34: 0 | G34: Beregnet skat | H34: =ROUND((H33-C30)*C31,0) -> 0
B35: Antal måneder med hjælp | C35: 0 | G35: Bruttoydelse | H35: =Enlig!I11 -> 0
G36: ATP | H36: =IF(OR(AND(H25>0,H35>=H49,H29=1),AND(H25=0,H35>=I49,H29=1)),-J49,0) -> 0
G37: Beregnet skat | H37: =ROUND((H35+H36-C30)*C31,0) -> 0
G39: 90% Hidtidig nettoindtægt | H39: =C34*0.9 -> 0 | J39: =H39 -> 0
G40: Loft ikke-forsørger - evt. ATP | H40: =I50 -> 15085 | I40: =H40-(ROUND((H40-C30)*C31,0)) -> 15085 | J40: =IF(AND(H25+H26=0,J41=0),I40,0) -> 15085
G41: Loft integrationsydelse | H41: =VLOOKUP(157,HTFsats,I4,FALSE) -> 13498 | I41: =H41-(ROUND((H41-C30)*C31,0)) -> 13498 | J41: =IF(Enlig!I7=3,I41,0) -> 0
B42: Beregning særlig støtte § 34 | G42: Dagpengeloft - ATP | H42: =H46-H47 -> 18677 | I42: =H42-(ROUND((H42-C30)*C31,0)) -> 18677 | J42: =IF(C35>3,I42,0) -> 0
B44: Boligudgift | C44: =H23 -> 0 | G44: =IF(J44=J39,G39,IF(J44=J40,G40,G41)) -> Loft ikke-forsørger - evt. ATP | J44: =MAX(J39,J40,J41) -> 15085
B45: Grænsebeløb | C45: =-I27 -> -3050
B46: Beregnet støtte 1 | E46: =MAX(SUM(C44:C45),0) -> 0 | G46: Dagpenge max | H46: =VLOOKUP(156,HTFsats,I4,FALSE) -> 18866
G47: ATP af dagpenge | H47: =VLOOKUP(158,HTFsats,I4,FALSE) -> 189
B48: Bruttoydelse | C48: =H31 -> 0
B49: Beregnet ATP | C49: =H32 -> 0 | G49: ATP forsørger/ej fors/sats | H49: =VLOOKUP(144,HTFsats,I4,FALSE) -> 15180 | I49: =VLOOKUP(145,HTFsats,I4,FALSE) -> 11423 | J49: =VLOOKUP(141,HTFsats,I4,FALSE) -> 95
B50: Bruttoindtægt | C50: =H30 -> 0 | G50: Loft ej-forsørger m/u ATP | H50: =VLOOKUP(1,HTFsats,I4,FALSE) -> 15180 | I50: =IF(C35>=0,H50-J49,H50) -> 15085
B51: Beregnet skat | C51: =-H34 -> 0
B52: Ikke-skattepligtig indtægt | C52: =Enlig!C27 -> 0
B53: Feriepenge | C53: =C27 -> 0
B54: Transport m.m. | C54: =-(C24+C25) -> 0
B55: Nettoindtægt | D55: =SUM(C48:C54) -> 0
B56: Fastsat bruttoydelse | C56: =H35 -> 0
B57: Beregnet ATP | C57: =H36 -> 0
B58: Beregnet skat | C58: =-H37 -> 0
B59: Nettokontanthjælpsniveau | D59: =SUM(C56:C58) -> 0
B60: Indtægtsoverskud | D60: =MAX(D55-D59,0) -> 0 | E60: =-MIN(E46,D60) -> 0
B61: Beregnet støtte jf. § 5 | E61: =MAX(SUM(E46:E60),0) -> 0
B63: Samlet nettoindtægt | D63: =D55+E61 -> 0
B64: =G44 -> Loft ikke-forsørger - evt. ATP | D64: =J44 -> 15085
B65: Nedsættelse jf. § 6 | D65: =MAX(D63-D64,0) -> 0 | E65: =-MIN(D65,E61) -> 0
B66: Beregnet støtte jf. § 6 | E66: =SUM(E61:E65) -> 0
B67: Dagpengeloft | D67: =J42 -> 0
B68: Nedsættelse jf. § 7 | D68: =IF(D67>0,MAX((D63-D65)-D67,0),0) -> 0 | E68: =-MIN(D68,E66) -> 0
B69: Beregnet særlig støtte | E69: =E66+E68 -> 0
B71: Ikke tilbagebetalingspligtig hjælp | E71: =E69-E72 -> 0
B72: Tilbagebetalingspligtig jf. § 92, stk. 1 | E72: =MIN(H22-I23,E69) -> 0

Sheet Ægtefælle 1
B2: Kontanthjælp, uddannelseshjælp og integrationsydelse/SHOY | H2: Mellemregninger
H3: Fra - til / § | I3: =DATE(D4,I4,MAX(C5,1)) -> 2019-11-01 | J3: =DATE(D4,I4,MIN(D5,I5)) -> 2019-11-30 | K3: =IF(D4<2020,2,3) -> 2 | O3: Input til KY
B4: Måned /år | C4: November | D4: 2019 | H4: måned/år/kolonne | I4: =VLOOKUP(C4,Måneder,2,FALSE) -> 11 | J4: =VLOOKUP(I4,måned_år,VLOOKUP(D4,Tabel14[],2,FALSE),FALSE) -> 2019 | K4: =VLOOKUP(J4,Tabel26[[Kolonne1]:[kolonne]],2,FALSE) -> 12
B5: Dag - fra-til | H5: måned/periode/-afbrydelse | I5: =VLOOKUP(C4,Tabel211[],D4-2012,FALSE) -> 30 | J5: =J3-I3+1 -> 30 | K5: =J5-C6 -> 30 | P5: Resultat fra KMD Aktiv | Q5: Resultat fra Ny beregning | R5: Indberetning til KY
B6: Midlertidig afbrydelse | C6: 0 | H6: Satsvalg | I6: =(I7&J14&J18&J17&J15&J16)+0 -> 0 | J6: =VLOOKUP(I6,Satsmap_1,2,FALSE) -> 0 | K6: =VLOOKUP(J6,Satsmap,2,FALSE) -> 0
A7: Person | H7: Bevilling | I7: =VLOOKUP(C8,Bevilling,2,FALSE) -> 0 | J7: Grundsats | K7: =VLOOKUP(K6,Alle_sats,K4,FALSE) -> 0
B8: Bevilling | C8: Vælg | H8: Tillæg / reduktion dansktil | I8: =VLOOKUP(C9,Tillæg,2,FALSE) -> 0 | J8: =IF(OR(I8=0,AND(I7=3,I8=1),AND(I7<3,I8=2)),0,VLOOKUP(J6,Satsmap,3,FALSE)) -> 0 | K8: =VLOOKUP(J8,Alle_sats,K4,FALSE) -> 0 | O8: Bruttoydelse | Q8: =F59 -> 0 | R8: =Q8-P8 -> 0
B9: Tillæg | C9: Nej | H9: Ydelse i alt | J9: =K7+K8+L8 -> 0 | K9: =K7+K8+K21 -> 0 | O9: ATP egen andel | Q9: =F62 -> 0 | R9: =Q9-P9 -> 0
B10: - Fiktivt niveau integrationsydelse | C10: Vælg | H10: Fiktivt niveau | I10: =IF(AND(I12=0,I7<3),0,IF(I12=3,3,VLOOKUP(C10,Fiktivt_niveau,2,FALSE))) -> 0 | J10: =IF(I7=3,VLOOKUP(C10,Fiktivt_niveau,3,FALSE),IF(I10=3,'Ægtefælle 2'!I8,0)) -> 0 | K10: =IF(I10>0,(I10&K14&K18&K17&K15&K16)+0,0) -> 0 | L10: =VLOOKUP(K10,Satsmap_1,2,FALSE) -> 0 | O10: ATP kommuneandel | Q10: =F63 -> 0 | R10: =Q10-P10 -> 0
H11: Fiktiv grund/akt.tllæg | I11: =VLOOKUP(L10,Satsmap,2,FALSE) -> 0 | J11: =VLOOKUP(I11,Alle_sats,K4,FALSE) -> 0 | K11: =IF(J10>0,VLOOKUP(L10,Satsmap,3,FALSE),0) -> 0 | L11: =VLOOKUP(K11,Alle_sats,K4,FALSE) -> 0 | O11: Periode fra | Q11: =I3 -> 2019-11-01 | R11: =I3 -> 2019-11-01
B12: Alder | C12: Vælg | H12: Ægtefælle/dansktillæg reduktion | I12: =IF(AND(I7<3,'Ægtefælle 2'!I7=3,I17>1),3,0) -> 0 | J12: =J11+L11 -> 0 | K12: =IF(I12=3,K9-'Ægtefælle 2'!K9,0) -> 0 | L12: =IF(K9>J12,IF(I10=0,0,K9-MAX(J12,K12)),0) -> 0 | O12: Periode til | Q12: =J3 -> 2019-11-30 | R12: =J3 -> 2019-11-30
B13: Bosted person | C13: Vælg | H13: Ægtefællereduktion korrigeret for indtægt | I13: =K9-L12-E47-E48 -> 0 | J13: ='Ægtefælle 2'!I13 -> 0 | K13: =IF(OR(I13<0,J13<0),0,IF(I12=3,1,0)) -> 0 | L13: =IF(I7=3,K7,IF(I10=3,MIN(K9,J11),0)) -> 0 | O13: Tilbagebetaling sanktion | Q13: =F60 ->  | R13: =IF(Q13=" "," ",Q13-P13) -> 
B14: Gravid / psykisk lidelse | C14: Nej | H14: Alder | I14: =VLOOKUP(C12,Tabel8[],2,FALSE) -> 0 | J14: =IF(AND(I7=3,J18=2),3,IF(AND(I7=3,I14<3),2,IF(AND(I14<3,J18=2),2,IF(AND(I14<3,I16=1),2,IF(AND(I14<3,I16=2,I15=2),2,I14))))) -> 0 | K14: =IF(AND(I10=3,K18=2),3,IF(AND(I10=3,I14<3),2,IF(AND(I14<3,K18=2),2,IF(AND(I14<3,I16=1),2,IF(AND(I14<3,I16=2,I15=2),2,I14))))) -> 0 | O14: Tilbagebetalingsparagraf | Q14: =IF(I42>0,K42," ") ->  | R14: =Q14 -> 
B15: Enlig/samlevende/gift | C15: Vælg | H15: bosted | I15: =IFERROR(VLOOKUP(C13,Tabel12[],2,FALSE),0) -> 0 | J15: =IF(OR(I14=3,J16=1,J18=2),0,I15) -> 0 | K15: =IF(OR(I14=3,K16=1,K18=2),0,I15) -> 0 | O15: Tilbagebetalingspligt
A16: Børn | H16: unge opl. | I16: =VLOOKUP(C14,Ungekode,2,FALSE) -> 0 | J16: =IF(OR(I14=3,I7=3),0,IF(AND(I16=1,J18=2,I17=1),0,IF(AND(I8=1,J18=2),0,I16))) -> 0 | K16: =IF(OR(I14=3,I10=3),0,IF(AND(I16=1,K18=2,I17=1),0,I16)) -> 0 | O16: Tilbagebetalingsparagraf
B17: Antal hjemmeboende | C17: 0 | H17: Samliv | I17: =VLOOKUP(C15,Samliv,2,FALSE) -> 0 | J17: =IF(J18=0,0,IF(AND(I7=1,I14=3),0,IF(AND(I7<3,I16=2),0,IF(I17>1,0,I17)))) -> 0 | K17: =IF(K18=0,0,IF(AND(I10=1,I14=3),0,IF(AND(I10<3,I16=2),0,IF(I17>1,0,I17)))) -> 0
B18: Antal udeboende børn med bidrag | C18: 0 | H18: Forsørger | I18: =IF(C17>0,2,IF(C18+C19>0,1,0)) -> 0 | J18: =IF(I18=2,2,IF(AND(I7=3,I18<2),0,IF(AND(I14=3,I18>0),2,IF(AND(I16=2,I18>0),2,0)))) -> 0 | K18: =IF(I18=2,2,IF(AND(I10=3,I18<2),0,IF(AND(I14=3,I18>0),2,IF(AND(I16=2,I18>0),2,0)))) -> 0 | O18: Kontanthjælploft | Q18: =C66 ->  | R18: =F66 -> 0
B19: Antal udeboende børn uden bidrag | C19: 0 | H19: Fiktivt bidrag | I19: =IF(AND(J15>0,C18>0),1,0) -> 0 | K19: =J20*C18*I19 -> 0 | O19: Hjælpsbeløb | R19: =F51 -> 0
A20: Indtægt | H20: bidrag | I20: =IF(I7=3,0,IF(AND(J15>0,C18>0),1,0)) -> 0 | J20: =VLOOKUP(12,Alle_sats,K4,FALSE) -> 1387 | K20: =J20*C18*I20 -> 0 | O20: fradragsfri indtægt | R20: =E48 -> 0
B21: Arbejdsindtægt i måneden | C21: 0 | H21: nedsat bidrag | I21: =IF(I7=1,12,IF(I7=2,60,0)) -> 0 | J21: =VLOOKUP(1,Alle_sats,K4,FALSE) -> 15180 | K21: =MAX(MIN(K20,J21-K8-K7),0) -> 0 | O21: 225-timers sanktion | R21: =E52 -> 0
B22: - Arbejdstimer i måneden | C22: 0 | O22: Øvrige sanktioner | R22: =E58-E52 -> 0
B23: Arbejdsindtægt ukendt arbejdstid | C23: 0 | H23: Timer i alt/sats timefradrag | I23: =ROUND(C22+C24,2) -> 0 | J23: =VLOOKUP(121,Alle_sats,K4,FALSE) -> 27.32 | K23: =VLOOKUP(122,HTFsats,K4,FALSE) -> 241.73 | O23: Særlig støtte
B24: - Beregnet timetal | C24: =C23/K23 -> 0 | H24: indtægtsoverskud | I24: =MAX(E47+E48-F46,0) -> 0 | O24: Særlig støtte | R24: ='SÆS - ægtepar'!C79 -> 0
B25: Anden bruttoydelse | C25: 0 | O25: Særlig støtte - terminshjælp | R25: ='SÆS - ægtepar'!C80 -> 0
B26: Anden skattepligtig indtægt | C26: 0 | H26: 225-timer - enlig | I26: =VLOOKUP(IF(I18>0,134,133),Alle_sats,K4,FALSE) -> 11423 | J26: =IF(AND(I27=1,NOT(I10=3)),IF(L26=1,131,IF(OR(I7=1,I8=1,J6="23.2.3"),132,0)),0) -> 0 | K26: =VLOOKUP(J26,Alle_sats,K4,FALSE) -> 0 | L26: =IF(AND(K7+K8>=I26),1,0) -> 0
B27: Ikke skattepligtig indtægt | C27: 0 | H27: Nedsættelse | I27: =IF(K4>6,VLOOKUP(C29,timeregel,2,FALSE),0) -> 0 | J27: =IF(AND(I27=2,I17=3,'Ægtefælle 2'!I27=0),IF(OR(I7=3,I10=3),8,IF(AND(L26=1,'Ægtefælle 2'!L26=1),5,7)),0) -> 0
A28: Sanktioner | H28: Beregnet nedættelse 5/7/8 | I28: =IF(J27=5,K9,0) -> 0 | J28: =MAX(IF(J27=7,J9+'Ægtefælle 2'!J9-'Ægtefælle 2'!I26,0),0) -> 0 | K28: =IF(L13+'Ægtefælle 2'!L13>='Ægtefælle 2'!I26,MAX(L13-('Ægtefælle 2'!I26-'Ægtefælle 2'!L13),0),0) -> 0 | L28: =IF(K26>0,K26,IF(J27=5,I28,IF(J27=7,J28,IF(J27=8,K28,0)))) -> 0 | N28: Noter
B29: 225-timers regel | C29: Nej
B30: Periode sanktion (§§ 36-38) antal dage | C30: 0 | H30: Sanktioner | I30: fradragspct. | J30: =IF(K4<13,ROUND(F51/MAX(E41+E42+E43,1),4),0) -> 0 | K30: =IF(J30>0,J30," ") -> 
B31: Punktsanktion (§§ 39-40) | C31: Nej | H31: Periodesanktion | I31: grundsats | J31: =VLOOKUP(J6,Satsmap,4,FALSE) -> 0 | K31: =VLOOKUP(J31,Alle_sats,K4,FALSE) -> 0
B32: 40a - dage uden hjælp | C32: 0 | I32: tillæg | J32: =IF(I8>0,VLOOKUP(J6,Satsmap,5,FALSE),0) -> 0 | K32: =VLOOKUP(J32,Alle_sats,K4,FALSE) -> 0
B33: Sanktion uberettiget hjælp §§ 42-43 | C33: Vælg
B34: §§ 42-43 antal dage | C34: 0 | H34: Punktsanktion | I34: grundsats | J34: =VLOOKUP(J6,Satsmap,6,FALSE) -> 0 | K34: =VLOOKUP(J34,Alle_sats,K4,FALSE) -> 0
B35: Manuel sanktion | C35: 0 | I35: tillæg | J35: =IF(I8>0,VLOOKUP(J6,Satsmap,7,FALSE),0) -> 0 | K35: =VLOOKUP(J35,Alle_sats,K4,FALSE) -> 0
A36: ATP
B37: Antal måneder med hjælp | C37: 0 | H37: Sanktion 2020 | I37: =E41+E42+E43 -> 0 | J37: =IF(K4>11,IF(I37>I38,J38,IF(I37>I39,J39,IF(I37>I40,J40,J41))),0) -> 0 | K37: =3*J37 -> 0
I38: =VLOOKUP(301,HTFsats,K4,FALSE) -> 0 | J38: =VLOOKUP(305,HTFsats,K4,FALSE) -> 0
B39: ="Beregning af "&C8 -> Beregning af Vælg | D39: =I3 -> 2019-11-01 | E39: =J3 -> 2019-11-30 | F39: =K5&" af "&I5&" dage" -> 30 af 30 dage | I39: =VLOOKUP(302,HTFsats,K4,FALSE) -> 0 | J39: =VLOOKUP(306,HTFsats,K4,FALSE) -> 0
I40: =VLOOKUP(303,HTFsats,K4,FALSE) -> 0 | J40: =VLOOKUP(307,HTFsats,K4,FALSE) -> 0
B41: =C8 -> Vælg | C41: =VLOOKUP(K6,HTFsats,3,FALSE) -> - | E41: =K7 -> 0 | I41: 0 | J41: =VLOOKUP(308,HTFsats,K4,FALSE) -> 0
B42: =IF(J8>0,C9," - ") -> - | C42: =VLOOKUP(J8,HTFsats,3,FALSE) -> - | E42: =K8 -> 0 | H42: 1/3 sanktion | I42: =IF(C34>0,IF(I43>=J43,42,43),0) -> 0 | J42: =VLOOKUP(C33,pgf42_43,2,FALSE) -> 0 | K42: ="§ "&I42 -> § 0
B43: =IF(I12=3," Ægtefællereduktion jf. § 26, stk.2",IF(L8>0," Reduktion dansktillæg"," ")) ->  | E43: =IF(AND(I10>0,K13=1),-L12,0) -> 0 | H43: Ydelse/grænsebeløb/periode ydelse/nedsættelse | I43: =K7+K8-L8 -> 0 | J43: =VLOOKUP(47,HTFsats,K4,FALSE) -> 11423 | K43: =F46*C34/K5 -> 0 | L43: =IF(I42=42,K43/3,IF(AND(I42=43,J42=4),K37,0)) -> 0
B44: =IF(K21>0,"Bidragstillæg"," ") ->  | C44: =IF(K21>0,VLOOKUP(I21,HTFsats,3,FALSE)," ") ->  | D44: =IF(K33>0,K33," ") ->  | E44: =K21 -> 0 | H44: Tilbagebetaling (1+2/3/4+5) | I44: =IF(AND(J42<3,I42=43),K43/3,0) -> 0 | J44: =IF(J42=3,K43-L43,0) -> 0 | K44: =IF(J42>3,K43-L43,0) -> 0 | L44: =MAX(I44,J44,K44) -> 0
B45: =IF(I27=2,"Nedsættelse 225-timer"," ") ->  | C45: =IF(AND(I27=2,J27>0),"§ 26, stk. "&J27," ") ->  | E45: =IF(I27=2,-L28,0) -> 0
B46: =C8&" inkl. tillæg" -> Vælg inkl. tillæg | D46: =K5&" / "&I5&" af " -> 30 / 30 af | E46: =SUM(E41:E45) -> 0 | F46: =E46*K5/I5 -> 0 | H46: ATP grænse forsørger/ ikke-forsørger | I46: =VLOOKUP(144,HTFsats,K4,FALSE) -> 15180 | J46: =VLOOKUP(145,HTFsats,K4,FALSE) -> 11423 | K46: =IF(I18>0,I46,J46) -> 11423
B47: Indtægt i alt | E47: =C21+C23+C25+C26+C27 -> 0 | H47: ATP-sats egen / kommune | I47: =VLOOKUP(141,HTFsats,K4,FALSE) -> 95 | J47: =VLOOKUP(142,HTFsats,K4,FALSE) -> 189
B48: Timefradrag | C48: =IF(I23>0,I23&" timer á", " ") ->  | D48: =IF(I23>0,J23," ") ->  | E48: =-I23*J23 -> 0 | H48: OP-bidrag | I48: =VLOOKUP(143,HTFsats,K4,FALSE) -> 0
B49: Indtægt overført fra ægtefælle | E49: =IF(I17=3,'Ægtefælle 2'!I24,0) -> 0
B50: Indtægtsfradrag | E50: =SUM(E47:E49) -> 0 | F50: =-MIN(MAX(E50,0),F46) -> 0 | H50: Kontanthjælpsloft
B51: ="Hjælpsbeløb"&IF(OR(I8=2,J11=2)," + dansktillæg"," ") -> Hjælpsbeløb | F51: =MAX(SUM(F46:F50),0) -> 0 | H51: Grænsebeløb stk.1/stk.5 | I51: =VLOOKUP(1,HTFsats,K4,FALSE) -> 15180 | J51: =VLOOKUP(2,HTFsats,K4,FALSE) -> 11423 | K51: =IF(OR(AND(F46>=I51,I18>0),AND(F46>=J51,I18=0)),1,0) -> 0 | L51: =IF('Ægtefælle 2'!J27=8,IF(K4<10,5,7),IF(J27=8,IF(K4<10,6,8),0)) -> 0
B52: =IF(K4>6," Nedsættelse 225-timer, enlig"," ") -> Nedsættelse 225-timer, enlig | C52: =IF(K26>0,VLOOKUP(J26,Alle_sats,3,FALSE)," ") ->  | E52: =IF(I27=1,K26,0) -> 0 | H52: Stk. 2,3,4/valgt stk. | I52: =IF(AND(K51=0,I7=1,I10=0),2,0) -> 0 | J52: =IF(AND(K51=0,I7=2,I10=0),3,0) -> 0 | K52: =IF(AND(K51=0,OR(I7=3,I10=3)),IF(K4>9,4,3),0) -> 0 | L52: =IF(K4>6,MAX(K51,I52,J52,K52,L51),0) -> 0
B53: Periodesanktioner §§ 36-38 | C53: =IF(AND(C30>0,F51>0),IF(K4<13,("("&K31&" + "&K32&") * "&C30&" * "),J37&" * "&C30)," ") ->  | D53: =IF(C30> 0,K30," ") ->  | E53: =IF(AND(C30>0,F51>0),IF(K4<13,ROUND((K31+K32)*C30*K30,2),C30*J37),0) -> 0 | H53: Samliv/ antal børn | I53: =VLOOKUP(C15,Samliv,3,FALSE) -> 0 | J53: =IF(AND(C17+C18+C19>1,L52=1,I53=2),1,IF(C17+C18+C19>=2,2,C17+C18+C19)) -> 0 | K53: =IF(AND(L52>0,I53>0),L52&I53&J53,0)-0 -> 0
B54: Punktsanktion §§ 39-40 | C54: =IF(K4<13,IF(AND(C31="Ja",F51>0),"("&K34&" + "&K35&") * "," ")," ") ->  | D54: =IF(C31="Ja",K30," ") ->  | E54: =IF(AND(C31="Ja",F51>0),IF(K4<13,ROUND((K34+K35)*K30,2),K37),0) -> 0 | H54: Loft sats | I54: =VLOOKUP(K53,Loftmap,2,FALSE) -> 0 | J54: =VLOOKUP(I54,HTFsats,3,FALSE) -> -
B55: § 40 a - udeblivelser | C55: =IF(C32>0,C32&"/"&I5&" af "," ") ->  | D55: =IF(C32>0,F46," ") ->  | E55: =F46*C32/I5 -> 0
B56: =IF(I42>0," Sanktion uberettiget hjælp § "&I42," Sanktion uberettiget hjælp §§ 42-43 ") -> Sanktion uberettiget hjælp §§ 42-43 | C56: =IF(I42=42,C34&"/"&K5&" * 1/3 *"," ") ->  | D56: =IF(I42=42,F51," ") ->  | E56: =L43 -> 0
B57: Manuel sanktion | E57: =C35 -> 0
B58: Sanktioner i alt | E58: =SUM(E52:E57) -> 0 | F58: =-MIN(E58,F51) -> 0
B59: Bruttoydelse | F59: =SUM(F51:F58) -> 0 | H59: Fejl | I59: =IF(AND(I7=2,I14=3),1,IF(AND(I7<3,I8=2),2,IF(AND(I7=3,I8=1),3,IF(AND(I7=3,I4<9,D4=2015),4,)))) -> 0
B60: =IF(I42>0,"Tilbagebetalingspligtig sanktion jf. § "&I42," ") ->  | C60: =IF(L44>0,C34&"/"&K5&" af"," ") ->  | D60: =IF(L44>0,F51-E56," ") ->  | F60: =IF(I42>0,MIN(L44,F59)," ") -> 
B62: ATP egen andel | F62: =IF(AND(F59>=K46,C37>=12),I47*K5/I5,0) -> 0
B63: ATP kommuneandel | F63: =IF(AND(F59>=K46,C37>=12),J47*K5/I5,0) -> 0
B64: OP-bidrag | F64: =IF(I7<3,ROUND((F59-F62)*I48,0),0) -> 0
I65: =TEXT(K26,"%") -> %
B66: Kontanthjælpsloft | C66: =IF(I54>0,VLOOKUP(I54,HTFsats,3,FALSE)," ") ->  | F66: =VLOOKUP(I54,HTFsats,K4,FALSE) -> 0

Sheet Ægtefælle 2
B2: Kontanthjælp, uddannelseshjælp og integrationsydelse/SHOY | H2: Mellemregninger | K2: ='Ægtefælle 1'!C5 -> 0 | L2: ='Ægtefælle 1'!D5 -> 0
H3: Fra - til / § | I3: ='Ægtefælle 1'!I3 -> 2019-11-01 | J3: ='Ægtefælle 1'!J3 -> 2019-11-30 | K3: =IF(D4<2020,2,3) -> 2 | O3: Input til KY
B4: Måned /år | C4: ='Ægtefælle 1'!C4 -> November | D4: ='Ægtefælle 1'!D4 -> 2019 | H4: måned/år/kolonne | I4: =VLOOKUP(C4,Måneder,2,FALSE) -> 11 | J4: =VLOOKUP(I4,måned_år,VLOOKUP(D4,Tabel14[],2,FALSE),FALSE) -> 2019 | K4: =VLOOKUP(J4,Tabel26[[Kolonne1]:[kolonne]],2,FALSE) -> 12
B5: Dag - fra-til | C5: =IF(K2>0,'Ægtefælle 1'!C5," ") ->  | D5: =IF(L2>0,'Ægtefælle 1'!D5," ") ->  | H5: måned/periode/-afbrydelse | I5: =VLOOKUP(C4,Tabel211[],D4-2012,FALSE) -> 30 | J5: =J3-I3+1 -> 30 | K5: =J5-C6 -> 30 | P5: Resultat fra KMD Aktiv | Q5: Resultat fra Ny beregning | R5: Indberetning til KY
B6: Midlertidig afbrydelse | C6: 0 | H6: Satsvalg | I6: =(I7&J14&J18&J17&J15&J16)+0 -> 0 | J6: =VLOOKUP(I6,Satsmap_1,2,FALSE) -> 0 | K6: =VLOOKUP(J6,Satsmap,2,FALSE) -> 0
A7: Person | H7: Bevilling | I7: =VLOOKUP(C8,Bevilling,2,FALSE) -> 0 | J7: Grundsats | K7: =VLOOKUP(K6,Alle_sats,K4,FALSE) -> 0
B8: Bevilling | C8: Vælg | H8: Tillæg / reduktion dansktil | I8: =VLOOKUP(C9,Tillæg,2,FALSE) -> 0 | J8: =IF(OR(I8=0,AND(I7=3,I8=1),AND(I7<3,I8=2)),0,VLOOKUP(J6,Satsmap,3,FALSE)) -> 0 | K8: =VLOOKUP(J8,Alle_sats,K4,FALSE) -> 0 | O8: Bruttoydelse | Q8: =F59 -> 0 | R8: =Q8-P8 -> 0
B9: Tillæg | C9: Nej | H9: Ydelse i alt | J9: =K7+K8+L8 -> 0 | K9: =K7+K8+K21 -> 0 | O9: ATP egen andel | Q9: =F62 -> 0 | R9: =Q9-P9 -> 0
B10: - Fiktivt niveau integrationsydelse | C10: Vælg | H10: Fiktivt niveau | I10: =IF(AND(I12=0,I7<3),0,IF(I12=3,3,VLOOKUP(C10,Fiktivt_niveau,2,FALSE))) -> 0 | J10: =IF(I7=3,VLOOKUP(C10,Fiktivt_niveau,3,FALSE),IF(I10=3,'Ægtefælle 1'!J8,0)) -> 0 | K10: =IF(I10>0,(I10&K14&K18&K17&K15&K16)+0,0) -> 0 | L10: =VLOOKUP(K10,Satsmap_1,2,FALSE) -> 0 | O10: ATP kommuneandel | Q10: =F63 -> 0 | R10: =Q10-P10 -> 0
H11: Fiktiv grund/akt.tllæg | I11: =VLOOKUP(L10,Satsmap,2,FALSE) -> 0 | J11: =VLOOKUP(I11,Alle_sats,K4,FALSE) -> 0 | K11: =IF(J10>0,VLOOKUP(L10,Satsmap,3,FALSE),0) -> 0 | L11: =VLOOKUP(K11,Alle_sats,K4,FALSE) -> 0 | O11: Periode fra | Q11: =I3 -> 2019-11-01 | R11: =I3 -> 2019-11-01
B12: Alder | C12: Vælg | H12: Dasktillæg/Ægtefælle reduktion | I12: =IF(AND(I7<3,'Ægtefælle 1'!I7=3,I17>1),3,0) -> 0 | J12: =J11+L11 -> 0 | K12: =IF(I12=3,K9-'Ægtefælle 1'!K9,0) -> 0 | L12: =MAX(K9-MAX(J12,K12),0) -> 0 | O12: Periode til | Q12: =J3 -> 2019-11-30 | R12: =J3 -> 2019-11-30
B13: Bosted person | C13: Vælg | H13: Ægtefællereduktion korrigeret for indtægt | I13: =K9-L12-E47-E48 -> 0 | J13: ='Ægtefælle 1'!I13 -> 0 | K13: =IF(OR(I13<0,J13<0),0,IF(I12=3,1,0)) -> 0 | L13: =IF(I7=3,K7,IF(I10=3,MIN(K9,J11),0)) -> 0 | O13: Tilbagebetaling sanktion | Q13: =F60 ->  | R13: =IF(Q13=" "," ",Q13-P13) -> 
B14: Gravid / psykisk lidelse | C14: Nej | H14: Alder | I14: =VLOOKUP(C12,Tabel8[],2,FALSE) -> 0 | J14: =IF(AND(I7=3,J18=2),3,IF(AND(I7=3,I14<3),2,IF(AND(I14<3,J18=2),2,IF(AND(I14<3,I16=1),2,IF(AND(I14<3,I16=2,I15=2),2,I14))))) -> 0 | K14: =IF(AND(I10=3,K18=2),3,IF(AND(I10=3,I14<3),2,IF(AND(I14<3,K18=2),2,IF(AND(I14<3,I16=1),2,IF(AND(I14<3,I16=2,I15=2),2,I14))))) -> 0 | O14: Tilbagebetalingsparagraf | Q14: =IF(I44>0,K44," ") ->  | R14: =Q14 -> 
B15: Enlig/samlevende | C15: ='Ægtefælle 1'!C15 -> Vælg | H15: bosted | I15: =IFERROR(VLOOKUP(C13,Tabel12[],2,FALSE),0) -> 0 | J15: =IF(OR(I14=3,J16=1,J18=2),0,I15) -> 0 | K15: =IF(OR(I14=3,K16=1,K18=2),0,I15) -> 0 | O15: Tilbagebetalingspligt
A16: Børn | H16: unge opl. | I16: =VLOOKUP(C14,Ungekode,2,FALSE) -> 0 | J16: =IF(OR(I14=3,I7=3),0,IF(AND(I16=1,J18=2,I17=1),0,IF(AND(I8=1,J18=2),0,I16))) -> 0 | K16: =IF(OR(I14=3,I10=3),0,IF(AND(I16=1,K18=2,I17=1),0,I16)) -> 0 | O16: Tilbagebetalingsparagraf
B17: Antal hjemmeboende | C17: 0 | H17: Samliv | I17: =VLOOKUP(C15,Samliv,2,FALSE) -> 0 | J17: =IF(J18=0,0,IF(AND(I7=1,I14=3),0,IF(AND(I7<3,I16=2),0,IF(I17>1,0,I17)))) -> 0 | K17: =IF(K18=0,0,IF(AND(I10=1,I14=3),0,IF(AND(I10<3,I16=2),0,IF(I17>1,0,I17)))) -> 0
B18: Antal udeboende børn med bidrag | C18: 0 | H18: Forsørger | I18: =IF(C17>0,2,IF(C18+C19>0,1,0)) -> 0 | J18: =IF(I18=2,2,IF(AND(I7=3,I18<2),0,IF(AND(I14=3,I18>0),2,IF(AND(I16=2,I18>0),2,0)))) -> 0 | K18: =IF(I18=2,2,IF(AND(I10=3,I18<2),0,IF(AND(I14=3,I18>0),2,IF(AND(I16=2,I18>0),2,0)))) -> 0 | O18: Kontanthjælploft | Q18: =C66 ->  | R18: =F66 -> 0
B19: Antal udeboende børn uden bidrag | C19: 0 | H19: Fiktivt bidrag | I19: =IF(AND(J15>0,C18>0),1,0) -> 0 | K19: =J20*C18*I19 -> 0 | O19: Hjælpsbeløb | R19: =F51 -> 0
A20: Indtægt | H20: bidrag | I20: =IF(I7=3,0,IF(AND(J15>0,C18>0),1,0)) -> 0 | J20: =VLOOKUP(12,Alle_sats,K4,FALSE) -> 1387 | K20: =J20*C18*I20 -> 0 | O20: fradragsfri indtægt | R20: =E48 -> 0
B21: Arbejdsindtægt i måneden | C21: 0 | H21: nedsat bidrag | I21: =IF(I7=1,12,IF(I7=2,60,0)) -> 0 | J21: =VLOOKUP(1,Alle_sats,K4,FALSE) -> 15180 | K21: =MAX(MIN(K20,J21-K8-K7),0) -> 0 | O21: 225-timers sanktion | R21: =E52 -> 0
B22: - Arbejdstimer i måneden | C22: 0 | O22: Øvrige sanktioner | R22: =E58-E52 -> 0
B23: Arbejdsindtægt ukendt arbejdstid | C23: 0 | H23: Timer i alt/sats timefradrag | I23: =ROUND(C22+C24,2) -> 0 | J23: =VLOOKUP(121,Alle_sats,K4,FALSE) -> 27.32 | K23: =VLOOKUP(122,HTFsats,K4,FALSE) -> 241.73 | O23: Særlig støtte
B24: - Beregnet timetal | C24: =C23/K23 -> 0 | H24: Intægtsoverskud | I24: =MAX(E47+E48-F46,0) -> 0 | O24: Særlig støtte | R24: ='SÆS - ægtepar'!D79 -> 0
B25: Anden bruttoydelse | C25: 0 | O25: Særlig støtte - terminshjælp | R25: ='SÆS - ægtepar'!D80 -> 0
B26: Anden skattepligtig indtægt | C26: 0 | H26: 225-timer | I26: =VLOOKUP(IF(I18>0,134,133),Alle_sats,K4,FALSE) -> 11423 | J26: =IF(AND(I27=1,NOT(I10=3)),IF(L26=1,131,IF(OR(I7=1,I8=1,J6="23.2.3"),132,0)),0) -> 0 | K26: =VLOOKUP(J26,Alle_sats,K4,FALSE) -> 0 | L26: =IF(J9>=I26,1,0) -> 0
B27: Ikke skattepligtig indtægt | C27: 0 | H27: Nedsættelse | I27: =VLOOKUP(C29,timeregel,2,FALSE) -> 0 | J27: =IF(AND(I27=2,I17=3),(IF(OR(I7=3,I10=3),8,IF(AND(L26=1,'Ægtefælle 1'!L26=1),5,7))),0) -> 0
A28: Sanktioner | H28: Beregnet nedættelse 5/7/8 | I28: =IF(J27=5,K9,0) -> 0 | J28: =MAX(IF(J27=7,J9+'Ægtefælle 1'!J9-'Ægtefælle 1'!I26,0),0) -> 0 | K28: =IF(L13+'Ægtefælle 1'!L13>='Ægtefælle 1'!I26,MAX('Ægtefælle 1'!L13-(I26-'Ægtefælle 1'!L13),0),0) -> 0 | L28: =IF(K26>0,K26,IF(J27=5,I28,IF(J27=7,J28,IF(J27=8,K28,0)))) -> 0 | N28: Noter
B29: 225-timers regel | C29: Nej
B30: Periode sanktion (§§ 36-38) antal dage | C30: 0 | H30: Sanktioner | I30: fradragspct. | J30: =IF(K4<13,ROUND(F51/MAX(E41+E42,1),4),0) -> 0 | K30: =IF(J30>0,J30," ") -> 
B31: Punktsanktion (§§ 39-40) | C31: Nej | H31: Periodesanktion | I31: grundsats | J31: =VLOOKUP(J6,Satsmap,4,FALSE) -> 0 | K31: =VLOOKUP(J31,Alle_sats,K4,FALSE) -> 0
B32: 40a - dage uden hjælp | C32: 0 | I32: tillæg | J32: =IF(I8>0,VLOOKUP(J6,Satsmap,5,FALSE),0) -> 0 | K32: =VLOOKUP(J32,Alle_sats,K4,FALSE) -> 0
B33: Sanktion uberettiget hjælp §§ 42-43 | C33: Vælg
B34: §§ 42-43 antal dage | C34: 0 | H34: Punktsanktion | I34: grundsats | J34: =VLOOKUP(J6,Satsmap,6,FALSE) -> 0 | K34: =VLOOKUP(J34,Alle_sats,K4,FALSE) -> 0
B35: Manuel sanktion | C35: 0 | I35: tillæg | J35: =IF(I8>0,VLOOKUP(J6,Satsmap,7,FALSE),0) -> 0 | K35: =VLOOKUP(J35,Alle_sats,K4,FALSE) -> 0
A36: ATP
B37: Antal måneder med hjælp | C37: 0
B39: ="Beregning af "&C8 -> Beregning af Vælg | D39: =I3 -> 2019-11-01 | E39: =J3 -> 2019-11-30 | F39: =K5&" af "&I5&" dage" -> 30 af 30 dage | H39: Sanktion 2020 | I39: =E41+E42+E43 -> 0 | J39: =IF(K4>11,IF(I39>I40,J40,IF(I39>I41,J41,IF(I39>I42,J42,J43))),0) -> 0 | K39: =3*J39 -> 0
I40: =VLOOKUP(301,HTFsats,K4,FALSE) -> 0 | J40: =VLOOKUP(305,HTFsats,K4,FALSE) -> 0
B41: =C8 -> Vælg | C41: =VLOOKUP(K6,HTFsats,3,FALSE) -> - | E41: =K7 -> 0 | I41: =VLOOKUP(302,HTFsats,K4,FALSE) -> 0 | J41: =VLOOKUP(306,HTFsats,K4,FALSE) -> 0
B42: =IF(J8>0,C9," - ") -> - | C42: =VLOOKUP(J8,HTFsats,3,FALSE) -> - | E42: =K8 -> 0 | I42: =VLOOKUP(303,HTFsats,K4,FALSE) -> 0 | J42: =VLOOKUP(307,HTFsats,K4,FALSE) -> 0
B43: =IF(AND(L12>0,I7=3)," Reduktion dansktillæg",IF(AND(I10=3,L12>0)," Ægtefællereduktion § 26, stk. 2"," ")) ->  | C43: =IF(L8>0,K7+K8," ") ->  | E43: =IF(AND(I10>0,K13=1),-L12,0) -> 0 | I43: 0 | J43: =VLOOKUP(308,HTFsats,K4,FALSE) -> 0
B44: =IF(K21>0,"Bidragstillæg"," ") ->  | C44: =IF(K21>0,VLOOKUP(I21,HTFsats,3,FALSE)," ") ->  | D44: =IF(K33>0,K33," ") ->  | E44: =K21 -> 0 | H44: 1/3 sanktion | I44: =IF(C34>0,IF(I45>=J45,42,43),0) -> 0 | J44: =VLOOKUP(C33,pgf42_43,2,FALSE) -> 0 | K44: ="§ "&I44 -> § 0
B45: =IF(I27=2,"Nedsættelse 225-timer"," ") ->  | C45: =IF(AND(I27=2,J27>0),"§ 26, stk. "&J27," ") ->  | E45: =IF(I27=2,-L28,0) -> 0 | H45: Ydelse/grænsebeløb/periode ydelse/nedsættelse | I45: =K7+K8-L8 -> 0 | J45: =VLOOKUP(47,HTFsats,K4,FALSE) -> 11423 | K45: =F46*C34/K5 -> 0 | L45: =IF(I44=42,K45/3,IF(AND(I44=43,J44=4),K39,0)) -> 0
B46: =C8&" inkl. tillæg" -> Vælg inkl. tillæg | D46: =K5&" / "&I5&" af " -> 30 / 30 af | E46: =SUM(E41:E45) -> 0 | F46: =E46*K5/I5 -> 0 | H46: Tilbagebetaling (1+2/3/4+5) | I46: =IF(AND(J44<3,I44=43),K45/3,0) -> 0 | J46: =IF(J44=3,K45-L45,0) -> 0 | K46: =IF(J44>3,K45-L45,0) -> 0 | L46: =MAX(I46,J46,K46) -> 0
B47: Indtægt i alt | E47: =C21+C23+C25+C26+C27 -> 0
B48: Timefradrag | C48: =IF(I23>0,I23&" timer á", " ") ->  | D48: =IF(I23>0,J23," ") ->  | E48: =-I23*J23 -> 0 | H48: ATP grænse forsørger/ ikke-forsørger | I48: =VLOOKUP(144,HTFsats,K4,FALSE) -> 15180 | J48: =VLOOKUP(145,HTFsats,K4,FALSE) -> 11423 | K48: =IF(I18>0,I48,J48) -> 11423
B49: Indtægtsoverskud fra ægtefælle | E49: =IF(I17=3,'Ægtefælle 1'!I24,0) -> 0 | H49: ATP-sats egen / kommune | I49: =VLOOKUP(141,HTFsats,K4,FALSE) -> 95 | J49: =VLOOKUP(142,HTFsats,K4,FALSE) -> 189
B50: Indtægtsfradrag | E50: =SUM(E47:E49) -> 0 | F50: =-MIN(MAX(E50,0),F46) -> 0 | H50: OP-bidrag | I50: =VLOOKUP(143,HTFsats,K4,FALSE) -> 0
B51: ="Hjælpsbeløb"&IF(OR(I9=2,J11=2)," + dansktillæg"," ") -> Hjælpsbeløb | F51: =MAX(SUM(F46:F50),0) -> 0
B52: =IF(K4>6," Nedsættelse 225-timer - enlig"," ") -> Nedsættelse 225-timer - enlig | C52: =IF(K26>0,VLOOKUP(J26,Alle_sats,3,FALSE)," ") ->  | E52: =K26 -> 0 | H52: Kontanthjælpsloft
B53: Periodesanktioner §§ 36-38 | C53: =IF(AND(C30>0,F51>0),IF(K4<13,("("&K31&" + "&K32&") * "&C30&" * "),J39&" * "&C30)," ") ->  | D53: =IF(C30> 0,K30," ") ->  | E53: =IF(AND(C30>0,F51>0),IF(K4<13,ROUND((K31+K32)*C30*K30,2),C30*J39),0) -> 0 | H53: Grænsebeløb stk.1 | I53: =VLOOKUP(1,HTFsats,K4,FALSE) -> 15180 | J53: =VLOOKUP(2,HTFsats,K4,FALSE) -> 11423 | K53: =IF(OR(AND(F46>=I53,I18>0),AND(F46>=J53,I18=0)),1,0) -> 0 | L53: =IF('Ægtefælle 1'!J27=8,IF(K4<10,5,7),IF(J27=8,IF(K4<10,6,8),0)) -> 0
B54: Punktsanktion §§ 39-40 | C54: =IF(K4<13,IF(AND(C31="Ja",F51>0),"("&K34&" + "&K35&") * "," ")," ") ->  | D54: =IF(C31="Ja",K30," ") ->  | E54: =IF(AND(C31="Ja",F51>0),IF(K4<13,ROUND((K34+K35)*K30,2),K39),0) -> 0 | H54: Stk. 2,3,4/valgt stk. | I54: =IF(AND(K53=0,I7=1,I10=0),2,0) -> 0 | J54: =IF(AND(K53=0,I7=2,I10=0),3,0) -> 0 | K54: =IF(AND(K53=0,OR(I7=3,I10=3)),IF(K4>9,4,3),0) -> 0 | L54: =IF(K4>6,MAX(K53,I54,J54,K54,L53),0) -> 0
B55: § 40 a - udeblivelser | C55: =IF(C32>0,C32&"/"&I5&" af "," ") ->  | D55: =IF(C32>0,F46," ") ->  | E55: =F46*C32/I5 -> 0 | H55: Samliv/ antal børn | I55: =VLOOKUP(C15,Samliv,3,FALSE) -> 0 | J55: =IF(AND(C17+C18+C19>1,L54=1,I55=2),1,IF(C17+C18+C19>=2,2,C17+C18+C19)) -> 0 | K55: =IF(AND(L54>0,I55>0),L54&I55&J55,0)-0 -> 0
B56: =IF(I44>0," Sanktion uberettiget hjælp § "&I44," Sanktion uberettiget hjælp §§ 42-43 ") -> Sanktion uberettiget hjælp §§ 42-43 | C56: =IF(I44=42,C34&"/"&K5&" * 1/3 *"," ") ->  | D56: =IF(I44=42,F51," ") ->  | E56: =L45 -> 0 | H56: Loft sats | I56: =VLOOKUP(K55,Loftmap,2,FALSE) -> 0 | J56: =VLOOKUP(I56,HTFsats,3,FALSE) -> -
B57: Manuel sanktion | E57: =C35 -> 0
B58: Sanktioner i alt | E58: =SUM(E52:E57) -> 0 | F58: =-MIN(E58,F51) -> 0
B59: Bruttoydelse | F59: =SUM(F51:F58) -> 0
B60: =IF(I44>0,"Tilbagebetalingspligtig sanktion jf. § "&I44," ") ->  | C60: =IF(L46>0,C34&"/"&K5&" af"," ") ->  | D60: =IF(L46>0,F51-E56," ") ->  | F60: =IF(I44>0,MIN(L46,F59)," ") -> 
H61: Fejl | I61: =IF(AND(I7=2,I14=3),1,IF(AND(I7<3,I8=2),2,IF(AND(I7=3,I8=1),3,IF(AND(I7=3,I4<9,D4=2015),4,)))) -> 0
B62: ATP egen andel | F62: =IF(AND(F59>=K46,C37>=12),I47*K5/I5,0) -> 0
B63: ATP kommuneandel | F63: =IF(AND(F59>=K46,C37>=12),J47*K5/I5,0) -> 0
B64: OP-bidrag | F64: =IF(I7<3,ROUND((F59-F62)*I50,0),0) -> 0
B66: Kontanthjælpsloft | C66: =IF(I56>0,VLOOKUP(I56,HTFsats,3,FALSE)," ") ->  | F66: =VLOOKUP(I56,HTFsats,K4,FALSE) -> 0

Sheet SÆS - ægtepar
B2: Særlig støtte
B4: Måned /år | C4: ='Ægtefælle 1'!C4 -> November | D4: ='Ægtefælle 1'!D4 -> 2019 | H4: Bevilling | I4: ='Ægtefælle 1'!I7 -> 0 | J4: ='Ægtefælle 2'!I7 -> 0 | K4: =Enlig!K4 -> 12
A6: Boligudgifter | C6: beløb | D6: frekvens | I6: Boligudgifter pr. måned
B7: Husleje | C7: 0 | H7: =VLOOKUP(D7,Frekvens,2,FALSE) -> 1 | I7: =C7/MAX(H7,1) -> 0
B8: Boligstøtte | C8: 0 | H8: 1 | I8: =-C8/MAX(H8,1) -> 0
B9: Varme | C9: 0 | H9: 1 | I9: =C9/MAX(H9,1) -> 0
B10: El | C10: 0 | H10: 1 | I10: 0
B11: Gas | C11: 0 | H11: 1 | I11: 0
B12: Vand | C12: 0 | H12: 1 | I12: 0
B13: Ejendomsskat | C13: 0 | H13: 1 | I13: 0
B14: Ejendomsværdiskat | C14: 0 | H14: 1 | I14: 0
B15: Husforsikring | C15: 0 | H15: 1 | I15: 0
B16: Andre boligudgifter | C16: 0 | H16: 1 | I16: 0
B17: Indtægt fra lejer | C17: 0 | H17: 1 | I17: =-C17/MAX(H17,1) -> 0
H18: I alt | I18: =SUM(I7:I17) -> 0
A19: Boliglån | C19: Ydelse | D19: Rente + bidrag | E19: Frekvens
B20: Lån 1 | C20: 0 | D20: 0 | H20: =VLOOKUP(E20,Frekvens,2,FALSE) -> 1 | I20: =C20/MAX(H20,1) -> 0 | J20: =D20/MAX(H20,1) -> 0
B21: Lån 2 | C21: 0 | D21: 0 | H21: =VLOOKUP(E21,Frekvens,2,FALSE) -> 1 | I21: =C21/MAX(H21,1) -> 0 | J21: =D21/MAX(H21,1) -> 0
H22: lån i alt | I22: =SUM(I20:I21) -> 0 | J22: =SUM(J20:J21) -> 0
A23: Udgifter til erhvervelse af indtægter | C23: Ægtefælle 1 | D23: Ægtefælle 2 | H23: I alt | I23: =I18+I22-J23 -> 0 | J23: =C31*(J22-MAX(C30-I39,0)) -> 0
B24: Transport | C24: 0 | D24: 0 | H24: Grænsebeløb Æ1
B25: Arbejdsredskaber m.v. | C25: 0 | D25: 0 | H25: H. børn | I25: ='Ægtefælle 1'!C17 -> 0 | J25: =IF(I25>0,VLOOKUP(152,HTFsats,K4,FALSE),0) -> 0 | K25: =MAX(VLOOKUP(154,HTFsats,K4,FALSE)*(I25-1),0) -> 0
H26: U. børn | I26: ='Ægtefælle 1'!C18+'Ægtefælle 1'!C19 -> 0 | J26: =IF(AND(I25=0,I26>0),VLOOKUP(153,HTFsats,K4,FALSE),IF(AND(I26=0,I25=0),VLOOKUP(151,HTFsats,K4,FALSE),0)) -> 3050 | K26: =MAX(VLOOKUP(155,HTFsats,K4,FALSE)*IF(J26=0,I26,(I26-1)),0) -> 0
A27: Feriepenge | C27: 0 | D27: 0 | H27: Grænsebeløb Æ2
H28: H. børn | I28: ='Ægtefælle 2'!C17 -> 0 | J28: =IF(I28>0,VLOOKUP(152,HTFsats,K4,FALSE),0) -> 0 | K28: =MAX(VLOOKUP(154,HTFsats,K4,FALSE)*(I28-1),0) -> 0
A29: Skattekort | H29: U. børn | I29: ='Ægtefælle 2'!C18+'Ægtefælle 2'!C19 -> 0 | J29: =IF(AND(I28=0,I29>0),VLOOKUP(153,HTFsats,K7,FALSE),IF(AND(I29=0,I28=0),VLOOKUP(151,HTFsats,K4,FALSE),0)) -> 3050 | K29: =MAX(VLOOKUP(155,HTFsats,K4,FALSE)*IF(J29=0,I29,(I29-1)),0) -> 0
B30: Skattekort fradrag | C30: 0 | D30: 0 | E30: pr. måned | I30: Æ1 | J30: Æ2
B31: Trækprocent | C31: 0 | D31: 0 | H31: Grænsebeløb | I31: =MAX((J25+J26)-(K25+K26),0) -> 3050 | J31: =MAX(J28-K28+J29-K29,0) -> 3050
A33: Loft for særlig støtte | H33: ATP | I33: =IF('Ægtefælle 1'!F62>0,1,0) -> 0 | J33: =IF('Ægtefælle 2'!F62>0,1,0) -> 0
B34: Hidtidig nettoindtægt | C34: 0 | D34: 0 | H34: SK.pl. Indtægter | I34: ='Ægtefælle 1'!C21+'Ægtefælle 1'!C23+'Ægtefælle 1'!C26 -> 0 | J34: ='Ægtefælle 2'!C21+'Ægtefælle 2'!C23+'Ægtefælle 2'!C26 -> 0
B35: Antal måneder med hjælp | C35: 0 | D35: 0 | H35: Bruttoydelse | I35: ='Ægtefælle 1'!F51 -> 0 | J35: ='Ægtefælle 2'!F51 -> 0
H36: ATP | I36: =IF(I33=1,IF(OR(AND(I25>0,I35>=I57),AND(I25=0,I35>=J57)),-K57,0),0) -> 0 | J36: =IF(J28=1,IF(OR(AND(I28>0,J35>=I57),AND(I28=0,J35>=J57)),-K57,0),0) -> 0
H37: Bruttoindtægt | I37: =SUM(I34:I36) -> 0 | J37: =SUM(J34:J36) -> 0
H38: Beregnet skat | I38: =ROUND((I37-C30)*C31,0) -> 0 | J38: =ROUND((J37-D30)*D31,0) -> 0
H39: Bruttoydelse | I39: ='Ægtefælle 1'!E46 -> 0 | J39: ='Ægtefælle 2'!E46 -> 0
H40: ATP | I40: =IF(I33=1,IF(OR(AND(I25>0,I39>=I57),AND(I25=0,I39>=J57)),-K57,0),0) -> 0 | J40: =IF(J33=1,IF(OR(AND(I28>0,J39>=I57),AND(I28=0,J39>=J57)),-K57,0),0) -> 0
H41: Beregnet skat | I41: =ROUND((I39+I40-C30)*C31,0) -> 0 | J41: =ROUND((J39+J40-D30)*D31,0) -> 0
B42: Beregning særlig støtte § 34
H43: 90% Hidtidig nettoindtægt | I43: =C34*0.9 -> 0 | J43: =D34*0.9 -> 0 | K43: =SUM(I43:J43) -> 0
B44: Boligudgift | C44: =E44/2 -> 0 | D44: =E44/2 -> 0 | E44: =I23 -> 0 | H44: Dagpengeloft (-ATP)
B45: Grænsebeløb | C45: =-I31 -> -3050 | D45: =-J31 -> -3050 | H45: =I54-I55 -> 18677 | I45: =H45-ROUND((H45-C30)*C31,0) -> 18677 | J45: =H45-ROUND((H45-D30)*D31,0) -> 18677 | K45: =SUM(I45:J45) -> 37354
B46: Beregnet støtte 1 | C46: =MAX(SUM(C44:C45),0) -> 0 | D46: =MAX(SUM(D44:D45),0) -> 0 | F46: =SUM(C46:D46) -> 0
H47: Loft ikke-forsørger
B48: Bruttoydelse | C48: =I35 -> 0 | D48: =J35 -> 0 | H48: =J58 -> 15085 | I48: =H48-ROUND((H48-C30)*C31,0) -> 15085 | J48: =K58 -> 15085 | K48: =J48-ROUND((J48-D30)*D31,0) -> 15085
B49: Beregnet ATP | C49: =I36 -> 0 | D49: =J36 -> 0 | I49: =IF(AND(I25+I26=0,I51=0),I48,0) -> 15085 | K49: =IF(AND(I28+I29=0,J51=0),K48,0) -> 15085
B50: Bruttoindtægt | C50: =I34 -> 0 | D50: =J34 -> 0 | H50: Loft integrationsydelse
B51: Beregnet skat | C51: =-I38 -> 0 | D51: =-J38 -> 0 | H51: =IF(OR(I4=3,J4=3),VLOOKUP(157,HTFsats,K4,FALSE),0) -> 0 | I51: =IF(OR(I4=3,J4=3),H51-ROUND((H51-C30)*C31,0),0) -> 0 | J51: =IF(OR(I4=3,J4=3),H51-ROUND((H51-D30)*D31,0),0) -> 0
B52: Ikke-skattepligtig indtægt | C52: ='Ægtefælle 1'!C27 -> 0 | D52: ='Ægtefælle 1'!D27 -> 0
B53: Feriepenge | C53: =C27 -> 0 | D53: =D27 -> 0
B54: Transport m.m. | C54: =C24+C25 -> 0 | D54: =D24+D25 -> 0 | H54: Dagpenge max | I54: =VLOOKUP(156,HTFsats,K4,FALSE) -> 18866
B55: Nettoindtægt | C55: =SUM(C48:C54) -> 0 | D55: =SUM(D48:D54) -> 0 | E55: =SUM(C55:D55) -> 0 | H55: ATP af dagpenge | I55: =VLOOKUP(158,HTFsats,K4,FALSE) -> 189
B56: Fastsat bruttoydelse | C56: =I39 -> 0 | D56: =J39 -> 0
B57: Beregnet ATP | C57: =I40 -> 0 | D57: =J40 -> 0 | H57: ATP forsørger/ej fors/sats | I57: =VLOOKUP(144,HTFsats,K4,FALSE) -> 15180 | J57: =VLOOKUP(145,HTFsats,K4,FALSE) -> 11423 | K57: =VLOOKUP(141,HTFsats,K4,FALSE) -> 95
B58: Beregnet skat | C58: =-I41 -> 0 | D58: =-J41 -> 0 | H58: Loft ej-forsørger m/u ATP | I58: =VLOOKUP(1,HTFsats,K4,FALSE) -> 15180 | J58: =IF(C35>=0,I58-K57,I58) -> 15085 | K58: =IF(D35>=0,I58-K57,I58) -> 15085
B59: Nettokontanthjælpsniveau | C59: =SUM(C56:C58) -> 0 | D59: =SUM(D56:D58) -> 0 | E59: =SUM(C59:D59) -> 0
B60: Indtægtsoverskud | E60: =MAX(E55-E59,0) -> 0 | F60: =-E60 -> 0
B61: Beregnet støtte jf. § 5 | C61: =F61/2 -> 0 | D61: =F61/2 -> 0 | F61: =SUM(F46:F60) -> 0
B63: Samlet nettoindtægt | E63: =E55+F61 -> 0
B64: 90% af hidtidig nettoindtægt | C64: =I43 -> 0 | D64: =J43 -> 0 | E64: =SUM(C64:D64) -> 0
B65: Nedsættelse jf § 6, stk. 2 | E65: =MAX(E63-E64,0) -> 0 | F65: =-MIN(E65,F61) -> 0
B66: Beregnet støtte jf. § 6, stk.2 | C66: =F66/2 -> 0 | D66: =F66/2 -> 0 | F66: =SUM(F61:F65) -> 0
B68: Nettoindtægt inkl. SÆS § 5 | C68: =C55+C61 -> 0 | D68: =D55+D61 -> 0
B69: Nettoindtægt inkl. SÆS § 6, stk. 2 | C69: =C55+C66 -> 0 | D69: =D55+D66 -> 0
B70: =IF(OR(I49>0,K49>0),"Loft ej forsørger jf. § 6, stk. 3",IF(I51>0,"Loft integrationsydelse jf. § 6, stk.4-5",0)) -> Loft ej forsørger jf. § 6, stk. 3 | C70: =MAX(I49,I51) -> 15085 | D70: =MAX(K49,J51) -> 15085
B71: Tillæg jf. jf. § 6 stk. 3-5 | C71: =IF(C70>C69,MIN(C70,C68)-C69,0) -> 0 | D71: =IF(D70>D69,MIN(D70,D68)-D69,0) -> 0
B72: Beregnet støtte jf. § 6 | C72: =C66+C71 -> 0 | D72: =D66+D71 -> 0 | E72: =C72+D72 -> 0
B73: Samlet nettoindtægt | E73: =E55+E72 -> 0
B74: Dagpengeloft jf. § 7 | C74: =IF(AND(C35>3,D35>3),I45,0) -> 0 | D74: =IF(AND(C35>3,D35>3),J45,0) -> 0 | E74: =SUM(C74:D74) -> 0
B75: Nedsættelse jf. § 7 | C75: =IF(C74>0,IF(C72<=D72,-MIN(C72,E75/2),E75-MIN(D72,E75/2)),0) -> 0 | D75: =IF(D74>0,-(E75+C75),0) -> 0 | E75: =MAX(E73-E74,0) -> 0
B76: Beregnet særlig støtte | C76: =C72+C75 -> 0 | D76: =D72+D75 -> 0 | E76: =SUM(C76:D76) -> 0
B79: Ikke tilbagebetalingspligtig SÆS | C79: =C76-C80 -> 0 | D79: =D76-D80 -> 0 | E79: =E76-E80 -> 0
B80: Tilbagebetalingspligtig SÆS jf. § 92, stk. 1 | C80: =IF(C76<=D76,MIN(C76,E80/2),E80-MIN(D76,E80/2)) -> 0 | D80: =MIN(D76,E80-C80) -> 0 | E80: =MIN(I22-J23,E76) -> 0

Sheet tabeller (hidden)
A1: Måneder | B1: Kolonne1 | C1: 2015 | D1: 2016 | E1: 2017 | F1: 2018 | G1: 2019 | H1: 2020 | I1: 2021 | L1: Bevilling | M1: Kolonne1 | O1: Fejl | P1: Tekst | R1: Antal
A2: Januar | B2: 1 | C2: 31 | D2: 31 | E2: 31 | F2: 31 | G2: 31 | H2: 31 | I2: 31 | L2: Vælg | M2: 0 | O2: 0 | R2: 0
A3: Februar | B3: 2 | C3: 28 | D3: 29 | E3: 28 | F3: 28 | G3: 28 | H3: 29 | I3: 28 | L3: Kontanthjælp | M3: 1 | O3: 1 | P3: Alder skal være under 30 år for uddannelseshjælp | R3: 1
A4: Marts | B4: 3 | C4: 31 | D4: 31 | E4: 31 | F4: 31 | G4: 31 | H4: 31 | I4: 31 | L4: Uddannelseshjælp | M4: 2 | O4: 2 | P4: Dankbonus kan kun vælges for integrationsydelse | R4: 2
A5: April | B5: 4 | C5: 30 | D5: 30 | E5: 30 | F5: 30 | G5: 30 | H5: 30 | I5: 30 | L5: Integrationsydelse/ SHOY | M5: 3 | O5: 3 | P5: Aktivitets- og barselstillæg kan ikke vælges for integrationsydelse | R5: 3
A6: Maj | B6: 5 | C6: 31 | D6: 31 | E6: 31 | F6: 31 | G6: 31 | H6: 31 | I6: 31 | R6: 4
A7: Juni | B7: 6 | C7: 30 | D7: 30 | E7: 30 | F7: 30 | G7: 30 | H7: 30 | I7: 30 | L7: Tillæg | M7: Kolonne1 | R7: 5
A8: Juli | B8: 7 | C8: 31 | D8: 31 | E8: 31 | F8: 31 | G8: 31 | H8: 31 | I8: 31 | L8: Aktivitetstillæg | M8: 1 | R8: 6
A9: August | B9: 8 | C9: 31 | D9: 31 | E9: 31 | F9: 31 | G9: 31 | H9: 31 | I9: 31 | L9: Barselstillæg | M9: 1 | R9: 7
A10: September | B10: 9 | C10: 30 | D10: 30 | E10: 30 | F10: 30 | G10: 30 | H10: 30 | I10: 30 | L10: Dansktillæg/-bonus | M10: 2 | R10: 8
A11: Oktober | B11: 10 | C11: 31 | D11: 31 | E11: 31 | F11: 31 | G11: 31 | H11: 31 | I11: 31 | L11: Nej | M11: 0 | R11: 9
A12: November | B12: 11 | C12: 30 | D12: 30 | E12: 30 | F12: 30 | G12: 30 | H12: 30 | I12: 30 | R12: 10
A13: December | B13: 12 | C13: 31 | D13: 31 | E13: 31 | F13: 31 | G13: 31 | H13: 31 | I13: 31 | L13: Alder | M13: værdi | R13: 11
C14: =SUBTOTAL(109,Tabel211[2015]) -> 365 | D14: =SUBTOTAL(109,Tabel211[2016]) -> 366 | E14: =SUBTOTAL(109,Tabel211[2017]) -> 365 | F14: =SUBTOTAL(109,Tabel211[2018]) -> 365 | G14: =SUBTOTAL(109,Tabel211[2019]) -> 365 | H14: =SUBTOTAL(109,Tabel211[2021]) -> 365 | I14: =SUBTOTAL(109,Tabel211[2021]) -> 365 | L14: Vælg | M14: 0 | R14: 12
L15: Under 25 år | M15: 1 | R15: 13
A16: År | B16: Kolonne1 | C16: kolonne | E16: Ja | F16: Årstal | G16: Kolonne1 | L16: 25-29 | M16: 2 | R16: 14
B17: 2015-1 | C17: 4 | E17: Nej | F17: 2015 | G17: 2 | L17: Over 30 år | M17: 3 | R17: 15
A18: 2015 | B18: 2015-9 | C18: 5 | F18: 2016 | G18: 3 | R18: 16
A19: 2016 | B19: 2016-1 | C19: 6 | F19: 2017 | G19: 4 | L19: Samliv | M19: Kolonne1 | N19: Kolonne2 | O19: Kolonne3 | R19: 17
A20: 2016 | B20: 2016-10 | C20: 7 | F20: 2018 | G20: 5 | L20: Vælg | M20: 0 | N20: 0 | O20: 0 | R20: 18
A21: 2017 | B21: 2017-1 | C21: 8 | F21: 2019 | G21: 6 | L21: Enlig | M21: 1 | N21: 1 | O21: 1 | R21: 19
B22: 2017-7 | C22: 9 | F22: 2020 | G22: 7 | L22: Samlevende | M22: 2 | N22: 2 | O22: 2 | R22: 20
A23: 2018 | B23: 2018-1 | C23: 10 | F23: 2021 | G23: 8 | L23: Gift | M23: 3 | N23: 2 | O23: 3 | R23: 21
B24: 2018-7 | C24: 11 | R24: 22
A25: 2019 | B25: 2019 | C25: 12 | R25: 23
A26: 2020 | B26: 2020 -1 | C26: 13 | L26: Bosted | M26: Kolonne1 | R26: 24
A27: 2020 | B27: 2020-4 | C27: 14 | L27: Vælg | M27: 0 | R27: 25
B28: 2021 | C28: 15 | L28: Udeboende | M28: 2 | R28: 26
L29: Hjemmeboende | M29: 1 | R29: 27
R30: 28
B31: Kolonne1 | C31: Kolonne2 | D31: Kolonne3 | E31: Kolonne4 | F31: Kolonne5 | G31: Kolonne6 | H31: Kolonne7 | I31: Kolonne8 | J31: Kolonne9 | L31: Ungekode | M31: Kolonne1 | R31: 29
C32: 2015 | D32: 2016 | E32: 2017 | F32: 2018 | G32: 2019 | H32: 2020 | I32: 2021 | J32: 2022 | L32: Nej | M32: 0 | R32: 30
B33: 1 | C33: 2015-1 | D33: 2016-1 | E33: 2017-1 | F33: 2018-1 | G33: 2019 | H33: 2020 -1 | I33: 2021 | L33: Gravid | M33: 1 | R33: 31
B34: 2 | C34: 2015-1 | D34: 2016-1 | E34: 2017-1 | F34: 2018-1 | G34: 2019 | H34: 2020 -1 | I34: 2021 | L34: Psykisk syg | M34: 2 | P34: 0
B35: 3 | C35: 2015-1 | D35: 2016-1 | E35: 2017-1 | F35: 2018-1 | G35: 2019 | H35: 2020 -1 | I35: 2021
B36: 4 | C36: 2015-1 | D36: 2016-1 | E36: 2017-1 | F36: 2018-1 | G36: 2019 | H36: 2020-4 | I36: 2021 | L36: Fiktivt niveau | M36: bevilling | N36: tillæg
B37: 5 | C37: 2015-1 | D37: 2016-1 | E37: 2017-1 | F37: 2018-1 | G37: 2019 | H37: 2020-4 | I37: 2021 | L37: Kontanthjælp /m | M37: 1 | N37: 1
B38: 6 | C38: 2015-1 | D38: 2016-1 | E38: 2017-1 | F38: 2018-1 | G38: 2019 | H38: 2020-4 | I38: 2021 | L38: Kontanthjælp /u | M38: 1 | N38: 0
B39: 7 | C39: 2015-1 | D39: 2016-1 | E39: 2017-7 | F39: 2018-7 | G39: 2019 | H39: 2020-4 | I39: 2021 | L39: Udd.hjælp /m | M39: 2 | N39: 1
B40: 8 | C40: 2015-1 | D40: 2016-1 | E40: 2017-7 | F40: 2018-7 | G40: 2019 | H40: 2020-4 | I40: 2021 | L40: Udd.hjælp /u | M40: 2 | N40: 0
B41: 9 | C41: 2015-9 | D41: 2016-1 | E41: 2017-7 | F41: 2018-7 | G41: 2019 | H41: 2020-4 | I41: 2021 | M41: 0 | N41: 0
B42: 10 | C42: 2015-9 | D42: 2016-10 | E42: 2017-7 | F42: 2018-7 | G42: 2019 | H42: 2020-4 | I42: 2021 | L42: Vælg | M42: 0 | N42: 0
B43: 11 | C43: 2015-9 | D43: 2016-10 | E43: 2017-7 | F43: 2018-7 | G43: 2019 | H43: 2020-4 | I43: 2021
B44: 12 | C44: 2015-9 | D44: 2016-10 | E44: 2017-7 | F44: 2018-7 | G44: 2019 | H44: 2020-4 | I44: 2021
L46: §§42-43 | M46: Kolonne1
L47: 1. gang før 2020 | M47: 1
L48: 2. gang før 2020 | M48: 2
L49: 3. gang før 2020 | M49: 3
L50: første 3 måneder | M50: 4
L51: efter 3 måneder | M51: 5
L52: Vælg | M52: 0
L53: 0 | M53: 0
L55: 225-timers regel | M55: Kolonne1
L56: Nej | M56: 0
L57: Nedsæt som enlig | M57: 1
L58: Nedsæt som gift | M58: 2
L61: Frekvens | M61: Kolonne2
L62: Månedlig | M62: 1
L63: Hver 2. måned | M63: 2
L64: Kvartalsvis | M64: 3
L65: Hver 4. måned | M65: 4
L66: Halvårlig | M66: 6
L67: Årlig | M67: 12
L68: 0 | M68: 1

Sheet Satsmapning (hidden)
F2: 1 | G2: 2 | H2: 3 | I2: 4 | J2: 5 | K2: 6 | L2: 7
B3: S | C3: Kolonne2 | D3: Kolonne3 | F3: Satsmap | G3: Grundsats | H3: Tillæg | I3: Dagsank. Grundsats | J3: Dagsank. Tillæg | K3: Pun.sank. Grundsats | L3: Pun.sank. Tillæg | N3: Loft | O3: Kolonne1
B4: 132000 | C4: 25.2.1 | D4: Fyldt 30 år, forsørger børn | F4: 25.2.1 | G4: 1 | H4: 0 | I4: 17 | J4: 0 | K4: 32 | L4: 0 | N4: 121 | O4: 201
B5: 130000 | C5: 25.2.2 | D5: Fyldt 30 år, andre | F5: 25.2.2 | G5: 2 | H5: 0 | I5: 18 | J5: 0 | K5: 33 | L5: 0 | N5: 120 | O5: 202
B6: 122100 | C6: 25.3.1 | D6: Enlige forsørgere under 30 år | F6: 25.3.1 | G6: 3 | H6: 13 | I6: 19 | J6: 28 | K6: 34 | L6: 43 | N6: 111 | O6: 203
B7: 122000 | C7: 25.3.2 | D7: Forsørgere under 30 år, som ikke har erhvervet ret til ekstra børnetilskud | F7: 25.3.2 | G7: 4 | H7: 14 | I7: 20 | J7: 29 | K7: 35 | L7: 44 | N7: 112 | O7: 204
B8: 122001 | C8: 25.3.3 | D8: Under 30 år, gravid | F8: 25.3.3 | G8: 5 | H8: 0 | I8: 21 | J8: 0 | K8: 36 | L8: 0 | N8: 110 | O8: 205
B9: 120001 | C9: 25.3.3 | D9: Under 30 år, gravid | F9: 25.3.4 | G9: 6 | H9: 0 | I9: 22 | J9: 0 | K9: 37 | L9: 0 | N9: 221 | O9: 211
B10: 122002 | C10: 25.3.4 | D10: Under 30 år, psykisk syg, forsørgelsespligt | F10: 25.3.5 | G10: 7 | H10: 0 | I10: 23 | J10: 0 | K10: 38 | L10: 0 | N10: 222 | O10: 212
B11: 120022 | C11: 25.3.5 | D11: Under 30 år, psykisk syg, udeboende | F11: 25.3.6 | G11: 8 | H11: 15 | I11: 24 | J11: 30 | K11: 39 | L11: 45 | N11: 220 | O11: 213
B12: 120020 | C12: 25.3.6 | D12: 25-29 år, udeboende | F12: 25.3.7 | G12: 9 | H12: 16 | I12: 25 | J12: 31 | K12: 40 | L12: 46 | N12: 211 | O12: 214
B13: 120012 | C13: 25.3.7 | D13: 25-29 år, hjemmeboende | F13: 25.3.8 | G13: 10 | H13: 0 | I13: 26 | J13: 0 | K13: 41 | L13: 0 | N13: 212 | O13: 215
B14: 120010 | C14: 25.3.7 | D14: 25-29 år, hjemmeboende | F14: 25.3.9 | G14: 11 | H14: 0 | I14: 27 | J14: 0 | K14: 42 | L14: 0 | N14: 210 | O14: 216
B15: 110020 | C15: 25.3.8 | D15: Under 25 år, udeboende | F15: 23.2.1 | G15: 51 | H15: 61 | I15: 67 | J15: 76 | K15: 82 | L15: 91 | N15: 321 | O15: 221
B16: 110012 | C16: 25.3.9 | D16: Under 25 år, hjemmeboende | F16: 23.2.2 | G16: 52 | H16: 62 | I16: 68 | J16: 77 | K16: 83 | L16: 92 | N16: 322 | O16: 222
B17: 110010 | C17: 25.3.9 | D17: Under 25 år, hjemmeboende | F17: 23.2.3 | G17: 53 | H17: 0 | I17: 69 | J17: 0 | K17: 84 | L17: 0 | N17: 320 | O17: 223
B18: 222100 | C18: 23.2.1 | D18: Enlige forsørgere - under 30 år | F18: 23.2.4 | G18: 54 | H18: 0 | I18: 70 | J18: 0 | K18: 85 | L18: 0 | N18: 311 | O18: 224
B19: 222000 | C19: 23.2.2 | D19: Forsørgere under 30 år, som ikke har erhvervet ret til ekstra børnetilskud | F19: 23.2.5 | G19: 55 | H19: 0 | I19: 71 | J19: 0 | K19: 86 | L19: 0 | N19: 312 | O19: 225
B20: 220001 | C20: 23.2.3 | D20: Under 30 år, gravid (passeret 12. svangerskabsuge) | F20: 23.2.6 | G20: 56 | H20: 63 | I20: 72 | J20: 78 | K20: 87 | L20: 93 | N20: 310 | O20: 226
B21: 222001 | C21: 23.2.3 | D21: Under 30 år, gravid (passeret 12. svangerskabsuge) | F21: 23.2.7 | G21: 57 | H21: 64 | I21: 73 | J21: 79 | K21: 88 | L21: 94 | N21: 421 | O21: 231
B22: 222002 | C22: 23.2.4 | D22: Under 30 år, psykisk syg, forsørgelsespligt | F22: 23.2.8 | G22: 58 | H22: 65 | I22: 74 | J22: 80 | K22: 89 | L22: 95 | N22: 422 | O22: 232
B23: 220022 | C23: 23.2.5 | D23: Under 30 år, psykisk syg, udeboende | F23: 23.2.9 | G23: 59 | H23: 66 | I23: 75 | J23: 81 | K23: 90 | L23: 96 | N23: 420 | O23: 233
B24: 220020 | C24: 23.2.6 | D24: 25-29 år, udeboende | F24: 22.2.1 | G24: 101 | H24: 105 | I24: 106 | J24: 110 | K24: 111 | L24: 115 | N24: 411 | O24: 234
B25: 220012 | C25: 23.2.7 | D25: 25-29 år, hjemmeboende | F25: 22.2.2 | G25: 102 | H25: 105 | I25: 107 | J25: 110 | K25: 112 | L25: 115 | N25: 412 | O25: 235
B26: 220010 | C26: 23.2.7 | D26: 25-29 år, hjemmeboende | F26: 22.2.3 | G26: 103 | H26: 105 | I26: 108 | J26: 110 | K26: 113 | L26: 115 | N26: 410 | O26: 236
B27: 210020 | C27: 23.2.8 | D27: Under 25 år, udeboende | F27: 22.2.4 | G27: 104 | H27: 105 | I27: 109 | J27: 110 | K27: 114 | L27: 115 | N27: 521 | O27: 231
B28: 210012 | C28: 23.2.9 | D28: Under 25 år, hjemmeboende | F28: 0 | G28: 0 | H28: 0 | I28: 0 | J28: 0 | K28: 0 | L28: 0 | N28: 522 | O28: 232
B29: 210010 | C29: 23.2.9 | D29: Under 25 år, hjemmeboende | N29: 520 | O29: 233
B30: 332100 | C30: 22.2.1 | D30: Enlige forsørgere | N30: 621 | O30: 234
B31: 332000 | C31: 22.2.2 | D31: Ikke-enlige forsørgere (samlevende og/eller gift) | N31: 622 | O31: 235
B32: 330000 | C32: 22.2.3 | D32: Personer over 30 år og personer under 30 år, der ikke bor hos forældre | N32: 620 | O32: 236
B33: 320020 | C33: 22.2.3 | D33: Personer over 30 år og personer under 30 år, der ikke bor hos forældre | N33: 721 | O33: 241
B34: 320010 | C34: 22.2.4 | D34: Personer under 30 år, der bor hos forældre | N34: 722 | O34: 242
B35: 0 | C35: 0 | N35: 720 | O35: 243
B36: 100000 | C36: 0 | N36: 821 | O36: 244
B37: 110000 | C37: 0 | N37: 822 | O37: 245
B38: 120000 | N38: 820 | O38: 246
B39: 200000
B40: 210000 | N40: 0 | O40: 0
B41: 220000
B42: 230020
B43: 232120
B44: 232020
B45: 320000
B46: 20010

Sheet HTF-sats
A2: 1 | B2: 2 | C2: 3 | D2: 4 | E2: 5 | F2: 6 | G2: 7 | H2: 8 | I2: 9 | J2: 10 | K2: 11 | L2: 12 | M2: 13 | N2: 14 | O2: 15
A3: S | B3: Satser | D3: 2015-1 | E3: 2015-9 | F3: 2016-1 | G3: 2016-10 | H3: 2017-1 | I3: 2017-7 | J3: 2018-1 | K3: 2018-7 | L3: 2019 | M3: 2020 | N3: 2020-4 | O3: 2021 | P3: Kolonne1
B4: Kontanthjælp
A5: 1 | B5: Fyldt 30 år, forsørger børn | C5: § 25, stk 2, nr. 1 | D5: 14416 | E5: 14416 | F5: 14575 | G5: 14575 | H5: 14808 | I5: 14808 | J5: 14993 | K5: 14993 | L5: 15180 | M5: 15355 | N5: 15355 | O5: 15547
A6: 2 | B6: Fyldt 30 år, andre | C6: § 25, stk 2, nr. 2 | D6: 10849 | E6: 10849 | F6: 10968 | G6: 10968 | H6: 11143 | I6: 11143 | J6: 11282 | K6: 11282 | L6: 11423 | M6: 11554 | N6: 11554 | O6: 11698
A7: 3 | B7: Enlige forsørgere under 30 år | C7: § 25 stk. 3 nr. 1 | D7: 13779 | E7: 13779 | F7: 13931 | G7: 13931 | H7: 14154 | I7: 14154 | J7: 14331 | K7: 14331 | L7: 14510 | M7: 14677 | N7: 14677 | O7: 14860
A8: 4 | B8: Forsørgere under 30 år, samlevende | C8: § 25 stk. 3 nr. 2 | D8: 9640 | E8: 9640 | F8: 9746 | G8: 9746 | H8: 9902 | I8: 9902 | J8: 10026 | K8: 10026 | L8: 10151 | M8: 10268 | N8: 10268 | O8: 10396
A9: 5 | B9: Under 30 år, gravid | C9: § 25 stk. 3 nr. 3 | D9: 10849 | E9: 10849 | F9: 10968 | G9: 10968 | H9: 11143 | I9: 11143 | J9: 11282 | K9: 11282 | L9: 11423 | M9: 11554 | N9: 11554 | O9: 11698
A10: 6 | B10: Under 30 år, psykisk syg, forsørger | C10: § 25 stk. 3 nr. 4 | D10: 14416 | E10: 14416 | F10: 14575 | G10: 14575 | H10: 14808 | I10: 14808 | J10: 14993 | K10: 14993 | L10: 15180 | M10: 15355 | N10: 15355 | O10: 15547
A11: 7 | B11: Under 30 år, psykisk syg, udeboende | C11: § 25 stk. 3 nr. 5 | D11: 10849 | E11: 10849 | F11: 10968 | G11: 10968 | H11: 11143 | I11: 11143 | J11: 11282 | K11: 11282 | L11: 11423 | M11: 11554 | N11: 11554 | O11: 11698
A12: 8 | B12: 25-29 år, udeboende | C12: § 25 stk. 3 nr. 6 | D12: 6992 | E12: 6992 | F12: 7069 | G12: 7069 | H12: 7182 | I12: 7182 | J12: 7272 | K12: 7272 | L12: 7363 | M12: 7448 | N12: 7448 | O12: 7541
A13: 9 | B13: 25-29 år, hjemmeboende | C13: § 25 stk. 3 nr. 7 | D13: 3374 | E13: 3374 | F13: 3411 | G13: 3411 | H13: 3466 | I13: 3466 | J13: 3509 | K13: 3509 | L13: 3553 | M13: 3594 | N13: 3594 | O13: 3639
A14: 10 | B14: Under 25 år, udeboende | C14: § 25 stk. 3 nr. 8 | D14: 6992 | E14: 6992 | F14: 7069 | G14: 7069 | H14: 7182 | I14: 7182 | J14: 7272 | K14: 7272 | L14: 7363 | M14: 7448 | N14: 7448 | O14: 7541
A15: 11 | B15: Under 25 år, hjemmeboende | C15: § 25 stk. 3 nr. 9 | D15: 3374 | E15: 3374 | F15: 3411 | G15: 3411 | H15: 3466 | I15: 3466 | J15: 3509 | K15: 3509 | L15: 3553 | M15: 3594 | N15: 3594 | O15: 3639
A16: 12 | B16: bidrag | C16: § 25 stk. 4 | D16: 1289 | E16: 1289 | F16: 1307 | G16: 1307 | H16: 1333 | I16: 1333 | J16: 1360 | K16: 1360 | L16: 1387 | M16: 1415 | N16: 1415 | O16: 1433
B17: Aktivitetstillæg
A18: 13 | B18: Enlige forsørgere under 30 år | C18: § 25 stk. 9 nr. 1 | D18: 637 | E18: 637 | F18: 644 | G18: 644 | H18: 654 | I18: 654 | J18: 662 | K18: 662 | L18: 670 | M18: 678 | N18: 678 | O18: 686
A19: 14 | B19: Forsørgere under 30 år, samlevende | C19: § 25 stk. 9 nr. 2 | D19: 4776 | E19: 4776 | F19: 4829 | G19: 4829 | H19: 4906 | I19: 4906 | J19: 4967 | K19: 4967 | L19: 5029 | M19: 5087 | N19: 5087 | O19: 5151
A20: 15 | B20: 25-29 år, udeboende | C20: § 25 stk. 9 nr. 3 | D20: 3857 | E20: 3857 | F20: 3899 | G20: 3899 | H20: 3961 | I20: 3961 | J20: 4011 | K20: 4011 | L20: 4061 | M20: 4106 | N20: 4106 | O20: 4159
A21: 16 | B21: 25-29 år, hjemmeboende | C21: § 25 stk. 9 nr. 4 | D21: 7475 | E21: 7475 | F21: 7557 | G21: 7557 | H21: 7678 | I21: 7678 | J21: 7774 | K21: 7774 | L21: 7871 | M21: 7962 | N21: 7962 | O21: 8062
B22: Periodesanktion
A23: 17 | B23: Fyldt 30 år, forsørger børn | C23: § 35, stk. 3 | D23: 665 | E23: 665 | F23: 673 | G23: 673 | H23: 683 | I23: 683 | J23: 692 | K23: 692 | L23: 701 | M23: 709
A24: 18 | B24: Fyldt 30 år, andre | C24: § 35, stk. 3 | D24: 501 | E24: 501 | F24: 506 | G24: 506 | H24: 514 | I24: 514 | J24: 521 | K24: 521 | L24: 527 | M24: 533
A25: 19 | B25: Enlige forsørgere under 30 år | C25: § 35, stk. 3 | D25: 636 | E25: 636 | F25: 643 | G25: 643 | H25: 653 | I25: 653 | J25: 661 | K25: 661 | L25: 670 | M25: 677
A26: 20 | B26: Forsørgere under 30 år, samlevende | C26: § 35, stk. 3 | D26: 445 | E26: 445 | F26: 450 | G26: 450 | H26: 457 | I26: 457 | J26: 463 | K26: 463 | L26: 469 | M26: 474
A27: 21 | B27: Under 30 år, gravid | C27: § 35, stk. 3 | D27: 501 | E27: 501 | F27: 506 | G27: 506 | H27: 514 | I27: 514 | J27: 521 | K27: 521 | L27: 527 | M27: 533
A28: 22 | B28: Under 30 år, psykisk syg, forsørger | C28: § 35, stk. 3 | D28: 665 | E28: 665 | F28: 673 | G28: 673 | H28: 683 | I28: 683 | J28: 692 | K28: 692 | L28: 701 | M28: 709
A29: 23 | B29: Under 30 år, psykisk syg, udeboende | C29: § 35, stk. 3 | D29: 501 | E29: 501 | F29: 506 | G29: 506 | H29: 514 | I29: 514 | J29: 521 | K29: 521 | L29: 527 | M29: 533
A30: 24 | B30: 25-29 år, udeboende | C30: § 35, stk. 3 | D30: 323 | E30: 323 | F30: 326 | G30: 326 | H30: 331 | I30: 331 | J30: 336 | K30: 336 | L30: 340 | M30: 344
A31: 25 | B31: 25-29 år, hjemmeboende | C31: § 35, stk. 3 | D31: 156 | E31: 156 | F31: 157 | G31: 157 | H31: 160 | I31: 160 | J31: 162 | K31: 162 | L31: 164 | M31: 166
A32: 26 | B32: Under 25 år, udeboende | C32: § 35, stk. 3 | D32: 323 | E32: 323 | F32: 326 | G32: 326 | H32: 331 | I32: 331 | J32: 336 | K32: 336 | L32: 340 | M32: 344
A33: 27 | B33: Under 25 år, hjemmeboende | C33: § 35, stk. 3 | D33: 156 | E33: 156 | F33: 157 | G33: 157 | H33: 160 | I33: 160 | J33: 162 | K33: 162 | L33: 164 | M33: 164
B34: Periodsanktion aktivitetstillæg
A35: 28 | B35: Enlige forsørgere under 30 år | C35: § 35, stk. 3 | D35: 29 | E35: 29 | F35: 30 | G35: 30 | H35: 30 | I35: 30 | J35: 31 | K35: 31 | L35: 31 | M35: 31
A36: 29 | B36: Forsørgere under 30 år, samlevende | C36: § 35, stk. 3 | D36: 220 | E36: 220 | F36: 223 | G36: 223 | H36: 226 | I36: 226 | J36: 229 | K36: 229 | L36: 232 | M36: 235
A37: 30 | B37: 25-29 år, udeboende | C37: § 35, stk. 3 | D37: 178 | E37: 178 | F37: 180 | G37: 180 | H37: 183 | I37: 183 | J37: 185 | K37: 185 | L37: 187 | M37: 190
A38: 31 | B38: 25-29 år, hjemmeboende | C38: § 35, stk. 3 | D38: 345 | E38: 345 | F38: 349 | G38: 349 | H38: 354 | I38: 354 | J38: 359 | K38: 359 | L38: 363 | M38: 367
B39: Punktsanktion
A40: 32 | B40: Fyldt 30 år, forsørger børn | C40: § 40 stk. 1 | D40: 1995 | E40: 1995 | F40: 2019 | G40: 2019 | H40: 2049 | I40: 2049 | J40: 2076 | K40: 2076 | L40: 2103 | M40: 2127
A41: 33 | B41: Fyldt 30 år, andre | C41: § 40 stk. 1 | D41: 1503 | E41: 1503 | F41: 1518 | G41: 1518 | H41: 1542 | I41: 1542 | J41: 1563 | K41: 1563 | L41: 1581 | M41: 1599
A42: 34 | B42: Enlige forsørgere under 30 år | C42: § 40 stk. 1 | D42: 1908 | E42: 1908 | F42: 1929 | G42: 1929 | H42: 1959 | I42: 1959 | J42: 1983 | K42: 1983 | L42: 2010 | M42: 2031
A43: 35 | B43: Forsørgere under 30 år, samlevende | C43: § 40 stk. 1 | D43: 1335 | E43: 1335 | F43: 1350 | G43: 1350 | H43: 1371 | I43: 1371 | J43: 1389 | K43: 1389 | L43: 1407 | M43: 1422
A44: 36 | B44: Under 30 år, gravid | C44: § 40 stk. 1 | D44: 1503 | E44: 1503 | F44: 1518 | G44: 1518 | H44: 1542 | I44: 1542 | J44: 1563 | K44: 1563 | L44: 1581 | M44: 1599
A45: 37 | B45: Under 30 år, psykisk syg, forsørger | C45: § 40 stk. 1 | D45: 1995 | E45: 1995 | F45: 2019 | G45: 2019 | H45: 2049 | I45: 2049 | J45: 2076 | K45: 2076 | L45: 2103 | M45: 2127
A46: 38 | B46: Under 30 år, psykisk syg, udeboende | C46: § 40 stk. 1 | D46: 1503 | E46: 1503 | F46: 1518 | G46: 1518 | H46: 1542 | I46: 1542 | J46: 1563 | K46: 1563 | L46: 1581 | M46: 1599
A47: 39 | B47: 25-29 år, udeboende | C47: § 40 stk. 1 | D47: 969 | E47: 969 | F47: 978 | G47: 978 | H47: 993 | I47: 993 | J47: 1008 | K47: 1008 | L47: 1020 | M47: 1032
A48: 40 | B48: 25-29 år, hjemmeboende | C48: § 40 stk. 1 | D48: 468 | E48: 468 | F48: 471 | G48: 471 | H48: 480 | I48: 480 | J48: 486 | K48: 486 | L48: 492 | M48: 498
A49: 41 | B49: Under 25 år, udeboende | C49: § 40 stk. 1 | D49: 969 | E49: 969 | F49: 978 | G49: 978 | H49: 993 | I49: 993 | J49: 1008 | K49: 1008 | L49: 1020 | M49: 1032
A50: 42 | B50: Under 25 år, hjemmeboende | C50: § 40 stk. 1 | D50: 468 | E50: 468 | F50: 471 | G50: 471 | H50: 480 | I50: 480 | J50: 486 | K50: 486 | L50: 492 | M50: 498
B51: Punktsanktion aktivitetstillæg
A52: 43 | B52: Enlige forsørgere under 30 år | C52: § 40 stk. 1 | D52: 87 | E52: 87 | F52: 90 | G52: 90 | H52: 90 | I52: 90 | J52: 93 | K52: 93 | L52: 93 | M52: 93
A53: 44 | B53: Forsørgere under 30 år, samlevende | C53: § 40 stk. 1 | D53: 660 | E53: 660 | F53: 669 | G53: 669 | H53: 678 | I53: 678 | J53: 687 | K53: 687 | L53: 696 | M53: 705
A54: 45 | B54: 25-29 år, udeboende | C54: § 40 stk. 1 | D54: 534 | E54: 534 | F54: 540 | G54: 540 | H54: 549 | I54: 549 | J54: 555 | K54: 555 | L54: 561 | M54: 570
A55: 46 | B55: 25-29 år, hjemmeboende | C55: § 40 stk. 1 | D55: 1035 | E55: 1035 | F55: 1047 | G55: 1047 | H55: 1062 | I55: 1062 | J55: 1077 | K55: 1077 | L55: 1089 | M55: 1101
B56: 1/3-sanktion
A57: 47 | B57: Ydelsesgrænse 42/43 | C57: § 42 stk. 1 | D57: 10849 | E57: 10849 | F57: 10968 | G57: 10968 | H57: 11143 | I57: 11143 | J57: 11282 | K57: 11282 | L57: 11423 | M57: 11554 | N57: 11554 | O57: 11698
B59: Uddannelseshjælp
A60: 51 | B60: Enlige forsørgere under 30 år | C60: § 23 stk. 2 nr. 1 | D60: 11888 | E60: 11888 | F60: 12019 | G60: 12019 | H60: 12211 | I60: 12211 | J60: 12364 | K60: 12364 | L60: 12519 | M60: 12663 | N60: 12663 | O60: 12821
A61: 52 | B61: Forsørgere under 30 år, samlevende | C61: § 23 stk. 2 nr. 2 | D61: 8319 | E61: 8319 | F61: 8411 | G61: 8411 | H61: 8546 | I61: 8546 | J61: 8653 | K61: 8653 | L61: 8761 | M61: 8862 | N61: 8862 | O61: 8973
A62: 53 | B62: Under 30 år, gravid | C62: § 23 stk. 2 nr. 3 | D62: 10849 | E62: 10849 | F62: 10968 | G62: 10968 | H62: 11143 | I62: 11143 | J62: 11282 | K62: 11282 | L62: 11423 | M62: 11554 | N62: 11554 | O62: 11698
A63: 54 | B63: Under 30 år, psykisk syg, forsørger | C63: § 23 stk. 2 nr. 4 | D63: 14416 | E63: 14416 | F63: 14575 | G63: 14575 | H63: 14808 | I63: 14808 | J63: 14993 | K63: 14993 | L63: 15180 | M63: 15355 | N63: 15355 | O63: 15547
A64: 55 | B64: Under 30 år, psykisk syg, udeboende | C64: § 23 stk. 2 nr. 5 | D64: 10849 | E64: 10849 | F64: 10968 | G64: 10968 | H64: 11143 | I64: 11143 | J64: 11282 | K64: 11282 | L64: 11423 | M64: 11554 | N64: 11554 | O64: 11698
A65: 56 | B65: 25-29 år, udeboende | C65: § 23 stk. 2 nr. 6 | D65: 5945 | E65: 5945 | F65: 6010 | G65: 6010 | H65: 6106 | I65: 6106 | J65: 6182 | K65: 6182 | L65: 6259 | M65: 6331 | N65: 6331 | O65: 6410
A66: 57 | B66: 25-29 år, hjemmeboende | C66: § 23 stk. 2 nr. 7 | D66: 2562 | E66: 2562 | F66: 2590 | G66: 2590 | H66: 2631 | I66: 2631 | J66: 2664 | K66: 2664 | L66: 2697 | M66: 2728 | N66: 2728 | O66: 2762
A67: 58 | B67: Under 25 år, udeboende | C67: § 23 stk. 2 nr. 8 | D67: 5945 | E67: 5945 | F67: 6010 | G67: 6010 | H67: 6106 | I67: 6106 | J67: 6182 | K67: 6182 | L67: 6259 | M67: 6331 | N67: 6331 | O67: 6410
A68: 59 | B68: Under 25 år, hjemmeboende | C68: § 23 stk. 2 nr. 9 | D68: 2562 | E68: 2562 | F68: 2590 | G68: 2590 | H68: 2631 | I68: 2631 | J68: 2664 | K68: 2664 | L68: 2697 | M68: 2728 | N68: 2728 | O68: 2762
A69: 60 | B69: Bidrag | C69: § 23, stk. 3 | D69: 1289 | E69: 1289 | F69: 1307 | G69: 1307 | H69: 1333 | I69: 1333 | J69: 1360 | K69: 1360 | L69: 1387 | M69: 1415 | N69: 1415 | O69: 15547
B70: Aktivitetstillæg
A71: 61 | B71: Enlige forsørgere under 30 år | C71: § 24 stk. 3 nr. 1 | D71: 2528 | E71: 2528 | F71: 2556 | G71: 2556 | H71: 2597 | I71: 2597 | J71: 2629 | K71: 2629 | L71: 2662 | M71: 2693 | N71: 2693 | O71: 2727
A72: 62 | B72: Forsørgere under 30 år, samlevende | C72: § 24 stk. 3 nr. 2 | D72: 6097 | E72: 6097 | F72: 6164 | G72: 6164 | H72: 6263 | I72: 6263 | J72: 6341 | K72: 6341 | L72: 6420 | M72: 6494 | N72: 6494 | O72: 6575
A73: 63 | B73: 25-29 år, udeboende | C73: § 24 stk. 3 nr. 3 | D73: 4904 | E73: 4904 | F73: 4958 | G73: 4958 | H73: 5037 | I73: 5037 | J73: 5100 | K73: 5100 | L73: 5164 | M73: 5223 | N73: 5223 | O73: 5288
A74: 64 | B74: 25-29 år, hjemmeboende | C74: § 24 stk. 3 nr. 4 | D74: 8287 | E74: 8287 | F74: 8378 | G74: 8378 | H74: 8512 | I74: 8512 | J74: 8618 | K74: 8618 | L74: 8726 | M74: 8826 | N74: 8826 | O74: 8936
A75: 65 | B75: Under 25 år, udeboende | C75: § 24 stk. 3 nr. 5 | D75: 1047 | E75: 1047 | F75: 1059 | G75: 1059 | H75: 1076 | I75: 1076 | J75: 1089 | K75: 1089 | L75: 1103 | M75: 1116 | N75: 1116 | O75: 1130
A76: 66 | B76: Under 25 år, hjemmeboende | C76: § 24 stk. 3 nr. 6 | D76: 812 | E76: 812 | F76: 821 | G76: 821 | H76: 834 | I76: 834 | J76: 844 | K76: 844 | L76: 855 | M76: 865 | N76: 865 | O76: 876
B77: Periodesanktion
A78: 67 | B78: Enlige forsørgere under 30 år | C78: § 35, stk. 3 | D78: 549 | E78: 549 | F78: 555 | G78: 555 | H78: 564 | I78: 564 | J78: 571 | K78: 571 | L78: 578 | M78: 584
A79: 68 | B79: Forsørgere under 30 år, samlevende | C79: § 35, stk. 3 | D79: 384 | E79: 384 | F79: 388 | G79: 388 | H79: 394 | I79: 394 | J79: 399 | K79: 399 | L79: 404 | M79: 409
A80: 69 | B80: Under 30 år, gravid | C80: § 35, stk. 3 | D80: 501 | E80: 501 | F80: 506 | G80: 506 | H80: 514 | I80: 514 | J80: 521 | K80: 521 | L80: 527 | M80: 533
A81: 70 | B81: Under 30 år, psykisk syg, forsørger | C81: § 35, stk. 3 | D81: 665 | E81: 665 | F81: 673 | G81: 673 | H81: 683 | I81: 683 | J81: 692 | K81: 692 | L81: 701 | M81: 709
A82: 71 | B82: Under 30 år, psykisk syg, udeboende | C82: § 35, stk. 3 | D82: 501 | E82: 501 | F82: 506 | G82: 506 | H82: 514 | I82: 514 | J82: 521 | K82: 521 | L82: 527 | M82: 533
A83: 72 | B83: 25-29 år, udeboende | C83: § 35, stk. 3 | D83: 274 | E83: 274 | F83: 277 | G83: 277 | H83: 282 | I83: 282 | J83: 285 | K83: 285 | L83: 289 | M83: 292
A84: 73 | B84: 25-29 år, hjemmeboende | C84: § 35, stk. 3 | D84: 118 | E84: 118 | F84: 120 | G84: 120 | H84: 121 | I84: 121 | J84: 123 | K84: 123 | L84: 124 | M84: 126
A85: 74 | B85: Under 25 år, udeboende | C85: § 35, stk. 3 | D85: 274 | E85: 274 | F85: 277 | G85: 277 | H85: 282 | I85: 282 | J85: 285 | K85: 285 | L85: 289 | M85: 292
A86: 75 | B86: Under 25 år, hjemmeboende | C86: § 35, stk. 3 | D86: 118 | E86: 118 | F86: 120 | G86: 120 | H86: 121 | I86: 121 | J86: 123 | K86: 123 | L86: 124 | M86: 126
B87: Periodsanktion aktivitetstillæg
A88: 76 | B88: Enlige forsørgere under 30 år | C88: § 35, stk. 3 | D88: 117 | E88: 117 | F88: 118 | G88: 118 | H88: 120 | I88: 120 | J88: 121 | K88: 121 | L88: 123 | M88: 124
A89: 77 | B89: Forsørgere under 30 år, samlevende | C89: § 35, stk. 3 | D89: 281 | E89: 281 | F89: 284 | G89: 284 | H89: 289 | I89: 289 | J89: 293 | K89: 293 | L89: 296 | M89: 300
A90: 78 | B90: 25-29 år, udeboende | C90: § 35, stk. 3 | D90: 226 | E90: 226 | F90: 229 | G90: 229 | H90: 232 | I90: 232 | J90: 235 | K90: 235 | L90: 238 | M90: 241
A91: 79 | B91: 25-29 år, hjemmeboende | C91: § 35, stk. 3 | D91: 382 | E91: 382 | F91: 387 | G91: 387 | H91: 393 | I91: 393 | J91: 398 | K91: 398 | L91: 403 | M91: 407
A92: 80 | B92: Under 25 år, udeboende | C92: § 35, stk. 3 | D92: 48 | E92: 48 | F92: 49 | G92: 49 | H92: 50 | I92: 50 | J92: 50 | K92: 50 | L92: 51 | M92: 52
A93: 81 | B93: Under 25 år, hjemmeboende | C93: § 35, stk. 3 | D93: 37 | E93: 37 | F93: 38 | G93: 38 | H93: 38 | I93: 38 | J93: 39 | K93: 39 | L93: 39 | M93: 40
B94: Punktsanktion
A95: 82 | B95: Enlige forsørgere under 30 år | C95: § 40 stk. 1 | D95: 1647 | E95: 1647 | F95: 1665 | G95: 1665 | H95: 1692 | I95: 1692 | J95: 1713 | K95: 1713 | L95: 1734 | M95: 1752
A96: 83 | B96: Forsørgere under 30 år, samlevende | C96: § 40 stk. 1 | D96: 1152 | E96: 1152 | F96: 1164 | G96: 1164 | H96: 1182 | I96: 1182 | J96: 1197 | K96: 1197 | L96: 1212 | M96: 1217
A97: 84 | B97: Under 30 år, gravid | C97: § 40 stk. 1 | D97: 1503 | E97: 1503 | F97: 1518 | G97: 1518 | H97: 1542 | I97: 1542 | J97: 1563 | K97: 1563 | L97: 1581 | M97: 1599
A98: 85 | B98: Under 30 år, psykisk syg, forsørger | C98: § 40 stk. 1 | D98: 1995 | E98: 1995 | F98: 2019 | G98: 2019 | H98: 2049 | I98: 2049 | J98: 2076 | K98: 2076 | L98: 2103 | M98: 2127
A99: 86 | B99: Under 30 år, psykisk syg, udeboende | C99: § 40 stk. 1 | D99: 1503 | E99: 1503 | F99: 1518 | G99: 1518 | H99: 1542 | I99: 1542 | J99: 1563 | K99: 1563 | L99: 1581 | M99: 1599
A100: 87 | B100: 25-29 år, udeboende | C100: § 40 stk. 1 | D100: 822 | E100: 822 | F100: 831 | G100: 831 | H100: 846 | I100: 846 | J100: 855 | K100: 855 | L100: 867 | M100: 876
A101: 88 | B101: 25-29 år, hjemmeboende | C101: § 40 stk. 1 | D101: 354 | E101: 354 | F101: 360 | G101: 360 | H101: 363 | I101: 363 | J101: 369 | K101: 369 | L101: 372 | M101: 378
A102: 89 | B102: Under 25 år, udeboende | C102: § 40 stk. 1 | D102: 822 | E102: 822 | F102: 831 | G102: 831 | H102: 846 | I102: 846 | J102: 855 | K102: 855 | L102: 867 | M102: 876
A103: 90 | B103: Under 25 år, hjemmeboende | C103: § 40 stk. 1 | D103: 354 | E103: 354 | F103: 360 | G103: 360 | H103: 363 | I103: 363 | J103: 369 | K103: 369 | L103: 372 | M103: 378
B104: Punktsanktion aktivitetstillæg
A105: 91 | B105: Enlige forsørgere under 30 år | C105: § 40 stk. 1 | D105: 351 | E105: 351 | F105: 354 | G105: 354 | H105: 360 | I105: 360 | J105: 363 | K105: 363 | L105: 369 | M105: 372
A106: 92 | B106: Forsørgere under 30 år, samlevende | C106: § 40 stk. 1 | D106: 843 | E106: 843 | F106: 852 | G106: 852 | H106: 867 | I106: 867 | J106: 879 | K106: 879 | L106: 888 | M106: 900
A107: 93 | B107: 25-29 år, udeboende | C107: § 40 stk. 1 | D107: 678 | E107: 678 | F107: 687 | G107: 687 | H107: 696 | I107: 696 | J107: 705 | K107: 705 | L107: 714 | M107: 723
A108: 94 | B108: 25-29 år, hjemmeboende | C108: § 40 stk. 1 | D108: 1146 | E108: 1146 | F108: 1161 | G108: 1161 | H108: 1179 | I108: 1179 | J108: 1194 | K108: 1194 | L108: 1209 | M108: 1221
A109: 95 | B109: Under 25 år, udeboende | C109: § 40 stk. 1 | D109: 144 | E109: 144 | F109: 147 | G109: 147 | H109: 150 | I109: 150 | J109: 150 | K109: 150 | L109: 153 | M109: 156
A110: 96 | B110: Under 25 år, hjemmeboende | C110: § 40 stk. 1 | D110: 111 | E110: 111 | F110: 114 | G110: 114 | H110: 114 | I110: 114 | J110: 117 | K110: 117 | L110: 117 | M110: 120
B111: Integrationsydelse
A112: 101 | B112: Enlige forsørgere | C112: § 22, stk.2 nr. 1 | E112: 11888 | F112: 12019 | G112: 12019 | H112: 12211 | I112: 12211 | J112: 12364 | K112: 11993 | L112: 12143 | M112: 12283 | N112: 12283 | O112: 12437
A113: 102 | B113: Forsørgere samlevende | C113: § 22, stk.2 nr. 2 | E113: 8319 | F113: 8411 | G113: 8411 | H113: 8546 | I113: 8546 | J113: 8653 | K113: 8393 | L113: 8498 | M113: 8596 | N113: 8596 | O113: 8703
A114: 103 | B114: Over 30 år eller udeboende | C114: § 22, stk.2 nr. 3 | E114: 5945 | F114: 6010 | G114: 6010 | H114: 6106 | I114: 6106 | J114: 6182 | K114: 5997 | L114: 6072 | M114: 6142 | N114: 6142 | O114: 6219
A115: 104 | B115: under 30 år | C115: § 22, stk.2 nr. 4 | E115: 2562 | F115: 2590 | G115: 2590 | H115: 2631 | I115: 2631 | J115: 2664 | K115: 2584 | L115: 2616 | M115: 2646 | N115: 2646 | O115: 2679
A116: 105 | B116: Dansktillæg | C116: § 22, stk. 5 | E116: 1500 | F116: 1517 | G116: 1517 | H116: 1541 | I116: 1541 | J116: 1560 | K116: 1560 | L116: 1580 | M116: 1598 | N116: 1598 | O116: 1618
B117: Periodesanktion integrationsydelse
A118: 106 | B118: Enlige forsørgere | C118: § 35, stk. 3 | E118: 549 | F118: 555 | G118: 555 | H118: 564 | I118: 564 | J118: 571 | K118: 554 | L118: 561 | M118: 567
A119: 107 | B119: Forsørgere samlevende | C119: § 35, stk. 3 | E119: 384 | F119: 388 | G119: 388 | H119: 394 | I119: 394 | J119: 399 | K119: 387 | L119: 392 | M119: 397
A120: 108 | B120: Over 30 år eller udeboende | C120: § 35, stk. 3 | E120: 274 | F120: 277 | G120: 277 | H120: 282 | I120: 282 | J120: 285 | K120: 277 | L120: 280 | M120: 283
A121: 109 | B121: under 30 år | C121: § 35, stk. 3 | E121: 118 | F121: 120 | G121: 120 | H121: 121 | I121: 121 | J121: 123 | K121: 119 | L121: 120 | M121: 121
A122: 110 | B122: Dansktillæg | E122: 70 | F122: 70 | G122: 70 | H122: 71 | I122: 71 | J122: 72 | K122: 72 | L122: 73 | M122: 74
B123: Punktsanktion Integrationsydelse
A124: 111 | B124: Enlige forsørgere | C124: § 40 stk. 1 | E124: 1647 | F124: 1665 | G124: 1665 | H124: 1692 | I124: 1692 | J124: 1713 | K124: 1662 | L124: 1683 | M124: 1702
A125: 112 | B125: Forsørgere samlevende | C125: § 40 stk. 1 | E125: 1152 | F125: 1164 | G125: 1164 | H125: 1182 | I125: 1182 | J125: 1197 | K125: 1161 | L125: 1176 | M125: 1190
A126: 113 | B126: Over 30 år eller udeboende | C126: § 40 stk. 1 | E126: 822 | F126: 831 | G126: 831 | H126: 846 | I126: 846 | J126: 855 | K126: 831 | L126: 839 | M126: 849
A127: 114 | B127: under 30 år | C127: § 40 stk. 1 | E127: 354 | F127: 360 | G127: 360 | H127: 363 | I127: 363 | J127: 369 | K127: 357 | L127: 362 | M127: 366
A128: 115 | B128: Dansktillæg | E128: 210 | F128: 210 | G128: 210 | H128: 213 | I128: 213 | J128: 216 | K128: 216 | L128: 219 | M128: 222
B129: Indtægter
A130: 121 | B130: Fradrag pr. arbejdstime | C130: § 31, stk.1 | D130: 25.38 | E130: 25.38 | F130: 25.74 | G130: 25.74 | H130: 26.25 | I130: 26.25 | J130: 26.78 | K130: 26.78 | L130: 27.32 | M130: 27.84 | N130: 27.84 | O130: 28.4
A131: 122 | B131: Omregningssats, ukendt arbejdstid | C131: § 31, stk.2 | D131: 220.5 | E131: 220.5 | F131: 225.13 | G131: 225.13 | H131: 230.08 | I131: 230.08 | J131: 235.6 | K131: 235.6 | L131: 241.73 | M131: 247.53 | N131: 247.53 | O131: 247.53
B132: Timeregel (1/10-16)
A133: 131 | B133: Nedsættelse enlige, høj sats | C133: § 13 g, stk. 1 nr. 1 | G133: 1000 | H133: 1016 | I133: 1016 | J133: 1029 | K133: 1029 | L133: 1042 | M133: 1054 | N133: 1054 | O133: 1067
A134: 132 | B134: nedsættelse enlige, lav sats | C134: § 13 g, stk. 1 nr. 2 | G134: 500 | H134: 508 | I134: 508 | J134: 514 | K134: 514 | L134: 520 | M134: 526 | N134: 526 | O134: 533
A135: 133 | B135: 225-timer grænse, ikke-forsørgere | G135: 10968 | H135: 11143 | I135: 11143 | J135: 11282 | K135: 11282 | L135: 11423 | M135: 11554 | N135: 11554 | O135: 11698
A136: 134 | B136: 225-timer grænse, forsørgere | G136: 14575 | H136: 14808 | I136: 14808 | J136: 14993 | K136: 14993 | L136: 15180 | M136: 15355 | N136: 15355 | O136: 15547
B137: Sanktioner 2020
A138: 301 | B138: Gænsebeløb 1 - over | N138: 13550 | O138: 13519
A139: 302 | B139: Gænsebeløb 2 - over | N139: 9800 | O139: 9935
A140: 303 | B140: Gænsebeløb 3 - over | N140: 5549 | O140: 5632
A141: 304 | B141: Gænsebeløb 4 | N141: 0
A142: 305 | B142: Sanktion 1 | C142: §35, stk. 4 | N142: 700 | O142: 700
A143: 306 | B143: Sanktion 2 | C143: §35, stk. 4 | N143: 600 | O143: 600
A144: 307 | B144: Sanktion 3 | C144: §35, stk. 4 | N144: 400 | O144: 400
A145: 308 | B145: Sanktion 4 | C145: §35, stk. 4 | N145: 200 | O145: 200
A146: 309 | B146: Punktsanktion 1 | C146: §35, stk. 5 | N146: 2100 | O146: 2100
A147: 310 | B147: Punktsanktion 2 | C147: §35, stk. 5 | N147: 1800 | O147: 1800
A148: 311 | B148: Punktsanktion 3 | C148: §35, stk. 5 | N148: 1200 | O148: 1200
A149: 312 | B149: Punktsanktion 4 | C149: §35, stk. 5 | N149: 600 | O149: 600
B150: ATP
A151: 141 | B151: ATP-bidrag pr. måne | D151: 90 | E151: 90 | F151: 95 | G151: 95 | H151: 95 | I151: 95 | J151: 95 | K151: 95 | L151: 95 | M151: 95 | N151: 95 | O151: 95
A152: 142 | B152: ATP-bidrag kommune | D152: 180 | E152: 180 | F152: 189 | G152: 189 | H152: 189 | I152: 189 | J152: 189 | K152: 189 | L152: 189 | M152: 189 | N152: 189 | O152: 189
A153: 143 | B153: OP-bidrag | M153: 0.003 | N153: 0.003 | O153: 0.006
A154: 144 | B154: ATP-grænsebeløb - forsørger | D154: 14416 | E154: 14416 | F154: 14575 | G154: 14575 | H154: 14808 | I154: 14808 | J154: 14993 | K154: 14993 | L154: 15180 | M154: 15355 | N154: 15355 | O154: 15547
A155: 145 | B155: ATP-grænsebeløb - ikke-forsørger | D155: 10849 | E155: 10849 | F155: 10968 | G155: 10968 | H155: 11143 | I155: 11143 | J155: 11282 | K155: 11282 | L155: 11423 | M155: 11554 | N155: 11554 | O155: 11698
B156: Særlig støtte
A157: 151 | B157: Grænsebeløb ikke-forsørger | C157: § 34, stk. 6 | D157: 2850 | E157: 2850 | F157: 2900 | G157: 2900 | H157: 2950 | I157: 2950 | J157: 3000 | K157: 3000 | L157: 3050 | M157: 3100 | N157: 3100 | O157: 3150
A158: 152 | B158: Forsørger et hjemmeboende barn | C158: § 34, stk. 6 | D158: 4050 | E158: 4050 | F158: 4100 | G158: 4100 | H158: 4200 | I158: 4200 | J158: 4300 | K158: 4300 | L158: 4400 | M158: 4500 | N158: 4500 | O158: 4600
A159: 153 | B159: Forsørger et udeboende barn | C159: § 34, stk. 6 | D159: 4150 | E159: 4150 | F159: 4200 | G159: 4200 | H159: 4300 | I159: 4300 | J159: 4400 | K159: 4400 | L159: 4500 | M159: 4600 | N159: 4600 | O159: 4700
A160: 154 | B160: hjemmeboende barn ekstra | C160: § 34, stk. 6 | D160: 750 | E160: 750 | F160: 800 | G160: 800 | H160: 800 | I160: 800 | J160: 800 | K160: 800 | L160: 850 | M160: 850 | N160: 850 | O160: 850
A161: 155 | B161: udeboende barn ekstra | C161: § 34, stk. 6 | D161: 600 | E161: 600 | F161: 600 | G161: 600 | H161: 650 | I161: 650 | J161: 650 | K161: 650 | L161: 650 | M161: 700 | N161: 700 | O161: 700
A162: 156 | B162: Indtægtsgrænse efter 3 måneder | C162: § 34, stk. 6 | D162: 17918 | E162: 17918 | F162: 18113 | G162: 18113 | H162: 18395 | I162: 18403 | J162: 18633 | K162: 18633 | L162: 18866 | M162: 19083 | N162: 19083 | O162: 19322
A163: 157 | B163: Grænse integrationsydelse | C163: §34, stk. 8 | H163: 12973 | I163: 12973 | J163: 13233 | K163: 13233 | L163: 13498 | M163: 13767 | N163: 13767 | O163: 14043
A164: 158 | B164: ATP af dagpenge | D164: 180 | E164: 180 | F164: 189 | G164: 189 | H164: 189 | I164: 189 | J164: 189 | K164: 189 | L164: 189 | M164: 189 | N164: 189 | O164: 189
B165: Kontanthjælpsloft (1/10-16)
B166: Sats § 25, stk. 2
A167: 201 | B167: Gifte/samlevende, forsørgere | C167: § 25b stk. 1 nr. 1 | G167: 14575 | H167: 14808 | I167: 14808 | J167: 14993 | K167: 14993 | L167: 15180 | M167: 15355 | N167: 15355 | O167: 15547
A168: 202 | B168: Gifte/samlevende, ikke forsørgere | C168: § 25b stk. 1 nr. 2 | G168: 10968 | H168: 11143 | I168: 11143 | J168: 11282 | K168: 11282 | L168: 11423 | M168: 11554 | N168: 11554 | O168: 11698
A169: 203 | B169: Enlige, forsørger, 1 barn | C169: § 25b stk. 1 nr. 3 | G169: 15196 | H169: 15439 | I169: 15439 | J169: 15632 | K169: 15632 | L169: 15827 | M169: 16009 | N169: 16009 | O169: 16209
A170: 204 | B170: Enlige, forsørger, 2 eller flere børn | C170: § 25b stk. 1 nr. 4 | G170: 15554 | H170: 15803 | I170: 15803 | J170: 16001 | K170: 16001 | L170: 16201 | M170: 16387 | N170: 16387 | O170: 16592
A171: 205 | B171: Enlige, ikke forsørger | C171: § 25b stk. 1 nr. 5 | G171: 13265 | H171: 13477 | I171: 13477 | J171: 13645 | K171: 13645 | L171: 13816 | M171: 13975 | N171: 13975 | O171: 14150
B172: Sats § 25 stk. 3
A173: 211 | B173: Gifte/samlevende, 1 barn | C173: § 25b stk. 2 nr. 1 | G173: 12444 | H173: 12643 | I173: 12643 | J173: 12801 | K173: 12801 | L173: 12961 | M173: 13110 | N173: 13110 | O173: 13274
A174: 212 | B174: Gifte/samlevende, 2 eller flere børn | C174: § 25b stk. 2 nr. 2 | G174: 12321 | H174: 12518 | I174: 12518 | J174: 12674 | K174: 12674 | L174: 12832 | M174: 12980 | N174: 12980 | O174: 13142
A175: 213 | B175: Gifte/samlevende, ikke forsørgere | C175: § 25b stk. 2 nr. 3 | G175: 9452 | H175: 9603 | I175: 9603 | J175: 9723 | K175: 9723 | L175: 9845 | M175: 9958 | N175: 9958 | O175: 10082
A176: 214 | B176: Enlige, forsørger, 1 barn | C176: § 25b stk. 2 nr. 4 | G176: 14896 | H176: 15134 | I176: 15134 | J176: 15323 | K176: 15323 | L176: 15515 | M176: 15693 | N176: 15693 | O176: 15889
A177: 215 | B177: Enlige, forsørger, 2 eller flere børn | C177: § 25b stk. 2 nr. 5 | G177: 15254 | H177: 15498 | I177: 15498 | J177: 15692 | K177: 15692 | L177: 15888 | M177: 16071 | N177: 16071 | O177: 16272
A178: 216 | B178: Enlige, ikke forsørger | C178: § 25b stk. 2 nr. 6 | G178: 10154 | H178: 10316 | I178: 10316 | J178: 10445 | K178: 10445 | L178: 10576 | M178: 10698 | N178: 10698 | O178: 10832
B179: Sats § 23
A180: 221 | B180: Gifte/samlevende, 1 barn | C180: § 25b stk. 3 nr. 1 | G180: 11867 | H180: 12057 | I180: 12057 | J180: 12208 | K180: 12208 | L180: 12361 | M180: 12503 | N180: 12503 | O180: 12659
A181: 222 | B181: Gifte/samlevende, 2 eller flere børn | C181: § 25b stk. 3 nr. 2 | G181: 11707 | H181: 11894 | I181: 11894 | J181: 12043 | K181: 12043 | L181: 12194 | M181: 12334 | N181: 12334 | O181: 12488
A182: 223 | B182: Gifte/samlevende, ikke forsørgere | C182: § 25b stk. 3 nr. 3 | G182: 9057 | H182: 9202 | I182: 9202 | J182: 9317 | K182: 9317 | L182: 9433 | M182: 9541 | N182: 9541 | O182: 9660
A183: 224 | B183: Enlige, forsørger, 1 barn | C183: § 25b stk. 3 nr. 4 | G183: 14172 | H183: 14399 | I183: 14399 | J183: 14579 | K183: 14579 | L183: 14761 | M183: 14931 | N183: 14931 | O183: 15118
A184: 225 | B184: Enlige, forsørger, 2 eller flere børn | C184: § 25b stk. 3 nr. 5 | G184: 14530 | H184: 14762 | I184: 14762 | J184: 14947 | K184: 14947 | L184: 15134 | M184: 15308 | N184: 15308 | O184: 15499
A185: 226 | B185: Enlige, ikke forsørger | C185: § 25b stk. 3 nr. 6 | G185: 9754 | H185: 9910 | I185: 9910 | J185: 10034 | K185: 10034 | L185: 10159 | M185: 10276 | N185: 10276 | O185: 10404
B186: Sats § 22, (nedsat 225-timer) | C186: ændres 1/7-18
A187: 231 | B187: Gifte/samlevende, 1 barn | C187: § 25b stk. 4 nr. 1 | G187: 9087 | H187: 9232 | I187: 9232 | J187: 9347 | K187: 11948 | L187: 12097 | M187: 12236 | N187: 12236 | O187: 12389
A188: 232 | B188: Gifte/samlevende, 2 eller flere børn | C188: § 25b stk. 4 nr. 2 | G188: 9154 | H188: 9300 | I188: 9300 | J188: 9416 | K188: 11783 | L188: 11930 | M188: 12067 | N188: 12067 | O188: 12218
A189: 233 | B189: Gifte/samlevende, ikke forsørgere | C189: § 25b stk. 4 nr. 3 | G189: 6118 | H189: 6216 | I189: 6216 | J189: 6294 | K189: 9132 | L189: 9246 | M189: 9352 | N189: 9352 | O189: 9469
A190: 234 | B190: Enlige, forsørger, 1 barn | C190: § 25b stk. 4 nr. 4 | G190: 6865 | H190: 6975 | I190: 6975 | J190: 7062 | K190: 14208 | L190: 14386 | M190: 14551 | N190: 14551 | O190: 14733
A191: 235 | B191: Enlige, forsørger, 2 eller flere børn | C191: § 25b stk. 4 nr. 5 | G191: 6932 | H191: 7043 | I191: 7043 | J191: 7131 | K191: 14576 | L191: 14758 | M191: 14928 | N191: 14928 | O191: 15115
A192: 236 | B192: Enlige, ikke forsørger | C192: § 25b stk. 4 nr. 6 | G192: 5077 | H192: 5158 | I192: 5158 | J192: 5222 | K192: 9848 | L192: 9971 | M192: 10086 | N192: 10086 | O192: 10212
B193: Sats § 22, nedsat 225-timer | C193: indføres 1/7-18
A194: 241 | B194: Ej nedsat hjælp, forsørger, 1 barn | C194: § 25b stk. 5 nr. 1 | K194: 9088 | L194: 9202 | M194: 9308 | N194: 9308 | O194: 9424
A195: 242 | B195: Ej nedsat hjælp, forsørger, 2 eller flere børn | C195: § 25b stk. 5 nr. 2 | K195: 9157 | L195: 9271 | M195: 9378 | N195: 9378 | O195: 9495
A196: 243 | B196: Ej nedsat hjælp, ikke forsørger | C196: § 25b stk. 5 nr. 3 | K196: 6108 | L196: 6184 | M196: 6255 | N196: 6255 | O196: 6333
A197: 244 | B197: Nedsat hjælp, forsørger, 1 barn | C197: § 25b stk. 5 nr. 4 | K197: 7322 | L197: 7414 | M197: 7499 | N197: 7499 | O197: 7593
A198: 245 | B198: Nedsat hjælp, forsørger, 2 eller flere børn | C198: § 25b stk. 5 nr. 5 | K198: 7391 | L198: 7483 | M198: 7569 | N198: 7569 | O198: 7664
A199: 246 | B199: Nedsat hjælp, ikke forsørger | C199: § 25b stk. 5 nr. 6 | K199: 5408 | L199: 5476 | M199: 5539 | N199: 5539 | O199: 5608
A204: 0 | B204: Ingen sats | C204: - | D204: 0 | E204: 0 | F204: 0 | G204: 0 | I204: 0 | J204: 0 | K204: 0 | L204: 0 | M204: 0 | N204: 0 | O204: 0

Sheet 2021 sats
A1: Kontanthjælp
A2: Fyldt 30 år, forsørger børn | B2: § 25, stk. 2, nr. 1 | C2: Kr. pr. måned | D2: 15547
A3: Fyldt 30 år, andre | B3: § 25, stk. 2, nr. 2 | C3: Kr. pr. måned | D3: 11698
A4: Enlige forsørgere under 30 år | B4: § 25, stk. 3, nr. 1 | C4: Kr. pr. måned | D4: 14860
A5: Forsørgere under 30 år, som ikke har erhvervet ret til ekstra børnetilskud | B5: § 25, stk. 3, nr. 2 | C5: Kr. pr. måned
D6: 10396
A7: Under 30 år, gravid (passeret 12. svangerskabsuge) | B7: § 25, stk. 3, nr. 3 | C7: Kr. pr. måned | D7: 11698
A8: Under 30 år, psykisk syg, forsørgelsespligt | B8: § 25, stk. 3, nr. 4 | C8: Kr. pr. måned | D8: 15547
A9: Under 30 år, psykisk syg, udeboende | B9: § 25, stk. 3, nr. 5 | C9: Kr. pr. måned | D9: 11698
A10: 25-29 år, udeboende | B10: § 25, stk. 3, nr. 6 | C10: Kr. pr. måned | D10: 7541
A11: 25-29 år, hjemmeboende | B11: § 25, stk. 3, nr. 7 | C11: Kr. pr. måned | D11: 3639
A12: Under 25 år, udeboende | B12: § 25, stk. 3, nr. 8 | C12: Kr. pr. måned | D12: 7541
A13: Under 25 år, hjemmeboende | B13: § 25, stk. 3, nr. 9 | C13: Kr. pr. måned | D13: 3639
A14: Under 30 år, bidragspligt, maksimum hjælp inkl. tillæg | B14: § 25, stk. 4 | C14: Kr. pr. måned | D14: 15547
A16: Aktivitetstillæg/Barselstillæg til kontanthjælp
A17: Enlige forsørgere under 30 år | B17: § 25, stk. 9, nr. 1 | C17: Kr. pr. måned | D17: 686
A18: Forsørgere under 30 år, som ikke har erhvervet ret til ekstra børnetilskud | B18: § 25, stk. 9, nr. 2 | C18: Kr. pr. måned
D19: 5151
A20: 25-29 år, udeboende | B20: § 25, stk. 9, nr. 3 | C20: Kr. pr. måned | D20: 4159
A21: 25-29 år, hjemmeboende | B21: § 25, stk. 9, nr. 4 | C21: Kr. pr. måned | D21: 8062
A22: Sanktionssatser – kontanthjælp. § 35, stk. 412) | B22: § 35, stk. 4 | C22: Kr. pr. måned
A23: Sanktionssats ved en månedlig ydelsessats på mindre end 5.633 kr.
D24: 200
A25: Sanktionssats ved en månedlig ydelsessats på mindst 5.633 kr. og højst 9.935 kr. | B25: § 35, stk. 4 | C25: Kr. pr. måned
D26: 400
A27: Sanktionssats ved en månedlig ydelsessats på mere end 9.935 kr. og højst 13.519 kr. | B27: § 35, stk. 4 | C27: Kr. pr. måned
D28: 600
A29: Sanktionssats ved en månedlig ydelsessats på mere end 13.519 kr. | B29: § 35, stk. 4 | C29: Kr. pr. måned | D29: 700
A31: Sanktionssatser – kontanthjælp. § 35, stk. 512) | B31: § 35, stk. 5 | C31: Kr. pr. måned
A32: Sanktionssats ved en månedlig ydelsessats på mindre end 5.633 kr. | D32: 600
A33: Sanktionssats ved en månedlig ydelsessats på mindst 5.633 kr. og højst 9.935 kr. | B33: § 35, stk. 5 | C33: Kr. pr. måned
D34: 1200
A35: Sanktionssats ved en månedlig ydelsessats på mere end 9.935 kr. og højst 13.519 kr. | B35: § 35, stk. 5 | C35: Kr. pr. måned
D36: 1800
A37: Sanktionssats ved en månedlig ydelsessats på mere end 13.519 kr. | B37: § 35, stk. 5 | C37: Kr. pr. måned | D37: 2100
A39: Sanktion ved uberettiget modtagelse af hjælp efter §§ 22-25 samtidig med arbejde eller ophold i udlandet
A40: Sanktionsgrænse | B40: § 42, stk. 1 og § 43, stk. 1 | C40: Kr. pr. måned | D40: 11698
A42: Uddannelseshjælp
A43: Enlige forsørgere under 30 år | B43: § 23, stk. 2, nr. 1 | C43: Kr. pr. måned | D43: 12821
A44: Forsørgere under 30 år, som ikke har erhvervet ret til ekstra børnetilskud | B44: § 23, stk. 2, nr. 2 | C44: Kr. pr. måned
D45: 8973
A46: Under 30 år, gravid (passeret 12. svangerskabsuge) | B46: § 23, stk. 2, nr. 3 | C46: Kr. pr. måned | D46: 11698
A47: Under 30 år, psykisk syg, forsørgelsespligt | B47: § 23, stk. 2, nr. 4 | C47: Kr. pr. måned | D47: 15547
A48: Under 30 år, psykisk syg, udeboende | B48: § 23, stk. 2, nr. 5 | C48: Kr. pr. måned | D48: 11698
A49: 25-29 år, udeboende | B49: § 23, stk. 2, nr. 6 | C49: Kr. pr. måned | D49: 6410
A50: 25-29 år, hjemmeboende | B50: § 23, stk. 2, nr. 7 | C50: Kr. pr. måned | D50: 2762
A51: Under 25 år, udeboende | B51: § 23, stk. 2, nr. 8 | C51: Kr. pr. måned | D51: 6410
A52: Under 25 år, hjemmeboende | B52: § 23, stk. 2, nr. 9 | C52: Kr. pr. måned | D52: 2762
A53: Under 30 år, bidragspligt, maksimum hjælp inkl. tillæg | B53: § 23, stk. 3 | C53: Kr. pr. måned | D53: 15547
A54: Aktivitetstillæg/Barselstillæg til uddannelseshjælp
A55: Enlige forsørgere under 30 år | B55: § 24, stk. 3, nr. 1 | C55: Kr. pr. måned | D55: 2727
A56: Forsørgere under 30 år, som ikke har erhvervet ret til ekstra børnetilskud. | B56: § 24, stk. 3, nr. 2 | C56: Kr. pr. måned
D57: 6575
A58: 25-29 år, udeboende | B58: § 24, stk. 3, nr. 3 | C58: Kr. pr. måned | D58: 5288
A59: 25-29 år, hjemmeboende | B59: § 24, stk. 3, nr. 4 | C59: Kr. pr. måned | D59: 8936
A60: Under 25 år, udeboende | B60: § 24, stk. 3, nr. 5 | C60: Kr. pr. måned | D60: 1130
A61: Under 25 år, hjemmeboende | B61: § 24, stk. 3, nr. 6 | C61: Kr. pr. måned | D61: 876
B62: § 35, stk. 4 | C62: Kr. pr. måned
A63: Sanktionssatser – uddannelseshjælp. § 35, stk. 412)
A64: Sanktionssats ved en månedlig ydelsessats på mindre end 5.633 kr. | D64: 200
A65: Sanktionssats ved en månedlig ydelsessats på mindst 5.633 kr. og højst 9.935 kr. | B65: § 35, stk. 4 | C65: Kr. pr. måned
D66: 400
A67: Sanktionssats ved en månedlig ydelsessats på mere end 9.935 kr. og højst 13.519 kr. | B67: § 35, stk. 4 | C67: Kr. pr. måned
D68: 600
A69: Sanktionssats ved en månedlig ydelsessats på mere end 13.519 kr. | B69: § 35, stk. 4 | C69: Kr. pr. måned | D69: 700
A71: Sanktionssatser – uddannelseshjælp. § 35, stk. 512)
A72: Sanktionssats ved en månedlig ydelsessats på mindre end 5.633 kr. | B72: § 35, stk. 5 | C72: Kr. pr. måned | D72: 600
A73: Sanktionssats ved en månedlig ydelsessats på mindst 5.633 kr. og højst 9.935 kr. | B73: § 35, stk. 5 | C73: Kr. pr. måned
D74: 1200
A75: Sanktionssats ved en månedlig ydelsessats på mere end 9.935 kr. og højst 13.519 kr. | B75: § 35, stk. 5 | C75: Kr. pr. måned
D76: 1800
A77: Sanktionssats ved en månedlig ydelsessats på mere end 13.519 kr. | B77: § 35, stk. 5 | C77: Kr. pr. måned | D77: 2100
A80: Sanktion ved uberettiget modtagelse af hjælp efter §§ 22-25 samtidig med arbejde eller ophold i udlandet
A81: Sanktionsgrænse | B81: § 42, stk. 1 og § 43, stk. 1 | C81: Kr. pr. måned | D81: 11698
A82: Kontanthjælpsloft for modtagere af hjælp efter §§ 23-25 med et beløb svarende til satserne i § 25, stk. 2
A83: Gifte/samlevende, forsørgere | B83: § 25 b, stk. 1, nr. 1 | C83: Kr. pr. måned | D83: 15547
A84: Gifte/samlevende, ikke forsørgere | B84: § 25 b, stk. 1, nr. 2 | C84: Kr. pr. måned | D84: 11698
A85: Enlige, forsørger, 1 barn | B85: § 25 b, stk. 1, nr. 3 | C85: Kr. pr. måned | D85: 16209
A86: Enlige, forsørger, 2 eller flere børn | B86: § 25 b, stk. 1, nr. 4 | C86: Kr. pr. måned | D86: 16592
A87: Enlige, ikke forsørger | B87: § 25 b, stk. 1, nr. 5 | C87: Kr. pr. måned | D87: 14150
A88: Kontanthjælpsloft for modtagere af hjælp efter § 25, stk. 3, og som ikke er omfattet af § 25 b, stk. 1
A89: Gifte/samlevende, forsørgere, 1 barn | B89: § 25 b, stk. 2, nr. 1 | C89: Kr. pr. måned | D89: 13274
A90: Gifte/samlevende, forsørgere, 2 eller flere børn | B90: § 25 b, stk. 2, nr. 2 | C90: Kr. pr. måned | D90: 13142
A91: Gifte/samlevende, ikke forsørgere | B91: § 25 b, stk. 2, nr. 3 | C91: Kr. pr. måned | D91: 10082
A92: Enlige, forsørger, 1 barn | B92: § 25 b, stk. 2, nr. 4 | C92: Kr. pr. måned | D92: 15889
A93: Enlige, forsørger, 2 eller flere børn | B93: § 25 b, stk. 2, nr. 5 | C93: Kr. pr. måned | D93: 16272
A94: Enlige, ikke forsørger | B94: § 25 b, stk. 2, nr. 6 | C94: Kr. pr. måned | D94: 10832
A95: Kontanthjælpsloft for modtagere af hjælp efter §§ 23-24, eller som får beregnet hjælp efter § 26, stk. 2, og som ikke er omfattet af § 25 b, stk. 1
A96: Gifte/samlevende, forsørgere, 1 barn | B96: § 25 b, stk. 3, nr. 1 | C96: Kr. pr. måned | D96: 12659
A97: Gifte/samlevende, forsørgere, 2 eller flere børn | B97: § 25 b, stk. 3, nr. 2 | C97: Kr. pr. måned | D97: 12488
A98: Gifte/samlevende, ikke forsørgere | B98: § 25 b, stk. 3, nr. 3 | C98: Kr. pr. måned | D98: 9660
A99: Enlige, forsørger, 1 barn | B99: § 25 b, stk. 3, nr. 4 | C99: Kr. pr. måned | D99: 15118
A100: Enlige, forsørger, 2 eller flere børn | B100: § 25 b, stk. 3, nr. 5 | C100: Kr. pr. måned | D100: 15499
A101: Enlige, ikke forsørger | B101: § 25 b, stk. 3, nr. 6 | C101: Kr. pr. måned | D101: 10404
A102: Kontanthjælpsloft for ægtefæller, hvor en eller begge modtager selvforsørgelses- og hjemrejseydelse eller overgangsydelse, og som ikke opfylder 225 timers kravet (Ægtefæller omfattet af § 13 f, stk. 3 og 4)
A103: Ej nedsat hjælp, forsørger, 1 barn | B103: § 25 b, stk. 5, nr. 1 | C103: Kr. pr. måned | D103: 9424
A104: Ej nedsat hjælp, forsørger, 2 eller flere børn | B104: § 25 b, stk. 5, nr. 2 | C104: Kr. pr. måned | D104: 9495
A105: Ej nedsat hjælp, ikke forsørger | B105: § 25 b, stk. 5, nr. 3 | C105: Kr. pr. måned | D105: 6333
A106: Nedsat hjælp, forsørger, 1 barn | B106: § 25 b, stk. 5, nr. 4 | C106: Kr. pr. måned | D106: 7593
A107: Nedsat hjælp, forsørger, 2 eller flere børn | B107: § 25 b, stk. 5, nr. 5 | C107: Kr. pr. måned | D107: 7664
A108: Nedsat hjælp, ikke forsørger | B108: § 25 b, stk. 5, nr. 6 | C108: Kr. pr. måned | D108: 5608
A109: Nedsættelse af hjælpen til ugifte personer, der ikke opfylder kravet om 225 timers ordinært og ustøttet arbejde inden for de seneste 12 kalendermåneder
A110: Hjælp beregnet på baggrund af 15.547 kr./11.698 kr. pr. måned | B110: § 13 g, stk. 1, nr. 1 | C110: Kr. pr. måned | D110: 1067
A111: Hjælp beregnet på baggrund af mindre end 15.547 kr./11.698 kr. pr. måned | B111: § 13 g, stk. 1, nr. 2 | C111: Kr. pr. måned | D111: 533
A112: Omregningssats for ukendt arbejdstid til 225 timers-regel
A113: Omregningssats | B113: § 13 f, stk. 15 | C113: Kr. pr. time | D113: 127.03
A114: Ægtefælleberegning – 225 timers-regel
A115: Forsørgere | B115: § 26, stk. 5-8 | C115: Kr. pr. måned | D115: 15547
A116: Ikke-forsørgere | B116: § 26, stk. 5-8 | C116: Kr. pr. måned | D116: 11698
A117: Engangshjælp
A118: Over 25 år, samt udeboende under 25 år (maksimum) | B118: § 25 a, stk. 2 | C118: Kr. pr. måned | D118: 6252
A119: Hjemmeboende under 25 år (maksimum) | B119: § 25 a, stk. 3 | C119: Kr. pr. måned | D119: 3108
A120: Hjælp til visse persongrupper
A121: Nået efterlønsalderen, ikke optjent pensionsret | B121: § 27, stk. 1 | C121: Kr. pr. måned | D121: 10225
A122: Børnestøttebeløb, ikke optjent pensionsret | B122: § 27, stk. 2 | C122: Kr. pr. måned | D122: 3147
A123: Enlige forsørgere – under 30 år (maksimum) | B123: § 12, stk. 3 | C123: Kr. pr. måned | D123: 12821
A124: Fradrag ved formue og indtægt, beløb der ses bort fra
A125: Formue, enlige | B125: § 14, stk. 1 | C125: Kr. pr. måned | D125: 10000
A126: Formue, ægtefæller | B126: § 14, stk. 1 | C126: Kr. pr. måned | D126: 20000
A127: Formue, engangsbeløb fra forsikring ved kritisk sygdom | B127: § 14, stk. 8 | C127: Kr. pr. forsikringsbegivenhed | D127: 150000
A128: Forsørgelsesydelse, ægtefæller, forsørgelsespligt | B128: § 30, stk. 2 | C128: Kr. pr. måned
D129: 15547
A130: Forsørgelsesydelse, ægtefæller, andre | B130: § 30, stk. 2 | C130: Kr. pr. måned | D130: 11698
A131: Fradrag pr. arbejdstime ved arbejdsindtægt | B131: § 31, stk. 1 | C131: Kr. pr. time | D131: 28.4
A132: Fradrag for indtægter ved arbejde - STU (maksimumbeløb) | B132: § 31, stk. 2 | C132: Kr. pr. år | D132: 26842
A133: Arbejdstillæg, ukendt arbejdstimer, omregningssats | B133: § 31, stk. 3 | C133: Kr. pr. time | D133: 247.53
A134: Særlig støtte, grænsebeløb, boligudgift13)
A135: Ikke-forsørgere | B135: § 34, stk. 8 | C135: Kr. pr. måned | D135: 3150
A136: Forsørgere med et hjemmeboende barn | B136: § 34, stk. 8 | C136: Kr. pr. måned | D136: 4600
A137: Forsørgere med et udeboende barn | B137: § 34, stk. 8 | C137: Kr. pr. måned | D137: 4700
A138: Fradrag i grænsebeløbet pr. barn hjemme udover 1 | B138: § 34, stk. 8 | C138: Kr. pr. måned | D138: 850
A139: Fradrag i grænsebeløbet pr. barn ude udover 1 | B139: § 34, stk. 8 | C139: Kr. pr. måned | D139: 700
A140: Indtægtsgrænse efter 3 måneder - dagpengemaksimum | B140: § 34, stk. 8 | C140: Kr. pr. måned | D140: 19322
A141: Grænse uafhængig af tidligere indtægter – selvforsørgelses- og hjemrejseydelse og overgangsydelse | B141: § 34, stk. 8 | C141: Kr. pr. måned | D141: 14043
A142: Fradrag for forskudsvis udlagt børnebidrag
A143: Samlede udbetalt beløb (minimumsbeløb) | B143: § 96 a, stk. 1 | C143: Kr. pr. måned | D143: 15547

Sheet 2020 sats
A1: Tabel 5. Kontanthjælp og uddannelseshjælp, jf. lov om aktiv socialpolitik (LBK nr. 981 af 23. september 2019)
D2: Lovhenvisning | J2: Enhed | M2: Sats
A3: Kontanthjælp
A4: Fyldt 30 år, forsørger børn | D4: § 25, stk. 2, nr. 1 | J4: Kr. pr. måned | M4: 15355
A5: Fyldt 30 år, andre | D5: § 25, stk. 2, nr. 2 | J5: Kr. pr. måned | M5: 11554
A6: Enlige forsørgere under 30 år | D6: § 25, stk. 3, nr. 1 | J6: Kr. pr. måned | M6: 14677
A7: Forsørgere under 30 år, som ikke har erhvervet ret til ekstra børnetilskud | D7: § 25, stk. 3, nr. 2 | J7: Kr. pr. måned | M7: 10268
A8: Under 30 år, gravid (passeret 12. svangerskabsuge) | D8: § 25, stk. 3, nr. 3 | J8: Kr. pr. måned | M8: 11554
A9: Under 30 år, psykisk syg, forsørgelsespligt | D9: § 25, stk. 3, nr. 4 | J9: Kr. pr. måned | M9: 15355
A10: Under 30 år, psykisk syg, udeboende | D10: § 25, stk. 3, nr. 5 | J10: Kr. pr. måned | M10: 11554
A11: 25-29 år, udeboende | D11: § 25, stk. 3, nr. 6 | J11: Kr. pr. måned | M11: 7448
A12: 25-29 år, hjemmeboende | D12: § 25, stk. 3, nr. 7 | J12: Kr. pr. måned | M12: 3594
A13: Under 25 år, udeboende | D13: § 25, stk. 3, nr. 8 | J13: Kr. pr. måned | M13: 7448
A14: Under 25 år, hjemmeboende | D14: § 25, stk. 3, nr. 9 | J14: Kr. pr. måned | M14: 3594
A15: Under 30 år, bidragspligt, maksimum hjælp inkl. tillæg | D15: § 25, stk. 4 | J15: Kr. pr. måned | M15: 15355
A16: Aktivitetstillæg/Barselstillæg til kontanthjælp
A17: Enlige forsørgere under 30 år | D17: § 25, stk. 9, nr. 1 | J17: Kr. pr. måned | M17: 678
A18: Forsørgere under 30 år, som ikke har erhvervet ret til ekstra børnetilskud | D18: § 25, stk. 9, nr. 2 | J18: Kr. pr. måned | M18: 5087
A19: 25-29 år, udeboende | D19: § 25, stk. 9, nr. 3 | J19: Kr. pr. måned | M19: 4108
A20: 25-29 år, hjemmeboende | D20: § 25, stk. 9, nr. 4 | J20: Kr. pr. måned | M20: 7962
A21: Periodesanktioner – fradrag i kontanthjælp 12)
A22: Fyldt 30 år, forsørger børn | D22: § 35, stk. 3 | J22: Kr. pr. dag | M22: 709
A23: Fyldt 30 år, andre | D23: § 35, stk. 3 | J23: Kr. pr. dag | M23: 533
A24: Enlige forsørgere under 30 år | D24: § 35, stk. 3 | J24: Kr. pr. dag | M24: 677
A25: Forsørgere under 30 år, som ikke har erhvervet ret til ekstra børnetilskud | D25: § 35, stk. 3 | J25: Kr. pr. dag | M25: 474
A26: Under 30 år, gravid (passeret 12. svangerskabsuge) | D26: § 35, stk. 3 | J26: Kr. pr. dag | M26: 533
A27: Under 30 år, psykisk syg, forsørgelsespligt | D27: § 35, stk. 3 | J27: Kr. pr. dag | M27: 709
A28: Under 30 år, psykisk syg, udeboende | D28: § 35, stk. 3 | J28: Kr. pr. dag | M28: 533
A29: 25-29 år, udeboende | D29: § 35, stk. 3 | J29: Kr. pr. dag | M29: 344
A30: 25-29 år, hjemmeboende | D30: § 35, stk. 3 | J30: Kr. pr. dag | M30: 166
A31: Under 25 år, udeboende | D31: § 35, stk. 3 | J31: Kr. pr. dag | M31: 344
A32: Under 25 år, hjemmeboende | D32: § 35, stk. 3 | J32: Kr. pr. dag | M32: 166
A33: Under 30 år, bidragspligt, maksimum hjælp inkl. tillæg | D33: § 35, stk. 3 | J33: Kr. pr. dag | M33: 709
A34: Periodesanktioner – fradrag i aktivitetstillæg til kontanthjælp 12)
A35: Enlige forsørgere under 30 år | D35: § 35, stk. 3 | J35: Kr. pr. dag | M35: 31
A36: Forsørger under 30 år, som ikke har erhvervet ret til ekstra børnetilskud. | D36: § 35, stk. 3 | J36: Kr. pr. dag | M36: 235
A37: 25-29 år, udeboende | D37: § 35, stk. 3 | J37: Kr. pr. dag | M37: 190
A38: 25-29 år, hjemmeboende | D38: § 35, stk. 3 | J38: Kr. pr. dag | M38: 367
A39: Punktsanktioner – nedsættelse af kontanthjælp 12)
A40: Fyldt 30 år, forsørger børn | D40: § 40, stk. 1 | J40: Kr. pr. hændelse | M40: 2127
A41: Fyldt 30 år, andre | D41: § 40, stk. 1 | J41: Kr. pr. hændelse | M41: 1599
A42: Enlige forsørgere under 30 år | D42: § 40, stk. 1 | J42: Kr. pr. hændelse | M42: 2031
A43: Forsørgere under 30 år, som ikke har erhvervet ret til ekstra børnetilskud. | D43: § 40, stk. 1 | J43: Kr. pr. hændelse | M43: 1422
A44: Under 30 år, gravid (passeret 12. svangerskabsuge) | D44: § 40, stk. 1 | J44: Kr. pr. hændelse | M44: 1599
A45: Under 30 år, psykisk syg, forsørgelsespligt | D45: § 40, stk. 1 | J45: Kr. pr. hændelse | M45: 2127
A46: Under 30 år, psykisk syg, udeboende | D46: § 40, stk. 1 | J46: Kr. pr. hændelse | M46: 1599
A47: 25-29 år, udeboende | D47: § 40, stk. 1 | J47: Kr. pr. hændelse | M47: 1032
A48: 25-29 år, hjemmeboende | D48: § 40, stk. 1 | J48: Kr. pr. hændelse | M48: 498
A49: Under 25 år, udeboende | D49: § 40, stk. 1 | J49: Kr. pr. hændelse | M49: 1032
A50: Under 25 år, hjemmeboende | D50: § 40, stk. 1 | J50: Kr. pr. hændelse | M50: 498
A51: Under 30 år, bidragspligt, maksimum hjælp inkl. tillæg | D51: § 40, stk. 1 | J51: Kr. pr. hændelse | M51: 2127
A52: Punktsanktioner – nedsættelse i aktivitetstillæg til kontanthjælp 12)
A53: Enlige forsørgere under 30 år | D53: § 40, stk. 1 | J53: Kr. pr. hændelse | M53: 93
A54: Forsørgere under 30 år, som ikke har erhvervet ret til ekstra børnetilskud | D54: § 40, stk. 1 | J54: Kr. pr. hændelse | M54: 705
A55: 25-29 år, udeboende | D55: § 40, stk. 1 | J55: Kr. pr. hændelse | M55: 570
A56: 25-29 år, hjemmeboende | D56: § 40, stk. 1 | J56: Kr. pr. hændelse | M56: 1101
A57: Sanktionssatser – kontanthjælp. § 35, stk. 413) | D57: § 35, stk. 4 | J57: Kr. pr. måned | M57: 200
A58: Sanktionssats ved en månedlig ydelsessats under 5.550 kr.
A59: Sanktionssats ved en månedlig ydelsessats 5.550-9.800 kr. | D59: § 35, stk. 4 | J59: Kr. pr. måned | M59: 400
A60: Sanktionssats ved en månedlig ydelsessats 9.801-13.350 kr. | D60: § 35, stk. 4 | J60: Kr. pr. måned | M60: 600
A61: Sanktionssats ved en månedlig ydelsessats over 13.350 kr. | D61: § 35, stk. 4 | J61: Kr. pr. måned | M61: 700
A63: Sanktionssatser – kontanthjælp. § 35, stk. 513) | D63: § 35, stk. 5 | J63: Kr. pr. måned | M63: 600
A64: Sanktionssats ved en månedlig ydelsessats under 5.550 kr.
A65: Sanktionssats ved en månedlig ydelsessats 5.550-9.800 kr. | D65: § 35, stk. 5 | J65: Kr. pr. måned | M65: 1200
A66: Sanktionssats ved en månedlig ydelsessats 9.801-13.350 kr. | D66: § 35, stk. 5 | J66: Kr. pr. måned | M66: 1800
A67: Sanktionssats ved en månedlig ydelsessats over 13.350 kr. | D67: § 35, stk. 5 | J67: Kr. pr. måned | M67: 2100
A69: Sanktion ved uberettiget modtagelse af hjælp efter §§ 22-25 samtidig med arbejde eller ophold i udlandet
A70: Sanktionsgrænse | D70: § 42, stk. 1 og § 43, | J70: Kr. pr. måned | M70: 11554
D71: stk. 1
A73: Uddannelseshjælp
A74: Enlige forsørgere under 30 år | D74: § 23, stk. 2, nr. 1 | J74: Kr. pr. måned | M74: 12663
A75: Forsørgere under 30 år, som ikke har erhvervet ret til ekstra børnetilskud | D75: § 23, stk. 2, nr. 2 | J75: Kr. pr. måned | M75: 8862
A76: Under 30 år, gravid (passeret 12. svangerskabsuge) | D76: § 23, stk. 2, nr. 3 | J76: Kr. pr. måned | M76: 11554
A77: Under 30 år, psykisk syg, forsørgelsespligt | D77: § 23, stk. 2, nr. 4 | J77: Kr. pr. måned | M77: 15355
A78: Under 30 år, psykisk syg, udeboende | D78: § 23, stk. 2, nr. 5 | J78: Kr. pr. måned | M78: 11554
A79: 25-29 år, udeboende | D79: § 23, stk. 2, nr. 6 | J79: Kr. pr. måned | M79: 6331
A80: 25-29 år, hjemmeboende | D80: § 23, stk. 2, nr. 7 | J80: Kr. pr. måned | M80: 2728
A81: Under 25 år, udeboende | D81: § 23, stk. 2, nr. 8 | J81: Kr. pr. måned | M81: 6331
A82: Under 25 år, hjemmeboende | D82: § 23, stk. 2, nr. 9 | J82: Kr. pr. måned | M82: 2728
A83: Under 30 år, bidragspligt, maksimum hjælp inkl. tillæg | D83: § 23, stk. 3 | J83: Kr. pr. måned | M83: 15355
A84: Aktivitetstillæg/Barselstillæg til uddannelseshjælp
A85: Enlige forsørgere under 30 år | D85: § 24, stk. 3, nr. 1 | J85: Kr. pr. måned | M85: 2693
A86: Forsørgere under 30 år, som ikke har erhvervet ret til ekstra børnetilskud. | D86: § 24, stk. 3, nr. 2 | J86: Kr. pr. måned | M86: 6494
A87: 25-29 år, udeboende | D87: § 24, stk. 3, nr. 3 | J87: Kr. pr. måned | M87: 5223
A88: 25-29 år, hjemmeboende | D88: § 24, stk. 3, nr. 4 | J88: Kr. pr. måned | M88: 8826
A89: Under 25 år, udeboende | D89: § 24, stk. 3, nr. 5 | J89: Kr. pr. måned | M89: 1116
A90: Under 25 år, hjemmeboende | D90: § 24, stk. 3, nr. 6 | J90: Kr. pr. måned | M90: 865
A91: Periodesanktioner – fradrag i uddannelseshjælp 12)
A92: Enlige forsørgere under 30 år | D92: § 35, stk. 3 | J92: Kr. pr. dag | M92: 584
A93: Forsørgere under 30 år, som ikke har erhvervet ret til ekstra børnetilskud | D93: § 35, stk. 3 | J93: Kr. pr. dag | M93: 409
A94: Under 30 år, gravid (passeret 12. svangerskabsuge) | D94: § 35, stk. 3 | J94: Kr. pr. dag | M94: 533
A95: Under 30 år, psykisk syg, forsørgelsespligt | D95: § 35, stk. 3 | J95: Kr. pr. dag | M95: 709
A96: Under 30 år, psykisk syg, udeboende | D96: § 35, stk. 3 | J96: Kr. pr. dag | M96: 533
A97: 25-29 år, udeboende | D97: § 35, stk. 3 | J97: Kr. pr. dag | M97: 292
A98: 25-29 år, hjemmeboende | D98: § 35, stk. 3 | J98: Kr. pr. dag | M98: 126
A99: Under 25 år, udeboende | D99: § 35, stk. 3 | J99: Kr. pr. dag | M99: 292
A100: Under 25 år, hjemmeboende | D100: § 35, stk. 3 | J100: Kr. pr. dag | M100: 126
A101: Under 30 år, bidragspligt, maksimum hjælp inkl. tillæg | D101: § 35, stk. 3 | J101: Kr. pr. dag | M101: 709
A102: Periodesanktioner – fradrag i aktivitetstillæg til uddannelseshjælp 12)
A103: Enlige forsørgere under 30 år | D103: § 35, stk. 3 | J103: Kr. pr. dag | M103: 124
A104: Forsørgere under 30 år, som ikke har erhvervet ret til ekstra børnetilskud | D104: § 35, stk. 3 | J104: Kr. pr. dag | M104: 300
A105: 25-29 år, udeboende | D105: § 35, stk. 3 | J105: Kr. pr. dag | M105: 241
A106: 25-29 år, hjemmeboende | D106: § 35, stk. 3 | J106: Kr. pr. dag | M106: 407
A107: Under 25 år, udeboende | D107: § 35, stk. 3 | J107: Kr. pr. dag | M107: 52
A108: Under 25 år, hjemmeboende | D108: § 35, stk. 3 | J108: Kr. pr. dag | M108: 40
A109: Punktsanktioner – nedsættelse af uddannelseshjælp 12)
A110: Enlige forsørgere under 30 år | D110: § 40, stk. 1 | J110: Kr. pr. hændelse | M110: 1752
A111: Forsørgere under 30 år, som ikke har erhvervet ret til ekstra børnetilskud | D111: § 40, stk. 1 | J111: Kr. pr. hændelse | M111: 1227
A112: Under 30 år, gravid (passeret 12. svangerskabsuge) | D112: § 40, stk. 1 | J112: Kr. pr. hændelse | M112: 1599
A113: Under 30 år, psykisk syg, forsørgelsespligt | D113: § 40, stk. 1 | J113: Kr. pr. hændelse | M113: 2127
A114: Under 30 år, psykisk syg, udeboende | D114: § 40, stk. 1 | J114: Kr. pr. hændelse | M114: 1599
A115: 25-29 år, udeboende | D115: § 40, stk. 1 | J115: Kr. pr. hændelse | M115: 876
A116: 25-29 år, hjemmeboende | D116: § 40, stk. 1 | J116: Kr. pr. hændelse | M116: 378
A117: Under 25 år, udeboende | D117: § 40, stk. 1 | J117: Kr. pr. hændelse | M117: 876
A118: Under 25 år, hjemmeboende | D118: § 40, stk. 1 | J118: Kr. pr. hændelse | M118: 378
A119: Under 30 år, bidragspligt, maksimum hjælp inkl. tillæg | D119: § 40, stk. 1 | J119: Kr. pr. hændelse | M119: 2127
A120: Punktsanktioner – nedsættelse af aktivitetstillæg til uddannelseshjælp 12)
A121: Enlige forsørgere under 30 år | D121: § 40, stk. 1 | J121: Kr. pr. hændelse | M121: 372
A122: Forsørgere under 30 år, som ikke har erhvervet ret til ekstra børnetilskud | D122: § 40, stk. 1 | J122: Kr. pr. hændelse | M122: 900
A123: 25-29 år, udeboende | D123: § 40, stk. 1 | J123: Kr. pr. hændelse | M123: 723
A124: 25-29 år, hjemmeboende | D124: § 40, stk. 1 | J124: Kr. pr. hændelse | M124: 1221
A125: Under 25 år, udeboende | D125: § 40, stk. 1 | J125: Kr. pr. hændelse | M125: 156
A126: Under 25 år, hjemmeboende | D126: § 40, stk. 1 | J126: Kr. pr. hændelse | M126: 120
A128: Sanktionssatser – uddannelseshjælp. § 35, stk. 413)
A129: Sanktionssats ved en månedlig ydelsessats under 5.550 kr. | D129: § 35, stk. 4 | J129: Kr. pr. måned | M129: 200
A130: Sanktionssats ved en månedlig ydelsessats 5.550-9.800 kr. | D130: § 35, stk. 4 | J130: Kr. pr. måned | M130: 400
A131: Sanktionssats ved en månedlig ydelsessats 9.801-13.350 kr. | D131: § 35, stk. 4 | J131: Kr. pr. måned | M131: 600
A132: Sanktionssats ved en månedlig ydelsessats over 13.350 kr. | D132: § 35, stk. 4 | J132: Kr. pr. måned | M132: 700
A134: Sanktionssatser – uddannelseshjælp. § 35, stk. 513)
A135: Sanktionssats ved en månedlig ydelsessats under 5.550 kr. | D135: § 35, stk. 5 | J135: Kr. pr. måned | M135: 600
A136: Sanktionssats ved en månedlig ydelsessats 5.550-9.800 kr. | D136: § 35, stk. 5 | J136: Kr. pr. måned | M136: 1200
A137: Sanktionssats ved en månedlig ydelsessats 9.801-13.350 kr. | D137: § 35, stk. 5 | J137: Kr. pr. måned | M137: 1800
A138: Sanktionssats ved en månedlig ydelsessats over 13.350 kr. | D138: § 35, stk. 5 | J138: Kr. pr. måned | M138: 2100
A140: Sanktion ved uberettiget modtagelse af hjælp efter §§ 22-25 samtidig med arbejde eller ophold i udlandet
A141: Sanktionsgrænse | D141: § 42, stk. 1 og § 43, stk. 1 | J141: Kr. pr. måned | M141: 11554
A142: Kontanthjælpsloft for modtagere af hjælp efter §§ 23-25 med et beløb svarende til satserne i § 25, stk. 2
A143: Gifte/samlevende, forsørgere | D143: § 25 b, stk. 1, nr. 1 | J143: Kr. pr. måned | M143: 15355
A144: Gifte/samlevende, ikke forsørgere | D144: § 25 b, stk. 1, nr. 2 | J144: Kr. pr. måned | M144: 11554
A145: Enlige, forsørger, 1 barn | D145: § 25 b, stk. 1, nr. 3 | J145: Kr. pr. måned | M145: 16009
A146: Enlige, forsørger, 2 eller flere børn | D146: § 25 b, stk. 1, nr. 4 | J146: Kr. pr. måned | M146: 16387
A147: Enlige, ikke forsørger | D147: § 25 b, stk. 1, nr. 5 | J147: Kr. pr. måned | M147: 13975
A148: Kontanthjælpsloft for modtagere af hjælp efter § 25, stk. 3, og som ikke er omfattet af § 25 b, stk. 1
A149: Gifte/samlevende, forsørgere, 1 barn | D149: § 25 b, stk. 2, nr. 1 | J149: Kr. pr. måned | M149: 13110
A150: Gifte/samlevende, forsørgere, 2 eller flere børn | D150: § 25 b, stk. 2, nr. 2 | J150: Kr. pr. måned | M150: 12980
A151: Gifte/samlevende, ikke forsørgere | D151: § 25 b, stk. 2, nr. 3 | J151: Kr. pr. måned | M151: 9958
A152: Enlige, forsørger, 1 barn | D152: § 25 b, stk. 2, nr. 4 | J152: Kr. pr. måned | M152: 15693
A153: Enlige, forsørger, 2 eller flere børn | D153: § 25 b, stk. 2, nr. 5 | J153: Kr. pr. måned | M153: 16071
A154: Enlige, ikke forsørger | D154: § 25 b, stk. 2, nr. 6 | J154: Kr. pr. måned | M154: 10698
A155: Kontanthjælpsloft for modtagere af hjælp efter §§ 23-24, eller som får beregnet hjælp efter § 26, stk. 2, og som ikke er omfattet af § 25 b, stk. 1
A156: Gifte/samlevende, forsørgere, 1 barn | D156: § 25 b, stk. 3, nr. 1 | J156: Kr. pr. måned | M156: 12503
A157: Gifte/samlevende, forsørgere, 2 eller flere børn | D157: § 25 b, stk. 3, nr. 2 | J157: Kr. pr. måned | M157: 12334
A158: Gifte/samlevende, ikke forsørgere | D158: § 25 b, stk. 3, nr. 3 | J158: Kr. pr. måned | M158: 9541
A159: Enlige, forsørger, 1 barn | D159: § 25 b, stk. 3, nr. 4 | J159: Kr. pr. måned | M159: 14931
A160: Enlige, forsørger, 2 eller flere børn | D160: § 25 b, stk. 3, nr. 5 | J160: Kr. pr. måned | M160: 15308
A161: Enlige, ikke forsørger | D161: § 25 b, stk. 3, nr. 6 | J161: Kr. pr. måned | M161: 10276
A162: Kontanthjælpsloft for ægtefæller, hvor en eller begge modtager selvforsørgelses- og hjemrejseydelse eller overgangsydelse, og som ikke opfylder 225 timers kravet (Ægtefæller omfattet af § 13 f, stk. 3 og 4)
A163: Ej nedsat hjælp, forsørger, 1 barn | D163: § 25 b, stk. 5, nr. 1 | J163: Kr. pr. måned | M163: 9308
A164: Ej nedsat hjælp, forsørger, 2 eller flere børn | D164: § 25 b, stk. 5, nr. 2 | J164: Kr. pr. måned | M164: 9378
A165: Ej nedsat hjælp, ikke forsørger | D165: § 25 b, stk. 5, nr. 3 | J165: Kr. pr. måned | M165: 6255
A166: Nedsat hjælp, forsørger, 1 barn | D166: § 25 b, stk. 5, nr. 4 | J166: Kr. pr. måned | M166: 7499
A167: Nedsat hjælp, forsørger, 2 eller flere børn | D167: § 25 b, stk. 5, nr. 5 | J167: Kr. pr. måned | M167: 7569
A168: Nedsat hjælp, ikke forsørger | D168: § 25 b, stk. 5, nr. 6 | J168: Kr. pr. måned | M168: 5539
A169: Nedsættelse af hjælpen til ugifte personer, der ikke opfylder kravet om 225 timers ordinært og ustøttet arbejde inden for de seneste 12 kalendermåneder
A170: Hjælp beregnet på baggrund af 15.180 kr./11.423 kr. pr. måned | D170: § 13 g, stk. 1, nr. 1 | J170: Kr. pr. måned | M170: 1054
A171: Hjælp beregnet på baggrund af mindre end 15.180 kr./11.423 kr. pr. måned | D171: § 13 g, stk. 1, nr. 2 | J171: Kr. pr. måned | M171: 526
A172: Omregningssats for ukendt arbejdstid til 225 timers-regel
A173: Omregningssats | D173: § 13 f, stk. 15 | J173: Kr. pr. time | M173: 125.46
A174: Ægtefælleberegning – 225 timers-regel
A175: Forsørgere | D175: § 26, stk. 5-8 | J175: Kr. pr. måned | M175: 15355
A176: Ikke-forsørgere | D176: § 26, stk. 5-8 | J176: Kr. pr. måned | M176: 11554
A177: Engangshjælp
A178: Over 25 år, samt udeboende under 25 år (maksimum) | D178: § 25 a, stk. 2 | J178: Kr. pr. måned | M178: 6175
A179: Hjemmeboende under 25 år (maksimum) | D179: § 25 a, stk. 3 | J179: Kr. pr. måned | M179: 3070
A180: Hjælp til visse persongrupper
A181: Nået efterlønsalderen, ikke optjent pensionsret | D181: § 27, stk. 1 | J181: Kr. pr. måned | M181: 9995
A182: Børnestøttebeløb, ikke optjent pensionsret | D182: § 27, stk. 2 | J182: Kr. pr. måned | M182: 3108
A183: Enlige forsørgere – under 30 år (maksimum) | D183: § 12, stk. 3 | J183: Kr. pr. måned | M183: 12663
A184: Fradrag ved formue og indtægt, beløb der ses bort fra
A185: Formue, enlige | D185: § 14, stk. 1 | J185: Kr. pr. måned | M185: 10000
A186: Formue, ægtefæller | D186: § 14, stk. 1 | J186: Kr. pr. måned | M186: 20000
A187: Formue, engangsbeløb fra forsikring ved kritisk sygdom | D187: § 14, stk. 8 | J187: Kr. pr. forsikringsbe- | M187: 150000
J188: givenhed
A189: Forsørgelsesydelse, ægtefæller, forsørgelsespligt | D189: § 30, stk. 2 | J189: Kr. pr. måned | M189: 15355
A190: Forsørgelsesydelse, ægtefæller, andre | D190: § 30, stk. 2 | J190: Kr. pr. måned | M190: 11554
A191: Fradrag pr. arbejdstime ved arbejdsindtægt | D191: § 31, stk. 1 | J191: Kr. pr. time | M191: 27.84
A192: Fradrag for indtægter ved arbejde - STU (maksimumbeløb) | D192: § 31, stk. 2 | J192: Kr. pr. år | M192: 26316
A193: Arbejdstillæg, ukendt arbejdstimer, omregningssats | D193: § 31, stk. 3 | J193: Kr. pr. time | M193: 247.53
A194: Særlig støtte, grænsebeløb, boligudgift 14)
A195: Ikke-forsørgere | D195: § 34, stk. 8 | J195: Kr. pr. måned | M195: 3100
A196: Forsørgere med et hjemmeboende barn | D196: § 34, stk. 8 | J196: Kr. pr. måned | M196: 4500
A197: Forsørgere med et udeboende barn | D197: § 34, stk. 8 | J197: Kr. pr. måned | M197: 4600
A198: Fradrag i grænsebeløbet pr. barn hjemme udover 1 | D198: § 34, stk. 8 | J198: Kr. pr. måned | M198: 850
A199: Fradrag i grænsebeløbet pr. barn ude udover 1 | D199: § 34, stk. 8 | J199: Kr. pr. måned | M199: 700
A200: Indtægtsgrænse efter 3 måneder - dagpengemaksimum | D200: § 34, stk. 8 | J200: Kr. pr. måned | M200: 19083
A201: Grænse uafhængig af tidligere indtægter - integrationsydelse | D201: § 34, stk. 8 | J201: Kr. pr. måned | M201: 13767
A202: Fradrag for forskudsvis udlagt børnebidrag
A203: Samlede udbetalt beløb (minimumsbeløb) | D203: § 96 a, stk. 1 | J203: Kr. pr. måned | M203: 15355
A204: 12) Periodesanktioner og punktsanktioner henviser til sanktionsbestemmelserne i §§ 35-41 i LBK nr. 981 af 23. september 2019 og vejledning nr. 10013 af 13. oktober 2016 om rådighed og sanktioner for personer, der ansøger om eller modtager integrationsydelse, uddannelseshjælp eller kontanthjælp.
A205: 13) Sanktionssatser henviser til sanktionsbestemmelserne i §§ 35-40 a i lov nr. 1558 af 27. december 2019
A206: 14) Jf. BEK nr. 1605 af 18. december 2018 om særlig støtte efter § 34 i lov om aktiv socialpolitik.

Sheet 2019 sats
A2: Tabel 5. Kontanthjælp og uddannelseshjælp, jf. lov om aktiv socialpolitik (LBK nr. 981 af 23. september 2019)
D3: Lovhenvisning | J3: Enhed | M3: Sats
A4: Kontanthjælp
A5: Fyldt 30 år, forsørger børn | D5: § 25, stk. 2, nr. 1 | J5: Kr. pr. måned | M5: 15355
A6: Fyldt 30 år, andre | D6: § 25, stk. 2, nr. 2 | J6: Kr. pr. måned | M6: 11554
A7: Enlige forsørgere under 30 år | D7: § 25, stk. 3, nr. 1 | J7: Kr. pr. måned | M7: 14677
A8: Forsørgere under 30 år, som ikke har erhvervet ret til ekstra børnetilskud | D8: § 25, stk. 3, nr. 2 | J8: Kr. pr. måned | M8: 10268
A9: Under 30 år, gravid (passeret 12. svangerskabsuge) | D9: § 25, stk. 3, nr. 3 | J9: Kr. pr. måned | M9: 11554
A10: Under 30 år, psykisk syg, forsørgelsespligt | D10: § 25, stk. 3, nr. 4 | J10: Kr. pr. måned | M10: 15355
A11: Under 30 år, psykisk syg, udeboende | D11: § 25, stk. 3, nr. 5 | J11: Kr. pr. måned | M11: 11554
A12: 25-29 år, udeboende | D12: § 25, stk. 3, nr. 6 | J12: Kr. pr. måned | M12: 7448
A13: 25-29 år, hjemmeboende | D13: § 25, stk. 3, nr. 7 | J13: Kr. pr. måned | M13: 3594
A14: Under 25 år, udeboende | D14: § 25, stk. 3, nr. 8 | J14: Kr. pr. måned | M14: 7448
A15: Under 25 år, hjemmeboende | D15: § 25, stk. 3, nr. 9 | J15: Kr. pr. måned | M15: 3594
A16: Under 30 år, bidragspligt, maksimum hjælp inkl. tillæg | D16: § 25, stk. 4 | J16: Kr. pr. måned | M16: 15355
A17: Aktivitetstillæg/Barselstillæg til kontanthjælp
A18: Enlige forsørgere under 30 år | D18: § 25, stk. 9, nr. 1 | J18: Kr. pr. måned | M18: 678
A19: Forsørgere under 30 år, som ikke har erhvervet ret til ekstra børnetilskud | D19: § 25, stk. 9, nr. 2 | J19: Kr. pr. måned | M19: 5087
A20: 25-29 år, udeboende | D20: § 25, stk. 9, nr. 3 | J20: Kr. pr. måned | M20: 4108
A21: 25-29 år, hjemmeboende | D21: § 25, stk. 9, nr. 4 | J21: Kr. pr. måned | M21: 7962
A22: Periodesanktioner – fradrag i kontanthjælp 12)
A23: Fyldt 30 år, forsørger børn | D23: § 35, stk. 3 | J23: Kr. pr. dag | M23: 709
A24: Fyldt 30 år, andre | D24: § 35, stk. 3 | J24: Kr. pr. dag | M24: 533
A25: Enlige forsørgere under 30 år | D25: § 35, stk. 3 | J25: Kr. pr. dag | M25: 677
A26: Forsørgere under 30 år, som ikke har erhvervet ret til ekstra børnetilskud | D26: § 35, stk. 3 | J26: Kr. pr. dag | M26: 474
A27: Under 30 år, gravid (passeret 12. svangerskabsuge) | D27: § 35, stk. 3 | J27: Kr. pr. dag | M27: 533
A28: Under 30 år, psykisk syg, forsørgelsespligt | D28: § 35, stk. 3 | J28: Kr. pr. dag | M28: 709
A29: Under 30 år, psykisk syg, udeboende | D29: § 35, stk. 3 | J29: Kr. pr. dag | M29: 533
A30: 25-29 år, udeboende | D30: § 35, stk. 3 | J30: Kr. pr. dag | M30: 344
A31: 25-29 år, hjemmeboende | D31: § 35, stk. 3 | J31: Kr. pr. dag | M31: 166
A32: Under 25 år, udeboende | D32: § 35, stk. 3 | J32: Kr. pr. dag | M32: 344
A33: Under 25 år, hjemmeboende | D33: § 35, stk. 3 | J33: Kr. pr. dag | M33: 166
A34: Under 30 år, bidragspligt, maksimum hjælp inkl. tillæg | D34: § 35, stk. 3 | J34: Kr. pr. dag | M34: 709
A35: Periodesanktioner – fradrag i aktivitetstillæg til kontanthjælp 12)
A36: Enlige forsørgere under 30 år | D36: § 35, stk. 3 | J36: Kr. pr. dag | M36: 31
A37: Forsørger under 30 år, som ikke har erhvervet ret til ekstra børnetilskud. | D37: § 35, stk. 3 | J37: Kr. pr. dag | M37: 235
A38: 25-29 år, udeboende | D38: § 35, stk. 3 | J38: Kr. pr. dag | M38: 190
A39: 25-29 år, hjemmeboende | D39: § 35, stk. 3 | J39: Kr. pr. dag | M39: 367
A40: Punktsanktioner – nedsættelse af kontanthjælp 12)
A41: Fyldt 30 år, forsørger børn | D41: § 40, stk. 1 | J41: Kr. pr. hændelse | M41: 2127
A42: Fyldt 30 år, andre | D42: § 40, stk. 1 | J42: Kr. pr. hændelse | M42: 1599
A43: Enlige forsørgere under 30 år | D43: § 40, stk. 1 | J43: Kr. pr. hændelse | M43: 2031
A44: Forsørgere under 30 år, som ikke har erhvervet ret til ekstra børnetilskud. | D44: § 40, stk. 1 | J44: Kr. pr. hændelse | M44: 1422
A45: Under 30 år, gravid (passeret 12. svangerskabsuge) | D45: § 40, stk. 1 | J45: Kr. pr. hændelse | M45: 1599
A46: Under 30 år, psykisk syg, forsørgelsespligt | D46: § 40, stk. 1 | J46: Kr. pr. hændelse | M46: 2127
A47: Under 30 år, psykisk syg, udeboende | D47: § 40, stk. 1 | J47: Kr. pr. hændelse | M47: 1599
A48: 25-29 år, udeboende | D48: § 40, stk. 1 | J48: Kr. pr. hændelse | M48: 1032
A49: 25-29 år, hjemmeboende | D49: § 40, stk. 1 | J49: Kr. pr. hændelse | M49: 498
A50: Under 25 år, udeboende | D50: § 40, stk. 1 | J50: Kr. pr. hændelse | M50: 1032
A51: Under 25 år, hjemmeboende | D51: § 40, stk. 1 | J51: Kr. pr. hændelse | M51: 498
A52: Under 30 år, bidragspligt, maksimum hjælp inkl. tillæg | D52: § 40, stk. 1 | J52: Kr. pr. hændelse | M52: 2127
A53: Punktsanktioner – nedsættelse i aktivitetstillæg til kontanthjælp 12)
A54: Enlige forsørgere under 30 år | D54: § 40, stk. 1 | J54: Kr. pr. hændelse | M54: 93
A55: Forsørgere under 30 år, som ikke har erhvervet ret til ekstra børnetilskud | D55: § 40, stk. 1 | J55: Kr. pr. hændelse | M55: 705
A56: 25-29 år, udeboende | D56: § 40, stk. 1 | J56: Kr. pr. hændelse | M56: 570
A57: 25-29 år, hjemmeboende | D57: § 40, stk. 1 | J57: Kr. pr. hændelse | M57: 1101
A58: Sanktionssatser – kontanthjælp. § 35, stk. 413) | D58: § 35, stk. 4 | J58: Kr. pr. måned | M58: 200
A59: Sanktionssats ved en månedlig ydelsessats under 5.550 kr.
A60: Sanktionssats ved en månedlig ydelsessats 5.550-9.800 kr. | D60: § 35, stk. 4 | J60: Kr. pr. måned | M60: 400
A61: Sanktionssats ved en månedlig ydelsessats 9.801-13.350 kr. | D61: § 35, stk. 4 | J61: Kr. pr. måned | M61: 600
A62: Sanktionssats ved en månedlig ydelsessats over 13.350 kr. | D62: § 35, stk. 4 | J62: Kr. pr. måned | M62: 700
A64: Sanktionssatser – kontanthjælp. § 35, stk. 513) | D64: § 35, stk. 5 | J64: Kr. pr. måned | M64: 600
A65: Sanktionssats ved en månedlig ydelsessats under 5.550 kr.
A66: Sanktionssats ved en månedlig ydelsessats 5.550-9.800 kr. | D66: § 35, stk. 5 | J66: Kr. pr. måned | M66: 1200
A67: Sanktionssats ved en månedlig ydelsessats 9.801-13.350 kr. | D67: § 35, stk. 5 | J67: Kr. pr. måned | M67: 1800
A68: Sanktionssats ved en månedlig ydelsessats over 13.350 kr. | D68: § 35, stk. 5 | J68: Kr. pr. måned | M68: 2100
A70: Sanktion ved uberettiget modtagelse af hjælp efter §§ 22-25 samtidig med arbejde eller ophold i udlandet
A71: Sanktionsgrænse | D71: § 42, stk. 1 og § 43, | J71: Kr. pr. måned | M71: 11554
D72: stk. 1
A74: Uddannelseshjælp
A75: Enlige forsørgere under 30 år | D75: § 23, stk. 2, nr. 1 | J75: Kr. pr. måned | M75: 12663
A76: Forsørgere under 30 år, som ikke har erhvervet ret til ekstra børnetilskud | D76: § 23, stk. 2, nr. 2 | J76: Kr. pr. måned | M76: 8862
A77: Under 30 år, gravid (passeret 12. svangerskabsuge) | D77: § 23, stk. 2, nr. 3 | J77: Kr. pr. måned | M77: 11554
A78: Under 30 år, psykisk syg, forsørgelsespligt | D78: § 23, stk. 2, nr. 4 | J78: Kr. pr. måned | M78: 15355
A79: Under 30 år, psykisk syg, udeboende | D79: § 23, stk. 2, nr. 5 | J79: Kr. pr. måned | M79: 11554
A80: 25-29 år, udeboende | D80: § 23, stk. 2, nr. 6 | J80: Kr. pr. måned | M80: 6331
A81: 25-29 år, hjemmeboende | D81: § 23, stk. 2, nr. 7 | J81: Kr. pr. måned | M81: 2728
A82: Under 25 år, udeboende | D82: § 23, stk. 2, nr. 8 | J82: Kr. pr. måned | M82: 6331
A83: Under 25 år, hjemmeboende | D83: § 23, stk. 2, nr. 9 | J83: Kr. pr. måned | M83: 2728
A84: Under 30 år, bidragspligt, maksimum hjælp inkl. tillæg | D84: § 23, stk. 3 | J84: Kr. pr. måned | M84: 15355
A85: Aktivitetstillæg/Barselstillæg til uddannelseshjælp
A86: Enlige forsørgere under 30 år | D86: § 24, stk. 3, nr. 1 | J86: Kr. pr. måned | M86: 2693
A87: Forsørgere under 30 år, som ikke har erhvervet ret til ekstra børnetilskud. | D87: § 24, stk. 3, nr. 2 | J87: Kr. pr. måned | M87: 6494
A88: 25-29 år, udeboende | D88: § 24, stk. 3, nr. 3 | J88: Kr. pr. måned | M88: 5223
A89: 25-29 år, hjemmeboende | D89: § 24, stk. 3, nr. 4 | J89: Kr. pr. måned | M89: 8826
A90: Under 25 år, udeboende | D90: § 24, stk. 3, nr. 5 | J90: Kr. pr. måned | M90: 1116
A91: Under 25 år, hjemmeboende | D91: § 24, stk. 3, nr. 6 | J91: Kr. pr. måned | M91: 865
A92: Periodesanktioner – fradrag i uddannelseshjælp 12)
A93: Enlige forsørgere under 30 år | D93: § 35, stk. 3 | J93: Kr. pr. dag | M93: 584
A94: Forsørgere under 30 år, som ikke har erhvervet ret til ekstra børnetilskud | D94: § 35, stk. 3 | J94: Kr. pr. dag | M94: 409
A95: Under 30 år, gravid (passeret 12. svangerskabsuge) | D95: § 35, stk. 3 | J95: Kr. pr. dag | M95: 533
A96: Under 30 år, psykisk syg, forsørgelsespligt | D96: § 35, stk. 3 | J96: Kr. pr. dag | M96: 709
A97: Under 30 år, psykisk syg, udeboende | D97: § 35, stk. 3 | J97: Kr. pr. dag | M97: 533
A98: 25-29 år, udeboende | D98: § 35, stk. 3 | J98: Kr. pr. dag | M98: 292
A99: 25-29 år, hjemmeboende | D99: § 35, stk. 3 | J99: Kr. pr. dag | M99: 126
A100: Under 25 år, udeboende | D100: § 35, stk. 3 | J100: Kr. pr. dag | M100: 292
A101: Under 25 år, hjemmeboende | D101: § 35, stk. 3 | J101: Kr. pr. dag | M101: 126
A102: Under 30 år, bidragspligt, maksimum hjælp inkl. tillæg | D102: § 35, stk. 3 | J102: Kr. pr. dag | M102: 709
A103: Periodesanktioner – fradrag i aktivitetstillæg til uddannelseshjælp 12)
A104: Enlige forsørgere under 30 år | D104: § 35, stk. 3 | J104: Kr. pr. dag | M104: 124
A105: Forsørgere under 30 år, som ikke har erhvervet ret til ekstra børnetilskud | D105: § 35, stk. 3 | J105: Kr. pr. dag | M105: 300
A106: 25-29 år, udeboende | D106: § 35, stk. 3 | J106: Kr. pr. dag | M106: 241
A107: 25-29 år, hjemmeboende | D107: § 35, stk. 3 | J107: Kr. pr. dag | M107: 407
A108: Under 25 år, udeboende | D108: § 35, stk. 3 | J108: Kr. pr. dag | M108: 52
A109: Under 25 år, hjemmeboende | D109: § 35, stk. 3 | J109: Kr. pr. dag | M109: 40
A110: Punktsanktioner – nedsættelse af uddannelseshjælp 12)
A111: Enlige forsørgere under 30 år | D111: § 40, stk. 1 | J111: Kr. pr. hændelse | M111: 1752
A112: Forsørgere under 30 år, som ikke har erhvervet ret til ekstra børnetilskud | D112: § 40, stk. 1 | J112: Kr. pr. hændelse | M112: 1227
A113: Under 30 år, gravid (passeret 12. svangerskabsuge) | D113: § 40, stk. 1 | J113: Kr. pr. hændelse | M113: 1599
A114: Under 30 år, psykisk syg, forsørgelsespligt | D114: § 40, stk. 1 | J114: Kr. pr. hændelse | M114: 2127
A115: Under 30 år, psykisk syg, udeboende | D115: § 40, stk. 1 | J115: Kr. pr. hændelse | M115: 1599
A116: 25-29 år, udeboende | D116: § 40, stk. 1 | J116: Kr. pr. hændelse | M116: 876
A117: 25-29 år, hjemmeboende | D117: § 40, stk. 1 | J117: Kr. pr. hændelse | M117: 378
A118: Under 25 år, udeboende | D118: § 40, stk. 1 | J118: Kr. pr. hændelse | M118: 876
A119: Under 25 år, hjemmeboende | D119: § 40, stk. 1 | J119: Kr. pr. hændelse | M119: 378
A120: Under 30 år, bidragspligt, maksimum hjælp inkl. tillæg | D120: § 40, stk. 1 | J120: Kr. pr. hændelse | M120: 2127
A121: Punktsanktioner – nedsættelse af aktivitetstillæg til uddannelseshjælp 12)
A122: Enlige forsørgere under 30 år | D122: § 40, stk. 1 | J122: Kr. pr. hændelse | M122: 372
A123: Forsørgere under 30 år, som ikke har erhvervet ret til ekstra børnetilskud | D123: § 40, stk. 1 | J123: Kr. pr. hændelse | M123: 900
A124: 25-29 år, udeboende | D124: § 40, stk. 1 | J124: Kr. pr. hændelse | M124: 723
A125: 25-29 år, hjemmeboende | D125: § 40, stk. 1 | J125: Kr. pr. hændelse | M125: 1221
A126: Under 25 år, udeboende | D126: § 40, stk. 1 | J126: Kr. pr. hændelse | M126: 156
A127: Under 25 år, hjemmeboende | D127: § 40, stk. 1 | J127: Kr. pr. hændelse | M127: 120
A129: Sanktionssatser – uddannelseshjælp. § 35, stk. 413)
A130: Sanktionssats ved en månedlig ydelsessats under 5.550 kr. | D130: § 35, stk. 4 | J130: Kr. pr. måned | M130: 200
A131: Sanktionssats ved en månedlig ydelsessats 5.550-9.800 kr. | D131: § 35, stk. 4 | J131: Kr. pr. måned | M131: 400
A132: Sanktionssats ved en månedlig ydelsessats 9.801-13.350 kr. | D132: § 35, stk. 4 | J132: Kr. pr. måned | M132: 600
A133: Sanktionssats ved en månedlig ydelsessats over 13.350 kr. | D133: § 35, stk. 4 | J133: Kr. pr. måned | M133: 700
A135: Sanktionssatser – uddannelseshjælp. § 35, stk. 513)
A136: Sanktionssats ved en månedlig ydelsessats under 5.550 kr. | D136: § 35, stk. 5 | J136: Kr. pr. måned | M136: 600
A137: Sanktionssats ved en månedlig ydelsessats 5.550-9.800 kr. | D137: § 35, stk. 5 | J137: Kr. pr. måned | M137: 1200
A138: Sanktionssats ved en månedlig ydelsessats 9.801-13.350 kr. | D138: § 35, stk. 5 | J138: Kr. pr. måned | M138: 1800
A139: Sanktionssats ved en månedlig ydelsessats over 13.350 kr. | D139: § 35, stk. 5 | J139: Kr. pr. måned | M139: 2100
A141: Sanktion ved uberettiget modtagelse af hjælp efter §§ 22-25 samtidig med arbejde eller ophold i udlandet
A142: Sanktionsgrænse | D142: § 42, stk. 1 og § 43, stk. 1 | J142: Kr. pr. måned | M142: 11554
A143: Kontanthjælpsloft for modtagere af hjælp efter §§ 23-25 med et beløb svarende til satserne i § 25, stk. 2
A144: Gifte/samlevende, forsørgere | D144: § 25 b, stk. 1, nr. 1 | J144: Kr. pr. måned | M144: 15355
A145: Gifte/samlevende, ikke forsørgere | D145: § 25 b, stk. 1, nr. 2 | J145: Kr. pr. måned | M145: 11554
A146: Enlige, forsørger, 1 barn | D146: § 25 b, stk. 1, nr. 3 | J146: Kr. pr. måned | M146: 16009
A147: Enlige, forsørger, 2 eller flere børn | D147: § 25 b, stk. 1, nr. 4 | J147: Kr. pr. måned | M147: 16387
A148: Enlige, ikke forsørger | D148: § 25 b, stk. 1, nr. 5 | J148: Kr. pr. måned | M148: 13975
A149: Kontanthjælpsloft for modtagere af hjælp efter § 25, stk. 3, og som ikke er omfattet af § 25 b, stk. 1
A150: Gifte/samlevende, forsørgere, 1 barn | D150: § 25 b, stk. 2, nr. 1 | J150: Kr. pr. måned | M150: 13110
A151: Gifte/samlevende, forsørgere, 2 eller flere børn | D151: § 25 b, stk. 2, nr. 2 | J151: Kr. pr. måned | M151: 12980
A152: Gifte/samlevende, ikke forsørgere | D152: § 25 b, stk. 2, nr. 3 | J152: Kr. pr. måned | M152: 9958
A153: Enlige, forsørger, 1 barn | D153: § 25 b, stk. 2, nr. 4 | J153: Kr. pr. måned | M153: 15693
A154: Enlige, forsørger, 2 eller flere børn | D154: § 25 b, stk. 2, nr. 5 | J154: Kr. pr. måned | M154: 16071
A155: Enlige, ikke forsørger | D155: § 25 b, stk. 2, nr. 6 | J155: Kr. pr. måned | M155: 10698
A156: Kontanthjælpsloft for modtagere af hjælp efter §§ 23-24, eller som får beregnet hjælp efter § 26, stk. 2, og som ikke er omfattet af § 25 b, stk. 1
A157: Gifte/samlevende, forsørgere, 1 barn | D157: § 25 b, stk. 3, nr. 1 | J157: Kr. pr. måned | M157: 12503
A158: Gifte/samlevende, forsørgere, 2 eller flere børn | D158: § 25 b, stk. 3, nr. 2 | J158: Kr. pr. måned | M158: 12334
A159: Gifte/samlevende, ikke forsørgere | D159: § 25 b, stk. 3, nr. 3 | J159: Kr. pr. måned | M159: 9541
A160: Enlige, forsørger, 1 barn | D160: § 25 b, stk. 3, nr. 4 | J160: Kr. pr. måned | M160: 14931
A161: Enlige, forsørger, 2 eller flere børn | D161: § 25 b, stk. 3, nr. 5 | J161: Kr. pr. måned | M161: 15308
A162: Enlige, ikke forsørger | D162: § 25 b, stk. 3, nr. 6 | J162: Kr. pr. måned | M162: 10276
A163: Kontanthjælpsloft for ægtefæller, hvor en eller begge modtager selvforsørgelses- og hjemrejseydelse eller overgangsydelse, og som ikke opfylder 225 timers kravet (Ægtefæller omfattet af § 13 f, stk. 3 og 4)
A164: Ej nedsat hjælp, forsørger, 1 barn | D164: § 25 b, stk. 5, nr. 1 | J164: Kr. pr. måned | M164: 9308
A165: Ej nedsat hjælp, forsørger, 2 eller flere børn | D165: § 25 b, stk. 5, nr. 2 | J165: Kr. pr. måned | M165: 9378
A166: Ej nedsat hjælp, ikke forsørger | D166: § 25 b, stk. 5, nr. 3 | J166: Kr. pr. måned | M166: 6255
A167: Nedsat hjælp, forsørger, 1 barn | D167: § 25 b, stk. 5, nr. 4 | J167: Kr. pr. måned | M167: 7499
A168: Nedsat hjælp, forsørger, 2 eller flere børn | D168: § 25 b, stk. 5, nr. 5 | J168: Kr. pr. måned | M168: 7569
A169: Nedsat hjælp, ikke forsørger | D169: § 25 b, stk. 5, nr. 6 | J169: Kr. pr. måned | M169: 5539
A170: Nedsættelse af hjælpen til ugifte personer, der ikke opfylder kravet om 225 timers ordinært og ustøttet arbejde inden for de seneste 12 kalendermåneder
A171: Hjælp beregnet på baggrund af 15.180 kr./11.423 kr. pr. måned | D171: § 13 g, stk. 1, nr. 1 | J171: Kr. pr. måned | M171: 1054
A172: Hjælp beregnet på baggrund af mindre end 15.180 kr./11.423 kr. pr. måned | D172: § 13 g, stk. 1, nr. 2 | J172: Kr. pr. måned | M172: 526
A173: Omregningssats for ukendt arbejdstid til 225 timers-regel
A174: Omregningssats | D174: § 13 f, stk. 15 | J174: Kr. pr. time | M174: 125.46
A175: Ægtefælleberegning – 225 timers-regel
A176: Forsørgere | D176: § 26, stk. 5-8 | J176: Kr. pr. måned | M176: 15355
A177: Ikke-forsørgere | D177: § 26, stk. 5-8 | J177: Kr. pr. måned | M177: 11554
A178: Engangshjælp
A179: Over 25 år, samt udeboende under 25 år (maksimum) | D179: § 25 a, stk. 2 | J179: Kr. pr. måned | M179: 6175
A180: Hjemmeboende under 25 år (maksimum) | D180: § 25 a, stk. 3 | J180: Kr. pr. måned | M180: 3070
A181: Hjælp til visse persongrupper
A182: Nået efterlønsalderen, ikke optjent pensionsret | D182: § 27, stk. 1 | J182: Kr. pr. måned | M182: 9995
A183: Børnestøttebeløb, ikke optjent pensionsret | D183: § 27, stk. 2 | J183: Kr. pr. måned | M183: 3108
A184: Enlige forsørgere – under 30 år (maksimum) | D184: § 12, stk. 3 | J184: Kr. pr. måned | M184: 12663
A185: Fradrag ved formue og indtægt, beløb der ses bort fra
A186: Formue, enlige | D186: § 14, stk. 1 | J186: Kr. pr. måned | M186: 10000
A187: Formue, ægtefæller | D187: § 14, stk. 1 | J187: Kr. pr. måned | M187: 20000
A188: Formue, engangsbeløb fra forsikring ved kritisk sygdom | D188: § 14, stk. 8 | J188: Kr. pr. forsikringsbe- | M188: 150000
J189: givenhed
A190: Forsørgelsesydelse, ægtefæller, forsørgelsespligt | D190: § 30, stk. 2 | J190: Kr. pr. måned | M190: 15355
A191: Forsørgelsesydelse, ægtefæller, andre | D191: § 30, stk. 2 | J191: Kr. pr. måned | M191: 11554
A192: Fradrag pr. arbejdstime ved arbejdsindtægt | D192: § 31, stk. 1 | J192: Kr. pr. time | M192: 27.84
A193: Fradrag for indtægter ved arbejde - STU (maksimumbeløb) | D193: § 31, stk. 2 | J193: Kr. pr. år | M193: 26316
A194: Arbejdstillæg, ukendt arbejdstimer, omregningssats | D194: § 31, stk. 3 | J194: Kr. pr. time | M194: 247.53
A195: Særlig støtte, grænsebeløb, boligudgift 14)
A196: Ikke-forsørgere | D196: § 34, stk. 8 | J196: Kr. pr. måned | M196: 3100
A197: Forsørgere med et hjemmeboende barn | D197: § 34, stk. 8 | J197: Kr. pr. måned | M197: 4500
A198: Forsørgere med et udeboende barn | D198: § 34, stk. 8 | J198: Kr. pr. måned | M198: 4600
A199: Fradrag i grænsebeløbet pr. barn hjemme udover 1 | D199: § 34, stk. 8 | J199: Kr. pr. måned | M199: 850
A200: Fradrag i grænsebeløbet pr. barn ude udover 1 | D200: § 34, stk. 8 | J200: Kr. pr. måned | M200: 700
A201: Indtægtsgrænse efter 3 måneder - dagpengemaksimum | D201: § 34, stk. 8 | J201: Kr. pr. måned | M201: 19083
A202: Grænse uafhængig af tidligere indtægter - integrationsydelse | D202: § 34, stk. 8 | J202: Kr. pr. måned | M202: 13767
A203: Fradrag for forskudsvis udlagt børnebidrag
A204: Samlede udbetalt beløb (minimumsbeløb) | D204: § 96 a, stk. 1 | J204: Kr. pr. måned | M204: 15355
A205: 12) Periodesanktioner og punktsanktioner henviser til sanktionsbestemmelserne i §§ 35-41 i LBK nr. 981 af 23. september 2019 og vejledning nr. 10013 af 13. oktober 2016 om rådighed og sanktioner for personer, der ansøger om eller modtager integrationsydelse, uddannelseshjælp eller kontanthjælp.
A206: 13) Sanktionssatser henviser til sanktionsbestemmelserne i §§ 35-40 a i lov nr. 1558 af 27. december 2019
A207: 14) Jf. BEK nr. 1605 af 18. december 2018 om særlig støtte efter § 34 i lov om aktiv socialpolitik.

Sheet 2018-7 sats
A1: Tabel 5. Kontanthjælp og uddannelseshjælp, jf. lov om aktiv socialpolitik (LBK nr. 269 af 21. marts 2017)
D2: Lovhenvisning | H2: Enhed | J2: Sats
A3: Kontanthjælp
A4: Fyldt 30 år, forsørger børn | D4: § 25, stk. 2, nr. 1 | H4: Kr. pr. måned | J4: 14993
A5: Fyldt 30 år, andre | D5: § 25, stk. 2, nr. 2 | H5: Kr. pr. måned | J5: 11282
A6: Enlige forsørgere under 30 år | D6: § 25, stk. 3, nr. 1 | H6: Kr. pr. måned | J6: 14331
A7: Forsørgere under 30 år, som ikke har erhvervet ret til ekstra børnetilskud | D7: § 25, stk. 3, nr. 2 | H7: Kr. pr. måned | J7: 10026
A8: Under 30 år, gravid (passeret 12. svangerskabsuge) | D8: § 25, stk. 3, nr. 3 | H8: Kr. pr. måned | J8: 11282
A9: Under 30 år, psykisk syg, forsørgelsespligt | D9: § 25, stk. 3, nr. 4 | H9: Kr. pr. måned | J9: 14993
A10: Under 30 år, psykisk syg, udeboende | D10: § 25, stk. 3, nr. 5 | H10: Kr. pr. måned | J10: 11282
A11: 25-29 år, udeboende | D11: § 25, stk. 3, nr. 6 | H11: Kr. pr. måned | J11: 7272
A12: 25-29 år, hjemmeboende | D12: § 25, stk. 3, nr. 7 | H12: Kr. pr. måned | J12: 3509
A13: Under 25 år, udeboende | D13: § 25, stk. 3, nr. 8 | H13: Kr. pr. måned | J13: 7272
A14: Under 25 år, hjemmeboende | D14: § 25, stk. 3, nr. 9 | H14: Kr. pr. måned | J14: 3509
A15: Under 30 år, bidragspligt, maksimum hjælp inkl. tillæg | D15: § 25, stk. 4 | H15: Kr. pr. måned | J15: 14993
A16: Aktivitetstillæg/Barselstillæg til kontanthjælp
A17: Enlige forsørgere under 30 år, | D17: § 25, stk. 9, nr. 1 | H17: Kr. pr. måned | J17: 662
A18: Forsørgere under 30 år, som ikke har erhvervet ret til ekstra børnetilskud. | D18: § 25, stk. 9, nr. 2 | H18: Kr. pr. måned | J18: 4967
A19: 25-29 år, udeboende | D19: § 25, stk. 9, nr. 3 | H19: Kr. pr. måned | J19: 4011
A20: 25-29 år, hjemmeboende | D20: § 25, stk. 9, nr. 4 | H20: Kr. pr. måned | J20: 7774
A21: Periodesanktioner – fradrag i kontanthjælp 12)
A22: Fyldt 30 år, forsørger børn | D22: § 35, stk. 3 | H22: Kr. pr. dag | J22: 692
A23: Fyldt 30 år, andre | D23: § 35, stk. 3 | H23: Kr. pr. dag | J23: 521
A24: Enlige forsørgere under 30 år | D24: § 35, stk. 3 | H24: Kr. pr. dag | J24: 661
A25: Forsørgere under 30 år, som ikke har erhvervet ret til ekstra børnetilskud | D25: § 35, stk. 3 | H25: Kr. pr. dag | J25: 463
A26: Under 30 år, gravid (passeret 12. svangerskabsuge) | D26: § 35, stk. 3 | H26: Kr. pr. dag | J26: 521
A27: Under 30 år, psykisk syg, forsørgelsespligt | D27: § 35, stk. 3 | H27: Kr. pr. dag | J27: 692
A28: Under 30 år, psykisk syg, udeboende | D28: § 35, stk. 3 | H28: Kr. pr. dag | J28: 521
A29: 25-29 år, udeboende | D29: § 35, stk. 3 | H29: Kr. pr. dag | J29: 336
A30: 25-29 år, hjemmeboende | D30: § 35, stk. 3 | H30: Kr. pr. dag | J30: 162
A31: Under 25 år, udeboende | D31: § 35, stk. 3 | H31: Kr. pr. dag | J31: 336
A32: Under 25 år, hjemmeboende | D32: § 35, stk. 3 | H32: Kr. pr. dag | J32: 162
A33: Under 30 år, bidragspligt, maksimum hjælp inkl. tillæg | D33: § 35, stk. 3 | H33: Kr. pr. dag | J33: 692
A34: Periodesanktioner – fradrag i aktivitetstillæg til kontanthjælp 12)
A35: Enlige forsørgere under 30 år | D35: § 35, stk. 3 | H35: Kr. pr. dag | J35: 31
A36: Forsørger under 30 år, som ikke har erhvervet ret til ekstra børnetilskud. | D36: § 35, stk. 3 | H36: Kr. pr. dag | J36: 229
A37: 25-29 år, udeboende | D37: § 35, stk. 3 | H37: Kr. pr. dag | J37: 185
A38: 25-29 år, hjemmeboende | D38: § 35, stk. 3 | H38: Kr. pr. dag | J38: 359
A39: Punktsanktioner – nedsættelse af kontanthjælp 12)
A40: Fyldt 30 år, forsørger børn | D40: § 40, stk. 1 | H40: Kr. pr. hændelse | J40: 2076
A41: Fyldt 30 år, andre | D41: § 40, stk. 1 | H41: Kr. pr. hændelse | J41: 1563
A42: Enlige forsørgere under 30 år | D42: § 40, stk. 1 | H42: Kr. pr. hændelse | J42: 1983
A43: Forsørgere under 30 år, som ikke har erhvervet ret til ekstra børnetilskud. | D43: § 40, stk. 1 | H43: Kr. pr. hændelse | J43: 1389
A44: Under 30 år, gravid (passeret 12. svangerskabsuge) | D44: § 40, stk. 1 | H44: Kr. pr. hændelse | J44: 1563
A45: Under 30 år, psykisk syg, forsørgelsespligt | D45: § 40, stk. 1 | H45: Kr. pr. hændelse | J45: 2076
A46: Under 30 år, psykisk syg, udeboende | D46: § 40, stk. 1 | H46: Kr. pr. hændelse | J46: 1563
A47: 25-29 år, udeboende | D47: § 40, stk. 1 | H47: Kr. pr. hændelse | J47: 1008
A48: 25-29 år, hjemmeboende | D48: § 40, stk. 1 | H48: Kr. pr. hændelse | J48: 486
A49: Under 25 år, udeboende | D49: § 40, stk. 1 | H49: Kr. pr. hændelse | J49: 1008
A50: Under 25 år, hjemmeboende | D50: § 40, stk. 1 | H50: Kr. pr. hændelse | J50: 486
A51: Under 30 år, bidragspligt, maksimum hjælp inkl. tillæg | D51: § 40, stk. 1 | H51: Kr. pr. hændelse | J51: 2076
A52: Punktsanktioner – nedsættelse i aktivitetstillæg til kontanthjælp 12)
A53: Enlige forsørgere under 30 år | D53: § 40, stk. 1 | H53: Kr. pr. hændelse | J53: 93
A54: Forsørgere under 30 år, som ikke har erhvervet ret til ekstra børnetilskud | D54: § 40, stk. 1 | H54: Kr. pr. hændelse | J54: 687
A55: 25-29 år, udeboende | D55: § 40, stk. 1 | H55: Kr. pr. hændelse | J55: 555
A56: 25-29 år, hjemmeboende | D56: § 40, stk. 1 | H56: Kr. pr. hændelse | J56: 1077
A57: Sanktion ved uberettiget modtagelse af hjælp efter §§ 22-25 samtidig med arbejde eller ophold i udlandet
A58: Minimum ydelse | D58: § 42, stk. 1 | H58: Kr. pr. måned | J58: 11446
A59: Uddannelseshjælp
A60: Enlige forsørgere under 30 år | D60: § 23, stk. 2, nr. 1 | H60: Kr. pr. måned | J60: 12364
A61: Forsørgere under 30 år, som ikke har erhvervet ret til ekstra børnetilskud | D61: § 23, stk. 2, nr. 2 | H61: Kr. pr. måned | J61: 8653
A62: Under 30 år, gravid (passeret 12. svangerskabsuge) | D62: § 23, stk. 2, nr. 3 | H62: Kr. pr. måned | J62: 11282
A63: Under 30 år, psykisk syg, forsørgelsespligt | D63: § 23, stk. 2, nr. 4 | H63: Kr. pr. måned | J63: 14993
A64: Under 30 år, psykisk syg, udeboende | D64: § 23, stk. 2, nr. 5 | H64: Kr. pr. måned | J64: 11282
A65: 25-29 år, udeboende | D65: § 23, stk. 2, nr. 6 | H65: Kr. pr. måned | J65: 6182
A66: 25-29 år, hjemmeboende | D66: § 23, stk. 2, nr. 7 | H66: Kr. pr. måned | J66: 2664
A67: Under 25 år, udeboende | D67: § 23, stk. 2, nr. 8 | H67: Kr. pr. måned | J67: 6182
A68: Under 25 år, hjemmeboende | D68: § 23, stk. 2, nr. 9 | H68: Kr. pr. måned | J68: 2664
A69: Under 30 år, bidragspligt, maksimum hjælp inkl. tillæg | D69: § 23, stk. 3 | H69: Kr. pr. måned | J69: 14993
A70: Aktivitetstillæg/Barselstillæg til uddannelseshjælp
A71: Enlige forsørgere under 30 år | D71: § 24, stk. 3, nr. 1 | H71: Kr. pr. måned | J71: 2629
A72: Forsørgere under 30 år, som ikke har erhvervet ret til ekstra børnetilskud. | D72: § 24, stk. 3, nr. 2 | H72: Kr. pr. måned | J72: 6341
A73: 25-29 år, udeboende | D73: § 24, stk. 3, nr. 3 | H73: Kr. pr. måned | J73: 5100
A74: 25-29 år, hjemmeboende | D74: § 24, stk. 3, nr. 4 | H74: Kr. pr. måned | J74: 8618
A75: Under 25 år, udeboende | D75: § 24, stk. 3, nr. 5 | H75: Kr. pr. måned | J75: 1089
A76: Under 25 år, hjemmeboende | D76: § 24, stk. 3, nr. 6 | H76: Kr. pr. måned | J76: 844
A77: Periodesanktioner – fradrag i uddannelseshjælp 12)
A78: Enlige forsørgere under 30 år | D78: § 35, stk. 3 | H78: Kr. pr. dag | J78: 571
A79: Forsørgere under 30 år, som ikke har erhvervet ret til ekstra børnetilskud | D79: § 35, stk. 3 | H79: Kr. pr. dag | J79: 399
A80: Under 30 år, gravid (passeret 12. svangerskabsuge) | D80: § 35, stk. 3 | H80: Kr. pr. dag | J80: 521
A81: Under 30 år, psykisk syg, forsørgelsespligt | D81: § 35, stk. 3 | H81: Kr. pr. dag | J81: 692
A82: Under 30 år, psykisk syg, udeboende | D82: § 35, stk. 3 | H82: Kr. pr. dag | J82: 521
A83: 25-29 år, udeboende | D83: § 35, stk. 3 | H83: Kr. pr. dag | J83: 285
A84: 25-29 år, hjemmeboende | D84: § 35, stk. 3 | H84: Kr. pr. dag | J84: 123
A85: Under 25 år, udeboende | D85: § 35, stk. 3 | H85: Kr. pr. dag | J85: 285
A86: Under 25 år, hjemmeboende | D86: § 35, stk. 3 | H86: Kr. pr. dag | J86: 123
A87: Under 30 år, bidragspligt, maksimum hjælp inkl. tillæg | D87: § 35, stk. 3 | H87: Kr. pr. dag | J87: 692
A88: Periodesanktioner – fradrag i aktivitetstillæg til uddannelseshjælp 12)
A89: Enlige forsørgere under 30 år | D89: § 35, stk. 3 | H89: Kr. pr. dag | J89: 121
A90: Forsørgere under 30 år, som ikke har erhvervet ret til ekstra børnetilskud | D90: § 35, stk. 3 | H90: Kr. pr. dag | J90: 293
A91: 25-29 år, udeboende | D91: § 35, stk. 3 | H91: Kr. pr. dag | J91: 235
A92: 25-29 år, hjemmeboende | D92: § 35, stk. 3 | H92: Kr. pr. dag | J92: 398
A93: Under 25 år, udeboende | D93: § 35, stk. 3 | H93: Kr. pr. dag | J93: 50
A94: Under 25 år, hjemmeboende | D94: § 35, stk. 3 | H94: Kr. pr. dag | J94: 39
A95: Punktsanktioner – nedsættelse af uddannelseshjælp 12)
A96: Enlige forsørgere under 30 år | D96: § 40, stk. 1 | H96: Kr. pr. hændelse | J96: 1713
A97: Forsørgere under 30 år, som ikke har erhvervet ret til ekstra børnetilskud | D97: § 40, stk. 1 | H97: Kr. pr. hændelse | J97: 1197
A98: Under 30 år, gravid (passeret 12. svangerskabsuge) | D98: § 40, stk. 1 | H98: Kr. pr. hændelse | J98: 1563
A99: Under 30 år, psykisk syg, forsørgelsespligt | D99: § 40, stk. 1 | H99: Kr. pr. hændelse | J99: 2076
A100: Under 30 år, psykisk syg, udeboende | D100: § 40, stk. 1 | H100: Kr. pr. hændelse | J100: 1563
A101: 25-29 år, udeboende | D101: § 40, stk. 1 | H101: Kr. pr. hændelse | J101: 855
A102: 25-29 år, hjemmeboende | D102: § 40, stk. 1 | H102: Kr. pr. hændelse | J102: 369
A103: Under 25 år, udeboende | D103: § 40, stk. 1 | H103: Kr. pr. hændelse | J103: 855
A104: Under 25 år, hjemmeboende | D104: § 40, stk. 1 | H104: Kr. pr. hændelse | J104: 369
A105: Under 30 år, bidragspligt, maksimum hjælp inkl. tillæg | D105: § 40, stk. 1 | H105: Kr. pr. hændelse | J105: 2076
A106: Punktsanktioner – nedsættelse af aktivitetstillæg til uddannelseshjælp 12)
A107: Enlige forsørgere under 30 år | D107: § 40, stk. 1 | H107: Kr. pr. hændelse | J107: 363
A108: Forsørgere under 30 år, som ikke har erhvervet ret til ekstra børnetilskud | D108: § 40, stk. 1 | H108: Kr. pr. hændelse | J108: 879
A109: 25-29 år, udeboende | D109: § 40, stk. 1 | H109: Kr. pr. hændelse | J109: 705
A110: 25-29 år, hjemmeboende | D110: § 40, stk. 1 | H110: Kr. pr. hændelse | J110: 1194
A111: Under 25 år, udeboende | D111: § 40, stk. 1 | H111: Kr. pr. hændelse | J111: 150
A112: Under 25 år, hjemmeboende | D112: § 40, stk. 1 | H112: Kr. pr. hændelse | J112: 117
A113: Sanktion ved uberettiget modtagelse af hjælp efter §§ 22-25 samtidig med arbejde eller ophold i udlandet
A114: Minimum ydelse | D114: § 42, stk. 1 | H114: Kr. pr. måned | J114: 11446
A115: Kontanthjælpsloft for modtagere af hjælp efter §§ 23-25 med et beløb svarende til satserne i § 25, stk. 2
A116: Gifte/samlevende, forsørgere | D116: § 25 b, stk. 1, nr. 1 | H116: Kr. pr. måned | J116: 14993
A117: Gifte/samlevende, ikke forsørgere | D117: § 25 b, stk. 1, nr. 2 | H117: Kr. pr. måned | J117: 11282
A118: Enlige, forsørger, 1 barn | D118: § 25 b, stk. 1, nr. 3 | H118: Kr. pr. måned | J118: 15632
A119: Enlige, forsørger, 2 eller flere børn | D119: § 25 b, stk. 1, nr. 4 | H119: Kr. pr. måned | J119: 16001
A120: Enlige, ikke forsørger | D120: § 25 b, stk. 1, nr. 5 | H120: Kr. pr. måned | J120: 13645
A121: Kontanthjælpsloft for modtagere af hjælp efter § 25, stk. 3, og som ikke er omfattet af § 25 b, stk. 1
A122: Gifte/samlevende, forsørgere, 1 barn | D122: § 25 b, stk. 2, nr. 1 | H122: Kr. pr. måned | J122: 12801
A123: Gifte/samlevende, forsørgere, 2 eller flere børn | D123: § 25 b, stk. 2, nr. 2 | H123: Kr. pr. måned | J123: 12674
A124: Gifte/samlevende, ikke forsørgere | D124: § 25 b, stk. 2, nr. 3 | H124: Kr. pr. måned | J124: 9723
A125: Enlige, forsørger, 1 barn | D125: § 25 b, stk. 2, nr. 4 | H125: Kr. pr. måned | J125: 15323
A126: Enlige, forsørger, 2 eller flere børn | D126: § 25 b, stk. 2, nr. 5 | H126: Kr. pr. måned | J126: 15692
A127: Enlige, ikke forsørger | D127: § 25 b, stk. 2, nr. 6 | H127: Kr. pr. måned | J127: 10445
A128: Kontanthjælpsloft for modtagere af hjælp efter §§ 23-24, og som ikke er omfattet af § 25 b, stk.1
A129: Gifte/samlevende, forsørgere, 1 barn | D129: § 25 b, stk. 3, nr. 1 | H129: Kr. pr. måned | J129: 12208
A130: Gifte/samlevende, forsørgere, 2 eller flere børn | D130: § 25 b, stk. 3, nr. 2 | H130: Kr. pr. måned | J130: 12043
A131: Gifte/samlevende, ikke forsørgere | D131: § 25 b, stk. 3, nr. 3 | H131: Kr. pr. måned | J131: 9317
A132: Enlige, forsørger, 1 barn | D132: § 25 b, stk. 3, nr. 4 | H132: Kr. pr. måned | J132: 14579
A133: Enlige, forsørger, 2 eller flere børn | D133: § 25 b, stk. 3, nr. 5 | H133: Kr. pr. måned | J133: 14947
A134: Enlige, ikke forsørger | D134: § 25 b, stk. 3, nr. 6 | H134: Kr. pr. måned | J134: 10034
A135: Kontanthjælpsloft for ægtefæller, hvor en eller begge modtager integrationsydelse, og som ikke opfylder 225 timers kravet (Ægtefæller omfattet af § 13 f, stk. 3 og 4)*
A136: Ej nedsat hjælp, forsørger, 1 barn | D136: § 25 b, stk. 5, nr. 1 | H136: Kr. pr. måned | J136: 9088
A137: Ej nedsat hjælp, forsørger, 2 eller flere børn | D137: § 25 b, stk. 5, nr. 2 | H137: Kr. pr. måned | J137: 9157
A138: Ej nedsat hjælp, ikke forsørger | D138: § 25 b, stk. 5, nr. 3 | H138: Kr. pr. måned | J138: 6108
A139: Nedsat hjælp, forsørger, 1 barn | D139: § 25 b, stk. 5, nr. 4 | H139: Kr. pr. måned | J139: 7322
A140: Nedsat hjælp, forsørger, 2 eller flere børn | D140: § 25 b, stk. 5, nr. 5 | H140: Kr. pr. måned | J140: 7391
A141: Nedsat hjælp, ikke forsørger | D141: § 25 b, stk. 5, nr. 6 | H141: Kr. pr. måned | J141: 5408
A142: Nedsættelse af hjælpen til ugifte personer, der ikke opfylder kravet om 225 timers ordinært og ustøttet arbejde inden for de seneste 12 kalendermåneder
A143: Hjælp beregnet på baggrund af 14.993 kr./11.282 kr. pr. måned | D143: § 13 g, stk. 1, nr. 1 | H143: Kr. pr. måned | J143: 1029
A144: Hjælp beregnet på baggrund af mindre end 14.993 kr./11.282 kr. pr. måned | D144: § 13 g, stk. 1, nr. 2 | H144: Kr. pr. måned | J144: 514
A145: Omregningssats for ukendt arbejdstid til 225 timers-regel
A146: Omregningssats | D146: § 13 f, stk. 15 | H146: Kr. pr. time | J146: 122.5
A147: Ægtefælleberegning – 225 timers-regel
A148: Forsørgere | D148: § 26, stk. 5-8 | H148: Kr. pr. måned | J148: 14993
A149: Ikke-forsørgere | D149: § 26, stk. 5-8 | H149: Kr. pr. måned | J149: 11282
A150: Engangshjælp
A151: Over 25 år, samt udeboende under 25 år (maksimum) | D151: § 25 a, stk. 2 | H151: Kr. pr. måned | J151: 6030
A152: Hjemmeboende under 25 år (maksimum) | D152: § 25 a, stk. 3 | H152: Kr. pr. måned | J152: 2998
A153: Hjælp til visse persongrupper
A154: Nået efterlønsalderen, ikke optjent pensionsret | D154: § 27, stk. 1 | H154: Kr. pr. måned | J154: 9570
A155: Børnestøttebeløb, ikke optjent pensionsret | D155: § 27, stk. 2 | H155: Kr. pr. måned | J155: 3032
A156: Enlige forsørgere – under 30 år (maksimum) | D156: § 12, stk. 3 | H156: Kr. pr. måned | J156: 12364
A157: Fradrag ved formue og indtægt, beløb der ses bort fra
A158: Formue, enlige | D158: § 14, stk. 1 | H158: Kr. pr. måned | J158: 10000
A159: Formue, ægtefæller | D159: § 14, stk. 1 | H159: Kr. pr. måned | J159: 20000
A160: Formue, engangsbeløb fra forsikring ved kritisk sygdom | D160: § 14, stk. 8 | H160: Kr. pr. forsikringsbegivenhed | J160: 150000
A161: Forsørgelsesydelse, ægtefæller, forsørgelsespligt | D161: § 30, stk. 2 | H161: Kr. pr. måned | J161: 14993
A162: Forsørgelsesydelse, ægtefæller, andre | D162: § 30, stk. 2 | H162: Kr. pr. måned | J162: 11282
A163: Fradrag pr. arbejdstime ved arbejdsindtægt | D163: § 31, stk. 1 | H163: Kr. pr. time | J163: 26.78
A164: Fradrag for indtægter ved arbejde - STU (maksimumbeløb) | D164: § 31, stk. 2 | H164: Kr. pr. år | J164: 25319
A165: Arbejdstillæg, ukendt arbejdstimer, omregningssats | D165: § 31, stk. 3 | H165: Kr. pr. time | J165: 235.6
A166: Særlig støtte, grænsebeløb, boligudgift 13)
A167: Ikke-forsørgere | D167: § 34, stk. 8 | H167: Kr. pr. måned | J167: 3000
A168: Forsørgere med et hjemmeboende barn | D168: § 34, stk. 8 | H168: Kr. pr. måned | J168: 4300
A169: Forsørgere med et udeboende barn | D169: § 34, stk. 8 | H169: Kr. pr. måned | J169: 4400
A170: Fradrag i grænsebeløbet pr. barn hjemme udover 1 | D170: § 34, stk. 8 | H170: Kr. pr. måned | J170: 800
A171: Fradrag i grænsebeløbet pr. barn ude udover 1 | D171: § 34, stk. 8 | H171: Kr. pr. måned | J171: 650
A172: Indtægtsgrænse efter 3 måneder - dagpengemaksimum | D172: § 34, stk. 8 | H172: Kr. pr. måned | J172: 18633
A173: Grænse uafhængig af tidligere indtægter - integrationsydelse | D173: § 34, stk. 8 | H173: Kr. pr. måned | J173: 13233
A174: Fradrag for forskudsvis udlagt børnebidrag
A175: Samlede udbetalt beløb (minimumsbeløb) | D175: § 96 a, stk. 1 | H175: Kr. pr. måned | J175: 14993
A176: 12) Bestemmelserne under ”Sanktioner” henviser til sanktionsbestemmelserne i §§ 35-41 i LBK nr. 269 af 21. marts 2017 af lov om aktiv socialpolitik med senere ændringer og vejledning nr. 10013 af 13. oktober 2016 om rådighed og sanktioner for personer, der ansøger om eller modtager integrationsydelse, uddannelseshjælp eller kontanthjælp.
A177: 13) Jf. BEK nr. 894 af 29. juni 2017 om særlig støtte efter § 34 i lov om aktiv socialpolitik.
A178: *Satserne træder i kraft den 1. juli 2018.

Sheet 2018-1 sats
A1: Tabel 5. Kontanthjælp og uddannelseshjælp, jf. lov om aktiv socialpolitik (LBK nr. 269 af 21. marts 2017)
D2: Lovhenvisning | H2: Enhed | J2: Sats
A3: Kontanthjælp
A4: Fyldt 30 år, forsørger børn | D4: § 25, stk. 2, nr. 1 | H4: Kr. pr. måned | J4: 14993
A5: Fyldt 30 år, andre | D5: § 25, stk. 2, nr. 2 | H5: Kr. pr. måned | J5: 11282
A6: Enlige forsørgere under 30 år | D6: § 25, stk. 3, nr. 1 | H6: Kr. pr. måned | J6: 14331
A7: Forsørgere under 30 år, som ikke har erhvervet ret til ekstra børnetilskud | D7: § 25, stk. 3, nr. 2 | H7: Kr. pr. måned | J7: 10026
A8: Under 30 år, gravid (passeret 12. svangerskabsuge) | D8: § 25, stk. 3, nr. 3 | H8: Kr. pr. måned | J8: 11282
A9: Under 30 år, psykisk syg, forsørgelsespligt | D9: § 25, stk. 3, nr. 4 | H9: Kr. pr. måned | J9: 14993
A10: Under 30 år, psykisk syg, udeboende | D10: § 25, stk. 3, nr. 5 | H10: Kr. pr. måned | J10: 11282
A11: 25-29 år, udeboende | D11: § 25, stk. 3, nr. 6 | H11: Kr. pr. måned | J11: 7272
A12: 25-29 år, hjemmeboende | D12: § 25, stk. 3, nr. 7 | H12: Kr. pr. måned | J12: 3509
A13: Under 25 år, udeboende | D13: § 25, stk. 3, nr. 8 | H13: Kr. pr. måned | J13: 7272
A14: Under 25 år, hjemmeboende | D14: § 25, stk. 3, nr. 9 | H14: Kr. pr. måned | J14: 3509
A15: Under 30 år, bidragspligt, maksimum hjælp inkl. tillæg | D15: § 25, stk. 4 | H15: Kr. pr. måned | J15: 14993
A16: Aktivitetstillæg/Barselstillæg til kontanthjælp
A17: Enlige forsørgere under 30 år, | D17: § 25, stk. 9, nr. 1 | H17: Kr. pr. måned | J17: 662
A18: Forsørgere under 30 år, som ikke har erhvervet ret til ekstra børnetilskud. | D18: § 25, stk. 9, nr. 2 | H18: Kr. pr. måned | J18: 4967
A19: 25-29 år, udeboende | D19: § 25, stk. 9, nr. 3 | H19: Kr. pr. måned | J19: 4011
A20: 25-29 år, hjemmeboende | D20: § 25, stk. 9, nr. 4 | H20: Kr. pr. måned | J20: 7774
A21: Periodesanktioner – fradrag i kontanthjælp 12)
A22: Fyldt 30 år, forsørger børn | D22: § 35, stk. 3 | H22: Kr. pr. dag | J22: 692
A23: Fyldt 30 år, andre | D23: § 35, stk. 3 | H23: Kr. pr. dag | J23: 521
A24: Enlige forsørgere under 30 år | D24: § 35, stk. 3 | H24: Kr. pr. dag | J24: 661
A25: Forsørgere under 30 år, som ikke har erhvervet ret til ekstra børnetilskud | D25: § 35, stk. 3 | H25: Kr. pr. dag | J25: 463
A26: Under 30 år, gravid (passeret 12. svangerskabsuge) | D26: § 35, stk. 3 | H26: Kr. pr. dag | J26: 521
A27: Under 30 år, psykisk syg, forsørgelsespligt | D27: § 35, stk. 3 | H27: Kr. pr. dag | J27: 692
A28: Under 30 år, psykisk syg, udeboende | D28: § 35, stk. 3 | H28: Kr. pr. dag | J28: 521
A29: 25-29 år, udeboende | D29: § 35, stk. 3 | H29: Kr. pr. dag | J29: 336
A30: 25-29 år, hjemmeboende | D30: § 35, stk. 3 | H30: Kr. pr. dag | J30: 162
A31: Under 25 år, udeboende | D31: § 35, stk. 3 | H31: Kr. pr. dag | J31: 336
A32: Under 25 år, hjemmeboende | D32: § 35, stk. 3 | H32: Kr. pr. dag | J32: 162
A33: Under 30 år, bidragspligt, maksimum hjælp inkl. tillæg | D33: § 35, stk. 3 | H33: Kr. pr. dag | J33: 692
A34: Periodesanktioner – fradrag i aktivitetstillæg til kontanthjælp 12)
A35: Enlige forsørgere under 30 år | D35: § 35, stk. 3 | H35: Kr. pr. dag | J35: 31
A36: Forsørger under 30 år, som ikke har erhvervet ret til ekstra børnetilskud. | D36: § 35, stk. 3 | H36: Kr. pr. dag | J36: 229
A37: 25-29 år, udeboende | D37: § 35, stk. 3 | H37: Kr. pr. dag | J37: 185
A38: 25-29 år, hjemmeboende | D38: § 35, stk. 3 | H38: Kr. pr. dag | J38: 359
A39: Punktsanktioner – nedsættelse af kontanthjælp 12)
A40: Fyldt 30 år, forsørger børn | D40: § 40, stk. 1 | H40: Kr. pr. hændelse | J40: 2076
A41: Fyldt 30 år, andre | D41: § 40, stk. 1 | H41: Kr. pr. hændelse | J41: 1563
A42: Enlige forsørgere under 30 år | D42: § 40, stk. 1 | H42: Kr. pr. hændelse | J42: 1983
A43: Forsørgere under 30 år, som ikke har erhvervet ret til ekstra børnetilskud. | D43: § 40, stk. 1 | H43: Kr. pr. hændelse | J43: 1389
A44: Under 30 år, gravid (passeret 12. svangerskabsuge) | D44: § 40, stk. 1 | H44: Kr. pr. hændelse | J44: 1563
A45: Under 30 år, psykisk syg, forsørgelsespligt | D45: § 40, stk. 1 | H45: Kr. pr. hændelse | J45: 2076
A46: Under 30 år, psykisk syg, udeboende | D46: § 40, stk. 1 | H46: Kr. pr. hændelse | J46: 1563
A47: 25-29 år, udeboende | D47: § 40, stk. 1 | H47: Kr. pr. hændelse | J47: 1008
A48: 25-29 år, hjemmeboende | D48: § 40, stk. 1 | H48: Kr. pr. hændelse | J48: 486
A49: Under 25 år, udeboende | D49: § 40, stk. 1 | H49: Kr. pr. hændelse | J49: 1008
A50: Under 25 år, hjemmeboende | D50: § 40, stk. 1 | H50: Kr. pr. hændelse | J50: 486
A51: Under 30 år, bidragspligt, maksimum hjælp inkl. tillæg | D51: § 40, stk. 1 | H51: Kr. pr. hændelse | J51: 2076
A52: Punktsanktioner – nedsættelse i aktivitetstillæg til kontanthjælp 12)
A53: Enlige forsørgere under 30 år | D53: § 40, stk. 1 | H53: Kr. pr. hændelse | J53: 93
A54: Forsørgere under 30 år, som ikke har erhvervet ret til ekstra børnetilskud | D54: § 40, stk. 1 | H54: Kr. pr. hændelse | J54: 687
A55: 25-29 år, udeboende | D55: § 40, stk. 1 | H55: Kr. pr. hændelse | J55: 555
A56: 25-29 år, hjemmeboende | D56: § 40, stk. 1 | H56: Kr. pr. hændelse | J56: 1077
A58: Uddannelseshjælp
A59: Enlige forsørgere under 30 år | D59: § 23, stk. 2, nr. 1 | H59: Kr. pr. måned | J59: 12364
A60: Forsørgere under 30 år, som ikke har erhvervet ret til ekstra børnetilskud | D60: § 23, stk. 2, nr. 2 | H60: Kr. pr. måned | J60: 8653
A61: Under 30 år, gravid (passeret 12. svangerskabsuge) | D61: § 23, stk. 2, nr. 3 | H61: Kr. pr. måned | J61: 11282
A62: Under 30 år, psykisk syg, forsørgelsespligt | D62: § 23, stk. 2, nr. 4 | H62: Kr. pr. måned | J62: 14993
A63: Under 30 år, psykisk syg, udeboende | D63: § 23, stk. 2, nr. 5 | H63: Kr. pr. måned | J63: 11282
A64: 25-29 år, udeboende | D64: § 23, stk. 2, nr. 6 | H64: Kr. pr. måned | J64: 6182
A65: 25-29 år, hjemmeboende | D65: § 23, stk. 2, nr. 7 | H65: Kr. pr. måned | J65: 2664
A66: Under 25 år, udeboende | D66: § 23, stk. 2, nr. 8 | H66: Kr. pr. måned | J66: 6182
A67: Under 25 år, hjemmeboende | D67: § 23, stk. 2, nr. 9 | H67: Kr. pr. måned | J67: 2664
A68: Under 30 år, bidragspligt, maksimum hjælp inkl. tillæg | D68: § 23, stk. 3 | H68: Kr. pr. måned | J68: 14993
A69: Aktivitetstillæg/Barselstillæg til uddannelseshjælp
A70: Enlige forsørgere under 30 år | D70: § 24, stk. 3, nr. 1 | H70: Kr. pr. måned | J70: 2629
A71: Forsørgere under 30 år, som ikke har erhvervet ret til ekstra børnetilskud. | D71: § 24, stk. 3, nr. 2 | H71: Kr. pr. måned | J71: 6341
A72: 25-29 år, udeboende | D72: § 24, stk. 3, nr. 3 | H72: Kr. pr. måned | J72: 5100
A73: 25-29 år, hjemmeboende | D73: § 24, stk. 3, nr. 4 | H73: Kr. pr. måned | J73: 8618
A74: Under 25 år, udeboende | D74: § 24, stk. 3, nr. 5 | H74: Kr. pr. måned | J74: 1089
A75: Under 25 år, hjemmeboende | D75: § 24, stk. 3, nr. 6 | H75: Kr. pr. måned | J75: 844
A76: Periodesanktioner – fradrag i uddannelseshjælp 12)
A77: Enlige forsørgere under 30 år | D77: § 35, stk. 3 | H77: Kr. pr. dag | J77: 571
A78: Forsørgere under 30 år, som ikke har erhvervet ret til ekstra børnetilskud | D78: § 35, stk. 3 | H78: Kr. pr. dag | J78: 399
A79: Under 30 år, gravid (passeret 12. svangerskabsuge) | D79: § 35, stk. 3 | H79: Kr. pr. dag | J79: 521
A80: Under 30 år, psykisk syg, forsørgelsespligt | D80: § 35, stk. 3 | H80: Kr. pr. dag | J80: 692
A81: Under 30 år, psykisk syg, udeboende | D81: § 35, stk. 3 | H81: Kr. pr. dag | J81: 521
A82: 25-29 år, udeboende | D82: § 35, stk. 3 | H82: Kr. pr. dag | J82: 285
A83: 25-29 år, hjemmeboende | D83: § 35, stk. 3 | H83: Kr. pr. dag | J83: 123
A84: Under 25 år, udeboende | D84: § 35, stk. 3 | H84: Kr. pr. dag | J84: 285
A85: Under 25 år, hjemmeboende | D85: § 35, stk. 3 | H85: Kr. pr. dag | J85: 123
A86: Under 30 år, bidragspligt, maksimum hjælp inkl. tillæg | D86: § 35, stk. 3 | H86: Kr. pr. dag | J86: 692
A87: Periodesanktioner – fradrag i aktivitetstillæg til uddannelseshjælp 12)
A88: Enlige forsørgere under 30 år | D88: § 35, stk. 3 | H88: Kr. pr. dag | J88: 121
A89: Forsørgere under 30 år, som ikke har erhvervet ret til ekstra børnetilskud | D89: § 35, stk. 3 | H89: Kr. pr. dag | J89: 293
A90: 25-29 år, udeboende | D90: § 35, stk. 3 | H90: Kr. pr. dag | J90: 235
A91: 25-29 år, hjemmeboende | D91: § 35, stk. 3 | H91: Kr. pr. dag | J91: 398
A92: Under 25 år, udeboende | D92: § 35, stk. 3 | H92: Kr. pr. dag | J92: 50
A93: Under 25 år, hjemmeboende | D93: § 35, stk. 3 | H93: Kr. pr. dag | J93: 39
A94: Punktsanktioner – nedsættelse af uddannelseshjælp 12)
A95: Enlige forsørgere under 30 år | D95: § 40, stk. 1 | H95: Kr. pr. hændelse | J95: 1713
A96: Forsørgere under 30 år, som ikke har erhvervet ret til ekstra børnetilskud | D96: § 40, stk. 1 | H96: Kr. pr. hændelse | J96: 1197
A97: Under 30 år, gravid (passeret 12. svangerskabsuge) | D97: § 40, stk. 1 | H97: Kr. pr. hændelse | J97: 1563
A98: Under 30 år, psykisk syg, forsørgelsespligt | D98: § 40, stk. 1 | H98: Kr. pr. hændelse | J98: 2076
A99: Under 30 år, psykisk syg, udeboende | D99: § 40, stk. 1 | H99: Kr. pr. hændelse | J99: 1563
A100: 25-29 år, udeboende | D100: § 40, stk. 1 | H100: Kr. pr. hændelse | J100: 855
A101: 25-29 år, hjemmeboende | D101: § 40, stk. 1 | H101: Kr. pr. hændelse | J101: 369
A102: Under 25 år, udeboende | D102: § 40, stk. 1 | H102: Kr. pr. hændelse | J102: 855
A103: Under 25 år, hjemmeboende | D103: § 40, stk. 1 | H103: Kr. pr. hændelse | J103: 369
A104: Under 30 år, bidragspligt, maksimum hjælp inkl. tillæg | D104: § 40, stk. 1 | H104: Kr. pr. hændelse | J104: 2076
A105: Punktsanktioner – nedsættelse af aktivitetstillæg til uddannelseshjælp 12)
A106: Enlige forsørgere under 30 år | D106: § 40, stk. 1 | H106: Kr. pr. hændelse | J106: 363
A107: Forsørgere under 30 år, som ikke har erhvervet ret til ekstra børnetilskud | D107: § 40, stk. 1 | H107: Kr. pr. hændelse | J107: 879
A108: 25-29 år, udeboende | D108: § 40, stk. 1 | H108: Kr. pr. hændelse | J108: 705
A109: 25-29 år, hjemmeboende | D109: § 40, stk. 1 | H109: Kr. pr. hændelse | J109: 1194
A110: Under 25 år, udeboende | D110: § 40, stk. 1 | H110: Kr. pr. hændelse | J110: 150
A111: Under 25 år, hjemmeboende | D111: § 40, stk. 1 | H111: Kr. pr. hændelse | J111: 117
A112: Kontanthjælpsloft for modtagere af hjælp efter §§ 23-25 med et beløb svarende til satserne i § 25, stk. 2
A113: Gifte/samlevende, forsørgere | D113: § 25 b, stk. 1, nr. 1 | H113: Kr. pr. måned | J113: 14993
A114: Gifte/samlevende, ikke forsørgere | D114: § 25 b, stk. 1, nr. 2 | H114: Kr. pr. måned | J114: 11282
A115: Enlige, forsørger, 1 barn | D115: § 25 b, stk. 1, nr. 3 | H115: Kr. pr. måned | J115: 15632
A116: Enlige, forsørger, 2 eller flere børn | D116: § 25 b, stk. 1, nr. 4 | H116: Kr. pr. måned | J116: 16001
A117: Enlige, ikke forsørger | D117: § 25 b, stk. 1, nr. 5 | H117: Kr. pr. måned | J117: 13645
A118: Kontanthjælpsloft for modtagere af hjælp efter § 25, stk. 3, og som ikke er omfattet af § 25 b, stk. 1
A119: Gifte/samlevende, forsørgere, 1 barn | D119: § 25 b, stk. 2, nr. 1 | H119: Kr. pr. måned | J119: 12801
A120: Gifte/samlevende, forsørgere, 2 eller flere børn | D120: § 25 b, stk. 2, nr. 2 | H120: Kr. pr. måned | J120: 12674
A121: Gifte/samlevende, ikke forsørgere | D121: § 25 b, stk. 2, nr. 3 | H121: Kr. pr. måned | J121: 9723
A122: Enlige, forsørger, 1 barn | D122: § 25 b, stk. 2, nr. 4 | H122: Kr. pr. måned | J122: 15323
A123: Enlige, forsørger, 2 eller flere børn | D123: § 25 b, stk. 2, nr. 5 | H123: Kr. pr. måned | J123: 15692
A124: Enlige, ikke forsørger | D124: § 25 b, stk. 2, nr. 6 | H124: Kr. pr. måned | J124: 10445
A125: Kontanthjælpsloft for modtagere af hjælp efter §§ 22-24, eller som får beregnet hjælp efter § 26, stk. 2, og som ikke er omfattet af § 25 b, stk.1
A126: Gifte/samlevende, forsørgere, 1 barn | D126: § 25 b, stk. 3, nr. 1 | H126: Kr. pr. måned | J126: 12208
A127: Gifte/samlevende, forsørgere, 2 eller flere børn | D127: § 25 b, stk. 3, nr. 2 | H127: Kr. pr. måned | J127: 12043
A128: Gifte/samlevende, ikke forsørgere | D128: § 25 b, stk. 3, nr. 3 | H128: Kr. pr. måned | J128: 9317
A129: Enlige, forsørger, 1 barn | D129: § 25 b, stk. 3, nr. 4 | H129: Kr. pr. måned | J129: 14579
A130: Enlige, forsørger, 2 eller flere børn | D130: § 25 b, stk. 3, nr. 5 | H130: Kr. pr. måned | J130: 14947
A131: Enlige, ikke forsørger | D131: § 25 b, stk. 3, nr. 6 | H131: Kr. pr. måned | J131: 10034
A132: Kontanthjælpsloft for ægtefæller, hvor en eller begge modtager integrationsydelse, og som ikke opfylder 225 timers kravet (Ægtefæller omfattet af § 13 f, stk. 3 og 4)
A133: Ej nedsat hjælp, forsørger, 1 barn | D133: § 25 b, stk. 4, nr. 1 | H133: Kr. pr. måned | J133: 9347
A134: Ej nedsat hjælp, forsørger, 2 eller flere børn | D134: § 25 b, stk. 4, nr. 2 | H134: Kr. pr. måned | J134: 9416
A135: Ej nedsat hjælp, ikke forsørger | D135: § 25 b, stk. 4, nr. 3 | H135: Kr. pr. måned | J135: 6294
A136: Nedsat hjælp, forsørger, 1 barn | D136: § 25 b, stk. 4, nr. 4 | H136: Kr. pr. måned | J136: 7062
A137: Nedsat hjælp, forsørger, 2 eller flere børn | D137: § 25 b, stk. 4, nr. 5 | H137: Kr. pr. måned | J137: 7131
A138: Nedsat hjælp, ikke forsørger | D138: § 25 b, stk. 4, nr. 6 | H138: Kr. pr. måned | J138: 5222
A139: Nedsættelse af hjælpen til ugifte personer, der ikke opfylder kravet om 225 timers ordinært og ustøttet arbejde inden for de seneste 12 kalendermåneder
A140: Hjælp beregnet på baggrund af 14.993 kr./11.282 kr. pr. måned | D140: § 13 g, stk. 1, nr. 1 | H140: Kr. pr. måned | J140: 1029
A141: Hjælp beregnet på baggrund af mindre end 14.993 kr./11.282 kr. pr. måned | D141: § 13 g, stk. 1, nr. 2 | H141: Kr. pr. måned | J141: 514
A142: Omregningssats for ukendt arbejdstid til 225 timers-regel
A143: Omregningssats | D143: § 13 f, stk. 15 | H143: Kr. pr. time | J143: 122.5
A144: Ægtefælleberegning – 225 timers-regel
A145: Forsørgere | D145: § 26, stk. 5-8 | H145: Kr. pr. måned | J145: 14993
A146: Ikke-forsørgere | D146: § 26, stk. 5-8 | H146: Kr. pr. måned | J146: 11282
A147: Engangshjælp
A148: Over 25 år, samt udeboende under 25 år (maksimum) | D148: § 25 a, stk. 2 | H148: Kr. pr. måned | J148: 6030
A149: Hjemmeboende under 25 år (maksimum) | D149: § 25 a, stk. 3 | H149: Kr. pr. måned | J149: 2998
A150: Hjælp til visse persongrupper
A151: Nået efterlønsalderen, ikke optjent pensionsret | D151: § 27, stk. 1 | H151: Kr. pr. måned | J151: 9570
A152: Børnestøttebeløb, ikke optjent pensionsret | D152: § 27, stk. 2 | H152: Kr. pr. måned | J152: 3032
A153: Enlige forsørgere – under 30 år (maksimum) | D153: § 12, stk. 3 | H153: Kr. pr. måned | J153: 12364
A154: Fradrag ved formue og indtægt, beløb der ses bort fra
A155: Formue, enlige | D155: § 14, stk. 1 | H155: Kr. pr. måned | J155: 10000
A156: Formue, ægtefæller | D156: § 14, stk. 1 | H156: Kr. pr. måned | J156: 20000
A157: Formue, engangsbeløb fra forsikring ved kritisk sygdom | D157: § 14, stk. 8 | H157: Kr. pr. forsikringsbegivenhed | J157: 150000
A158: Forsørgelsesydelse, ægtefæller, forsørgelsespligt | D158: § 30, stk. 2 | H158: Kr. pr. måned | J158: 14993
A159: Forsørgelsesydelse, ægtefæller, andre | D159: § 30, stk. 2 | H159: Kr. pr. måned | J159: 11282
A160: Fradrag pr. arbejdstime ved arbejdsindtægt | D160: § 31, stk. 1 | H160: Kr. pr. time | J160: 26.78
A161: Fradrag for indtægter ved arbejde - STU (maksimumbeløb) | D161: § 31, stk. 2 | H161: Kr. pr. år | J161: 25319
A162: Arbejdstillæg, ukendt arbejdstimer, omregningssats | D162: § 31, stk. 3 | H162: Kr. pr. time | J162: 235.6
A163: Særlig støtte, grænsebeløb, boligudgift 13)
A164: Ikke-forsørgere | D164: § 34, stk. 8 | H164: Kr. pr. måned | J164: 3000
A165: Forsørgere med et hjemmeboende barn | D165: § 34, stk. 8 | H165: Kr. pr. måned | J165: 4300
A166: Forsørgere med et udeboende barn | D166: § 34, stk. 8 | H166: Kr. pr. måned | J166: 4400
A167: Fradrag i grænsebeløbet pr. barn hjemme udover 1 | D167: § 34, stk. 8 | H167: Kr. pr. måned | J167: 800
A168: Fradrag i grænsebeløbet pr. barn ude udover 1 | D168: § 34, stk. 8 | H168: Kr. pr. måned | J168: 650
A169: Indtægtsgrænse efter 3 måneder - dagpengemaksimum | D169: § 34, stk. 8 | H169: Kr. pr. måned | J169: 18633
A170: Grænse uafhængig af tidligere indtægter - integrationsydelse | D170: § 34, stk. 8 | H170: Kr. pr. måned | J170: 13233
A171: Fradrag for forskudsvis udlagt børnebidrag
A172: Samlede udbetalt beløb (minimumsbeløb) | D172: § 96 a, stk. 1 | H172: Kr. pr. måned | J172: 14993
A173: 12) Bestemmelserne under ”Sanktioner” henviser til sanktionsbestemmelserne i §§ 35-41 i LBK nr. 269 af 21. marts 2017 af lov om aktiv socialpolitik med senere ændringer og vejledning nr. 10013 af 13. oktober 2016 om rådighed og sanktioner for personer, der ansøger om eller modtager integrationsydelse, uddannelseshjælp eller kontanthjælp.
A174: 13) Jf. BEK nr. 894 af 29. juni 2017 om særlig støtte efter § 34 i lov om aktiv socialpolitik.

Sheet 2017 sats
A1: Tabel 5. Kontanthjælp og uddannelseshjælp, jf. lov om aktiv socialpolitik (LBK nr. 468 af 20. maj 2016)
D2: Lovhenvisning | H2: Enhed | J2: Sats
A3: Kontanthjælp
A4: Fyldt 30 år, forsørger børn | D4: § 25, stk. 2, nr. 1 | H4: Kr. pr. måned | J4: 14808
A5: Fyldt 30 år, andre | D5: § 25, stk. 2, nr. 2 | H5: Kr. pr. måned | J5: 11143
A6: Enlige forsørgere under 30 år | D6: § 25, stk. 3, nr. 1 | H6: Kr. pr. måned | J6: 14154
A7: Forsørgere under 30 år, som ikke har erhvervet ret til ekstra børnetilskud | D7: § 25, stk. 3, nr. 2 | H7: Kr. pr. måned | J7: 9902
A8: Under 30 år, gravid (passeret 12. svangerskabsuge) | D8: § 25, stk. 3, nr. 3 | H8: Kr. pr. måned | J8: 11143
A9: Under 30 år, psykisk syg, forsørgelsespligt | D9: § 25, stk. 3, nr. 4 | H9: Kr. pr. måned | J9: 14808
A10: Under 30 år, psykisk syg, udeboende | D10: § 25, stk. 3, nr. 5 | H10: Kr. pr. måned | J10: 11143
A11: 25-29 år, udeboende | D11: § 25, stk. 3, nr. 6 | H11: Kr. pr. måned | J11: 7182
A12: 25-29 år, hjemmeboende | D12: § 25, stk. 3, nr. 7 | H12: Kr. pr. måned | J12: 3466
A13: Under 25 år, udeboende | D13: § 25, stk. 3, nr. 8 | H13: Kr. pr. måned | J13: 7182
A14: Under 25 år, hjemmeboende | D14: § 25, stk. 3, nr. 9 | H14: Kr. pr. måned | J14: 3466
A15: Under 30 år, bidragspligt, maksimum hjælp inkl. tillæg | D15: § 25, stk. 4 | H15: Kr. pr. måned | J15: 14808
A16: Aktivitetstillæg/Barselstillæg til kontanthjælp
A17: Enlige forsørgere under 30 år, | D17: § 25, stk. 9, nr. 1 | H17: Kr. pr. måned | J17: 654
A18: Forsørgere under 30 år, som ikke har erhvervet ret til ekstra børnetilskud. | D18: § 25, stk. 9, nr. 2 | H18: Kr. pr. måned | J18: 4906
A19: 25-29 år, udeboende | D19: § 25, stk. 9, nr. 3 | H19: Kr. pr. måned | J19: 3961
A20: 25-29 år, hjemmeboende | D20: § 25, stk. 9, nr. 4 | H20: Kr. pr. måned | J20: 7678
A21: Periodesanktioner – fradrag i kontanthjælp 10)
A22: Fyldt 30 år, forsørger børn | D22: § 35, stk. 3 | H22: Kr. pr. dag | J22: 683
A23: Fyldt 30 år, andre | D23: § 35, stk. 3 | H23: Kr. pr. dag | J23: 514
A24: Enlige forsørgere under 30 år | D24: § 35, stk. 3 | H24: Kr. pr. dag | J24: 653
A25: Forsørgere under 30 år, som ikke har erhvervet ret til ekstra børnetilskud | D25: § 35, stk. 3 | H25: Kr. pr. dag | J25: 457
A26: Under 30 år, gravid (passeret 12. svangerskabsuge) | D26: § 35, stk. 3 | H26: Kr. pr. dag | J26: 514
A27: Under 30 år, psykisk syg, forsørgelsespligt | D27: § 35, stk. 3 | H27: Kr. pr. dag | J27: 683
A28: Under 30 år, psykisk syg, udeboende | D28: § 35, stk. 3 | H28: Kr. pr. dag | J28: 514
A29: 25-29 år, udeboende | D29: § 35, stk. 3 | H29: Kr. pr. dag | J29: 331
A30: 25-29 år, hjemmeboende | D30: § 35, stk. 3 | H30: Kr. pr. dag | J30: 160
A31: Under 25 år, udeboende | D31: § 35, stk. 3 | H31: Kr. pr. dag | J31: 331
A32: Under 25 år, hjemmeboende | D32: § 35, stk. 3 | H32: Kr. pr. dag | J32: 160
A33: Under 30 år, bidragspligt, maksimum hjælp inkl. tillæg | D33: § 35, stk. 3 | H33: Kr. pr. dag | J33: 683
A34: Periodesanktioner – fradrag i aktivitetstillæg til kontanthjælp 10)
A35: Enlige forsørgere under 30 år | D35: § 35, stk. 3 | H35: Kr. pr. dag | J35: 30
A36: Forsørger under 30 år, som ikke har erhvervet ret til ekstra børnetilskud. | D36: § 35, stk. 3 | H36: Kr. pr. dag | J36: 226
A37: 25-29 år, udeboende | D37: § 35, stk. 3 | H37: Kr. pr. dag | J37: 183
A38: 25-29 år, hjemmeboende | D38: § 35, stk. 3 | H38: Kr. pr. dag | J38: 354
A39: Punktsanktioner – nedsættelse af kontanthjælp 10)
A40: Fyldt 30 år, forsørger børn | D40: § 40, stk. 1 | H40: Kr. pr. hændelse | J40: 2049
A41: Fyldt 30 år, andre | D41: § 40, stk. 1 | H41: Kr. pr. hændelse | J41: 1542
A42: Enlige forsørgere under 30 år | D42: § 40, stk. 1 | H42: Kr. pr. hændelse | J42: 1959
A43: Forsørgere under 30 år, som ikke har erhvervet ret til ekstra børnetilskud. | D43: § 40, stk. 1 | H43: Kr. pr. hændelse | J43: 1371
A44: Under 30 år, gravid (passeret 12. svangerskabsuge) | D44: § 40, stk. 1 | H44: Kr. pr. hændelse | J44: 1542
A45: Under 30 år, psykisk syg, forsørgelsespligt | D45: § 40, stk. 1 | H45: Kr. pr. hændelse | J45: 2049
A46: Under 30 år, psykisk syg, udeboende | D46: § 40, stk. 1 | H46: Kr. pr. hændelse | J46: 1542
A47: 25-29 år, udeboende | D47: § 40, stk. 1 | H47: Kr. pr. hændelse | J47: 993
A48: 25-29 år, hjemmeboende | D48: § 40, stk. 1 | H48: Kr. pr. hændelse | J48: 480
A49: Under 25 år, udeboende | D49: § 40, stk. 1 | H49: Kr. pr. hændelse | J49: 993
A50: Under 25 år, hjemmeboende | D50: § 40, stk. 1 | H50: Kr. pr. hændelse | J50: 480
A51: Under 30 år, bidragspligt, maksimum hjælp inkl. tillæg | D51: § 40, stk. 1 | H51: Kr. pr. hændelse | J51: 2049
A52: Punktsanktioner – nedsættelse i aktivitetstillæg til kontanthjælp 10)
A53: Enlige forsørgere under 30 år | D53: § 40, stk. 1 | H53: Kr. pr. hændelse | J53: 90
A54: Forsørgere under 30 år, som ikke har erhvervet ret til ekstra børnetilskud | D54: § 40, stk. 1 | H54: Kr. pr. hændelse | J54: 678
A55: 25-29 år, udeboende | D55: § 40, stk. 1 | H55: Kr. pr. hændelse | J55: 549
A56: 25-29 år, hjemmeboende | D56: § 40, stk. 1 | H56: Kr. pr. hændelse | J56: 1062
A58: Uddannelseshjælp
A59: Enlige forsørgere under 30 år | D59: § 23, stk. 2, nr. 1 | H59: Kr. pr. måned | J59: 12211
A60: Forsørgere under 30 år, som ikke har erhvervet ret til ekstra børnetilskud | D60: § 23, stk. 2, nr. 2 | H60: Kr. pr. måned | J60: 8546
A61: Under 30 år, gravid (passeret 12. svangerskabsuge) | D61: § 23, stk. 2, nr. 3 | H61: Kr. pr. måned | J61: 11143
A62: Under 30 år, psykisk syg, forsørgelsespligt | D62: § 23, stk. 2, nr. 4 | H62: Kr. pr. måned | J62: 14808
A63: Under 30 år, psykisk syg, udeboende | D63: § 23, stk. 2, nr. 5 | H63: Kr. pr. måned | J63: 11143
A64: 25-29 år, udeboende | D64: § 23, stk. 2, nr. 6 | H64: Kr. pr. måned | J64: 6106
A65: 25-29 år, hjemmeboende | D65: § 23, stk. 2, nr. 7 | H65: Kr. pr. måned | J65: 2631
A66: Under 25 år, udeboende | D66: § 23, stk. 2, nr. 8 | H66: Kr. pr. måned | J66: 6106
A67: Under 25 år, hjemmeboende | D67: § 23, stk. 2, nr. 9 | H67: Kr. pr. måned | J67: 2631
A68: Under 30 år, bidragspligt, maksimum hjælp inkl. tillæg | D68: § 23, stk. 3 | H68: Kr. pr. måned | J68: 14808
A69: Aktivitetstillæg/Barselstillæg til uddannelseshjælp
A70: Enlige forsørgere under 30 år | D70: § 24, stk. 3, nr. 1 | H70: Kr. pr. måned | J70: 2597
A71: Forsørgere under 30 år, som ikke har erhvervet ret til ekstra børnetilskud. | D71: § 24, stk. 3, nr. 2 | H71: Kr. pr. måned | J71: 6263
A72: 25-29 år, udeboende | D72: § 24, stk. 3, nr. 3 | H72: Kr. pr. måned | J72: 5037
A73: 25-29 år, hjemmeboende | D73: § 24, stk. 3, nr. 4 | H73: Kr. pr. måned | J73: 8512
A74: Under 25 år, udeboende | D74: § 24, stk. 3, nr. 5 | H74: Kr. pr. måned | J74: 1076
A75: Under 25 år, hjemmeboende | D75: § 24, stk. 3, nr. 6 | H75: Kr. pr. måned | J75: 834
A76: Periodesanktioner – fradrag i uddannelseshjælp 10)
A77: Enlige forsørgere under 30 år | D77: § 35, stk. 3 | H77: Kr. pr. dag | J77: 564
A78: Forsørgere under 30 år, som ikke har erhvervet ret til ekstra børnetilskud | D78: § 35, stk. 3 | H78: Kr. pr. dag | J78: 394
A79: Under 30 år, gravid (passeret 12. svangerskabsuge) | D79: § 35, stk. 3 | H79: Kr. pr. dag | J79: 514
A80: Under 30 år, psykisk syg, forsørgelsespligt | D80: § 35, stk. 3 | H80: Kr. pr. dag | J80: 683
A81: Under 30 år, psykisk syg, udeboende | D81: § 35, stk. 3 | H81: Kr. pr. dag | J81: 514
A82: 25-29 år, udeboende | D82: § 35, stk. 3 | H82: Kr. pr. dag | J82: 282
A83: 25-29 år, hjemmeboende | D83: § 35, stk. 3 | H83: Kr. pr. dag | J83: 121
A84: Under 25 år, udeboende | D84: § 35, stk. 3 | H84: Kr. pr. dag | J84: 282
A85: Under 25 år, hjemmeboende | D85: § 35, stk. 3 | H85: Kr. pr. dag | J85: 121
A86: Under 30 år, bidragspligt, maksimum hjælp inkl. tillæg | D86: § 35, stk. 3 | H86: Kr. pr. dag | J86: 683
A87: Periodesanktioner – fradrag i aktivitetstillæg til uddannelseshjælp 10)
A88: Enlige forsørgere under 30 år | D88: § 35, stk. 3 | H88: Kr. pr. dag | J88: 120
A89: Forsørgere under 30 år, som ikke har erhvervet ret til ekstra børnetilskud | D89: § 35, stk. 3 | H89: Kr. pr. dag | J89: 289
A90: 25-29 år, udeboende | D90: § 35, stk. 3 | H90: Kr. pr. dag | J90: 232
A91: 25-29 år, hjemmeboende | D91: § 35, stk. 3 | H91: Kr. pr. dag | J91: 393
A92: Under 25 år, udeboende | D92: § 35, stk. 3 | H92: Kr. pr. dag | J92: 50
A93: Under 25 år, hjemmeboende | D93: § 35, stk. 3 | H93: Kr. pr. dag | J93: 38
A94: Punktsanktioner – nedsættelse af uddannelseshjælp 10)
A95: Enlige forsørgere under 30 år | D95: § 40, stk. 1 | H95: Kr. pr. hændelse | J95: 1692
A96: Forsørgere under 30 år, som ikke har erhvervet ret til ekstra børnetilskud | D96: § 40, stk. 1 | H96: Kr. pr. hændelse | J96: 1182
A97: Under 30 år, gravid (passeret 12. svangerskabsuge) | D97: § 40, stk. 1 | H97: Kr. pr. hændelse | J97: 1542
A98: Under 30 år, psykisk syg, forsørgelsespligt | D98: § 40, stk. 1 | H98: Kr. pr. hændelse | J98: 2049
A99: Under 30 år, psykisk syg, udeboende | D99: § 40, stk. 1 | H99: Kr. pr. hændelse | J99: 1542
A100: 25-29 år, udeboende | D100: § 40, stk. 1 | H100: Kr. pr. hændelse | J100: 846
A101: 25-29 år, hjemmeboende | D101: § 40, stk. 1 | H101: Kr. pr. hændelse | J101: 363
A102: Under 25 år, udeboende | D102: § 40, stk. 1 | H102: Kr. pr. hændelse | J102: 846
A103: Under 25 år, hjemmeboende | D103: § 40, stk. 1 | H103: Kr. pr. hændelse | J103: 363
A104: Under 30 år, bidragspligt, maksimum hjælp inkl. tillæg | D104: § 40, stk. 1 | H104: Kr. pr. hændelse | J104: 2049
A105: Punktsanktioner – nedsættelse af aktivitetstillæg til uddannelseshjælp 10)
A106: Enlige forsørgere under 30 år | D106: § 40, stk. 1 | H106: Kr. pr. hændelse | J106: 360
A107: Forsørgere under 30 år, som ikke har erhvervet ret til ekstra børnetilskud | D107: § 40, stk. 1 | H107: Kr. pr. hændelse | J107: 867
A108: 25-29 år, udeboende | D108: § 40, stk. 1 | H108: Kr. pr. hændelse | J108: 696
A109: 25-29 år, hjemmeboende | D109: § 40, stk. 1 | H109: Kr. pr. hændelse | J109: 1179
A110: Under 25 år, udeboende | D110: § 40, stk. 1 | H110: Kr. pr. hændelse | J110: 150
A111: Under 25 år, hjemmeboende | D111: § 40, stk. 1 | H111: Kr. pr. hændelse | J111: 114
A112: Kontanthjælpsloft for modtagere af hjælp efter §§ 23-25 med et beløb svarende til satserne i § 25, stk. 2
A113: Gifte/samlevende, forsørgere | D113: § 25 b, stk. 1, nr. 1 | H113: Kr. pr. måned | J113: 14808
A114: Gifte/samlevende, ikke forsørgere | D114: § 25 b, stk. 1, nr. 2 | H114: Kr. pr. måned | J114: 11143
A115: Enlige, forsørger, 1 barn | D115: § 25 b, stk. 1, nr. 3 | H115: Kr. pr. måned | J115: 15439
A116: Enlige, forsørger, 2 eller flere børn | D116: § 25 b, stk. 1, nr. 4 | H116: Kr. pr. måned | J116: 15803
A117: Enlige, ikke forsørger | D117: § 25 b, stk. 1, nr. 5 | H117: Kr. pr. måned | J117: 13477
A118: Kontanthjælpsloft for modtagere af hjælp efter § 25, stk. 3, og som ikke er omfattet af § 25 b, stk. 1
A119: Gifte/samlevende, forsørgere, 1 barn | D119: § 25 b, stk. 2, nr. 1 | H119: Kr. pr. måned | J119: 12643
A120: Gifte/samlevende, forsørgere, 2 eller flere børn | D120: § 25 b, stk. 2, nr. 2 | H120: Kr. pr. måned | J120: 12518
A121: Gifte/samlevende, ikke forsørgere | D121: § 25 b, stk. 2, nr. 3 | H121: Kr. pr. måned | J121: 9603
A122: Enlige, forsørger, 1 barn | D122: § 25 b, stk. 2, nr. 4 | H122: Kr. pr. måned | J122: 15134
A123: Enlige, forsørger, 2 eller flere børn | D123: § 25 b, stk. 2, nr. 5 | H123: Kr. pr. måned | J123: 15498
A124: Enlige, ikke forsørger | D124: § 25 b, stk. 2, nr. 6 | H124: Kr. pr. måned | J124: 10316
A125: Kontanthjælpsloft for modtagere af hjælp efter §§ 22-24, eller som får beregnet hjælp efter § 26, stk.2, og som ikke er omfattet af § 25b, stk.1
A126: Gifte/samlevende, forsørgere, 1 barn | D126: § 25 b, stk. 3, nr. 1 | H126: Kr. pr. måned | J126: 12057
A127: Gifte/samlevende, forsørgere, 2 eller flere børn | D127: § 25 b, stk. 3, nr. 2 | H127: Kr. pr. måned | J127: 11894
A128: Gifte/samlevende, ikke forsørgere | D128: § 25 b, stk. 3, nr. 3 | H128: Kr. pr. måned | J128: 9202
A129: Enlige, forsørger, 1 barn | D129: § 25 b, stk. 3, nr. 4 | H129: Kr. pr. måned | J129: 14399
A130: Enlige, forsørger, 2 eller flere børn | D130: § 25 b, stk. 3, nr. 5 | H130: Kr. pr. måned | J130: 14762
A131: Enlige, ikke forsørger | D131: § 25 b, stk. 3, nr. 6 | H131: Kr. pr. måned | J131: 9910
A132: Kontanthjælpsloft for ægtefæller, hvor en eller begge modtager integrationsydelse, og som ikke opfylder 225 timers kravet (Ægtefæller omfattet af § 13f, stk. 3 og 4)
A133: Ej nedsat hjælp, forsørger, 1 barn | D133: § 25 b, stk. 4, nr. 1 | H133: Kr. pr. måned | J133: 9232
A134: Ej nedsat hjælp, forsørger, 2 eller flere børn | D134: § 25 b, stk. 4, nr. 2 | H134: Kr. pr. måned | J134: 9300
A135: Ej nedsat hjælp, ikke forsørger | D135: § 25 b, stk. 4, nr. 3 | H135: Kr. pr. måned | J135: 6216
A136: Nedsat hjælp, forsørger, 1 barn | D136: § 25 b, stk. 4, nr. 4 | H136: Kr. pr. måned | J136: 6975
A137: Nedsat hjælp, forsørger, 2 eller flere børn | D137: § 25 b, stk. 4, nr. 5 | H137: Kr. pr. måned | J137: 7043
A138: Nedsat hjælp, ikke forsørger | D138: § 25 b, stk. 4, nr. 6 | H138: Kr. pr. måned | J138: 5158
A139: Nedsættelse af hjælpen til ugifte personer, der ikke opfylder kravet om 225 timers ordinært og ustøttet arbejde inden for de seneste 12 kalendermåneder
A140: Hjælp beregnet på baggrund af 14.808 kr./11.143 kr. pr. måned | D140: § 13 g, stk. 1, nr. 1 | H140: Kr. pr. måned | J140: 1016
A141: Hjælp beregnet på baggrund af mindre end14. 808 kr./11.143 kr. pr. måned | D141: § 13 g, stk. 1, nr. 2 | H141: Kr. pr. måned | J141: 508
A142: Omregningssats for ukendt arbejdstid til 225 timers-regel
A143: Omregningssats | D143: § 13 f, stk. 15 | H143: Kr. pr. time | J143: 120.99
A144: Ægtefælleberegning – 225 timers-regel
A145: Forsørgere | D145: § 26, stk. 5-8 | H145: Kr. pr. måned | J145: 14808
A146: Ikke-forsørgere | D146: § 26, stk. 5-8 | H146: Kr. pr. måned | J146: 11143
A147: Engangshjælp
A148: Over 25 år, samt udeboende under 25 år (maksimum) | D148: § 25 a, stk. 2 | H148: Kr. pr. måned | J148: 5956
A149: Hjemmeboende under 25 år (maksimum) | D149: § 25 a, stk. 3 | H149: Kr. pr. måned | J149: 2961
A150: Hjælp til visse persongrupper
A151: Nået efterlønsalderen, ikke optjent pensionsret | D151: § 27, stk. 1 | H151: Kr. pr. måned | J151: 9383
A152: Børnestøttebeløb, ikke optjent pensionsret | D152: § 27, stk. 2 | H152: Kr. pr. måned | J152: 2995
A153: Enlige forsørgere – under 30 år (maksimum) | D153: § 12, stk. 3 | H153: Kr. pr. måned | J153: 12211
A154: Fradrag ved formue og indtægt, beløb der ses bort fra
A155: Formue, enlige | D155: § 14, stk. 1 | H155: Kr. pr. måned | J155: 10000
A156: Formue, ægtefæller | D156: § 14, stk. 1 | H156: Kr. pr. måned | J156: 20000
A157: Formue, engangsbeløb fra forsikring ved kritisk sygdom | D157: § 14, stk. 8 | H157: Kr. pr. forsikringsbegivenhed | J157: 150000
A158: Forsørgelsesydelse, ægtefæller, forsørgelsespligt | D158: § 30, stk. 2 | H158: Kr. pr. måned | J158: 14808
A159: Forsørgelsesydelse, ægtefæller, andre | D159: § 30, stk. 2 | H159: Kr. pr. måned | J159: 11143
A160: Fradrag pr. arbejdstime ved arbejdsindtægt | D160: § 31, stk. 1 | H160: Kr. pr. time | J160: 26.25
A161: Fradrag for indtægter ved arbejde - STU (maksimumbeløb) | D161: § 31, stk. 2 | H161: Kr. pr. år | J161: 24823
A162: Arbejdstillæg, ukendt arbejdstimer, omregningssats | D162: § 31, stk. 3 | H162: Kr. pr. time | J162: 230.08
A163: Særlig støtte, grænsebeløb, boligudgift 11)
A164: Ikke-forsørgere | D164: § 34, stk. 8 | H164: Kr. pr. måned | J164: 2950
A165: Forsørgere med et hjemmeboende barn | D165: § 34, stk. 8 | H165: Kr. pr. måned | J165: 4200
A166: Forsørgere med et udeboende barn | D166: § 34, stk. 8 | H166: Kr. pr. måned | J166: 4300
A167: Fradrag i grænsebeløbet pr. barn hjemme udover 1 | D167: § 34, stk. 8 | H167: Kr. pr. måned | J167: 800
A168: Fradrag i grænsebeløbet pr. barn ude udover 1 | D168: § 34, stk. 8 | H168: Kr. pr. måned | J168: 650
A169: Indtægtsgrænse efter 3 måneder - dagpengemaksimum | D169: § 34, stk. 8 | H169: Kr. pr. måned | J169: 18403
A170: Grænse uafhængig af tidligere indtægter - integrationsydelse | D170: § 34, stk. 8 | H170: Kr. pr. måned | J170: 12973
A171: Fradrag for forskudsvis udlagt børnebidrag
A172: Samlede udbetalt beløb (minimumsbeløb) | D172: § 96 a, stk. 1 | H172: Kr. pr. måned | J172: 14808
A173: 10) Bestemmelserne under ”Sanktioner” henviser til sanktionsbestemmelserne i §§ 35-41 i LBK nr. 468 af 20. maj 2016 af lov om aktiv socialpolitik med senere ændringer og vejledning nr. 10013 af 13. oktober 2016 om rådighed og sanktioner for personer, der ansøger om eller modtager integrationsydelse, uddannelseshjælp eller kontanthjælp.
A174: 11) Jf. BEK nr. 829 af 27. juni 2016 om særlig støtte efter § 34 i lov om aktiv socialpolitik.
